Workbook

Sheet Von
A1: Row Labels | B1: Sum of Score | E1: List of Battles
A2: Allied | B2: 47400 | E2: MI July
A3: Kas Gaigalas | B3: 32220.53513 | E3: MI Aug
A4: Bob Hoernemann | B4: 22515.95357 | E4: MI Sept
A5: Kevin Plumer | B5: 19982.39336 | E5: MI Sept2
A6: Craig Singer | B6: 18267.01746 | E6: MI Oct
A7: Steve Andrews | B7: 17241.4006 | E7: TX Nov
A8: Andy Terpstra | B8: 15363.79345 | E8: NY Oct
A9: Zach Hoernemann | B9: 13307.32002 | E9: MD Sept
A10: Tom Tanner | B10: 13099.24131 | E10: MN Sept
A11: Mark Roe | B11: 11360.52973 | E11: MI May
A12: Tyler Helland | B12: 11274.2029 | E12: MI June
A13: Tom Palmer | B13: 11107.48374 | E13: MN May
A14: Rick Whitsell | B14: 10019.52979 | E14: Nats
A15: Matt Larson | B15: 9606.372249
A16: Peter Ellison | B16: 9407.536232
A17: McCoy Helland | B17: 8531.594203
A18: Caleb Smith | B18: 8462.865801
A19: Brian Lamb | B19: 8416.325869
A20: Charley Stephens | B20: 8216.325869
A21: Axis | B21: 8200
A22: Sydnee McKinzie | B22: 7364.285135
A23: Timothy Beckett | B23: 7364.285135
A24: Ginger Andrews | B24: 7221.19132
A25: Chris Pearce | B25: 6615.456304
A26: Matt Andrews | B26: 6432.104223
A27: Lee McKinzie | B27: 6046.410081
A28: Will Cover | B28: 5251.11453
A29: Rob Arena | B29: 4932.352941
A30: Nate Graham | B30: 4778.075758
A31: Brian Koehler | B31: 4742.099026
A32: Brandon Graham | B32: 4634.769027
A33: Marty Hayes | B33: 4494.720497
A34: Bryan Box | B34: 3943.333333
A35: William Tustin | B35: 3464.592133
A36: Carl Camurati | B36: 3342.222222
A37: Kevin Sundberg | B37: 3249.91837
A38: Isaac McKinzie | B38: 3241.966375
A39: David Simmons | B39: 2857.777778
A40: Weston Dodge | B40: 2728.888889
A41: Michael Smith | B41: 2574.292023
A42: Robert Stalnaker | B42: 2153.569766
A43: Holly Moore | B43: 1370
A44: John Zaruba | B44: 290
A45: Andrew Le | B45: 226.1538462
A46: Ted Buehring | B46: 70
A47: (blank)
A48: Grand Total | B48: 403390

Sheet ScoreList
A1: Event ID | B1: Battle ID | C1: Battle Type | D1: Captain | E1: Class | F1: Score | G1: Damage | H1: Sink | I1: All Sorties | J1: Individual Pts
A2: MI July | B2: Sat 1 | C2: Fleet | D2: Kas Gaigalas | E2: 6 | F2: 1700 | G2: 820 | H2: 0 | I2: 1
A3: MI July | B3: Sat 1 | C3: Fleet | D3: Weston Dodge | E3: 4 | F3: 680 | G3: 1340 | H3: 1 | I3: 0
A4: MI July | B4: Sat 1 | C4: Fleet | D4: Craig Singer | E4: 5 | F4: 777.6 | G4: 650 | H4: 0 | I4: 1
A5: MI July | B5: Sat 1 | C5: Fleet | D5: Will Cover | E5: 4 | F5: 691.2 | G5: 850 | H5: 0 | I5: 1
A6: MI July | B6: Sat 1 | C6: Fleet | D6: Mark Roe | E6: 4 | F6: 691.2 | G6: 880 | H6: 0 | I6: 1
A7: MI July | B7: Sat 2 | C7: Fleet | D7: Kas Gaigalas | E7: 6 | F7: 2561.111111 | G7: 730 | H7: 0 | I7: 1
A8: MI July | B8: Sat 2 | C8: Fleet | D8: Weston Dodge | E8: 4 | F8: 2048.888889 | G8: 790 | H8: 0 | I8: 1
A9: MI July | B9: Sat 2 | C9: Fleet | D9: Will Cover | E9: 4 | F9: 467.6923077 | G9: 1220 | H9: 0 | I9: 1
A10: MI July | B10: Sat 2 | C10: Fleet | D10: Mark Roe | E10: 4 | F10: 467.6923077 | G10: 500 | H10: 0 | I10: 1
A11: MI July | B11: Sat 2 | C11: Fleet | D11: Craig Singer | E11: 6 | F11: 184.6153846 | G11: 2890 | H11: 1 | I11: 1
A12: MI Aug | B12: Sat 1 | C12: Fleet | D12: Craig Singer | E12: 6 | F12: 377.7777778 | G12: 720 | H12: 0 | I12: 1
A13: MI Aug | B13: Sat 1 | C13: Fleet | D13: Mark Roe | E13: 4 | F13: 640 | G13: 300 | H13: 0 | I13: 1
A14: MI Aug | B14: Sat 1 | C14: Fleet | D14: Will Cover | E14: 4 | F14: 302.2222222 | G14: 720 | H14: 0 | I14: 1
A15: MI Aug | B15: Sat 1 | C15: Fleet | D15: Kas Gaigalas | E15: 6 | F15: 800 | G15: 380 | H15: 0 | I15: 1
A16: MI Aug | B16: Sat 2 | C16: Fleet | D16: Mark Roe | E16: 4 | F16: 702.2222222 | G16: 810 | H16: 0 | I16: 1
A17: MI Aug | B17: Sat 2 | C17: Fleet | D17: Craig Singer | E17: 6 | F17: 877.7777778 | G17: 620 | H17: 0 | I17: 1
A18: MI Aug | B18: Sat 2 | C18: Fleet | D18: Will Cover | E18: 4 | F18: 335.5555556 | G18: 1020 | H18: 0 | I18: 1
A19: MI Aug | B19: Sat 2 | C19: Fleet | D19: Kas Gaigalas | E19: 6 | F19: 794.4444444 | G19: 560 | H19: 0 | I19: 1
A20: MI Aug | B20: Sat 3 | C20: Fleet | D20: Craig Singer | E20: 6 | F20: 438.8888889 | G20: 850 | H20: 0 | I20: 1
A21: MI Aug | B21: Sat 3 | C21: Fleet | D21: Will Cover | E21: 4 | F21: 351.1111111 | G21: 590 | H21: 0 | I21: 1
A22: MI Aug | B22: Sat 3 | C22: Fleet | D22: Mark Roe | E22: 4 | F22: 640 | G22: 260 | H22: 0 | I22: 1
A23: MI Aug | B23: Sat 3 | C23: Fleet | D23: Kas Gaigalas | E23: 6 | F23: 800 | G23: 530 | H23: 0 | I23: 1
A24: MI Sept | B24: Sat 1 | C24: Fleet | D24: Kas Gaigalas | E24: 6 | F24: 1994.444444 | G24: 440 | H24: 0 | I24: 1
A25: MI Sept | B25: Sat 1 | C25: Fleet | D25: Mark Roe | E25: 4 | F25: 1595.555556 | G25: 980 | H25: 0 | I25: 1
A26: MI Sept | B26: Sat 1 | C26: Fleet | D26: Craig Singer | E26: 6 | F26: 710 | G26: 1360 | H26: 0 | I26: 1
A27: MI Sept | B27: Sat 1 | C27: Fleet | D27: Will Cover | E27: 6 | F27: 510 | G27: 2230 | H27: 1 | I27: 1
A28: MI Sept | B28: Sat 2 | C28: Fleet | D28: Will Cover | E28: 6 | F28: 500 | G28: 2150 | H28: 1 | I28: 1
A29: MI Sept | B29: Sat 2 | C29: Fleet | D29: Craig Singer | E29: 6 | F29: 700 | G29: 1040 | H29: 0 | I29: 1
A30: MI Sept | B30: Sat 2 | C30: Fleet | D30: Kas Gaigalas | E30: 6 | F30: 1772.222222 | G30: 640 | H30: 0 | I30: 1
A31: MI Sept | B31: Sat 2 | C31: Fleet | D31: Mark Roe | E31: 4 | F31: 1417.777778 | G31: 760 | H31: 0 | I31: 1
A32: MI Sept | B32: Sat 3 | C32: Fleet | D32: Craig Singer | E32: 6 | F32: 494.4444444 | G32: 3340 | H32: 1 | I32: 1
A33: MI Sept | B33: Sat 3 | C33: Fleet | D33: Mark Roe | E33: 4 | F33: 555.5555556 | G33: 270 | H33: 0 | I33: 1
A34: MI Sept | B34: Sat 3 | C34: Fleet | D34: Kas Gaigalas | E34: 6 | F34: 2005.555556 | G34: 340 | H34: 0 | I34: 1
A35: MI Sept | B35: Sat 3 | C35: Fleet | D35: Will Cover | E35: 4 | F35: 1604.444444 | G35: 910 | H35: 0 | I35: 1
A36: MI Sept2 | B36: Sat 1 | C36: Fleet | D36: Kas Gaigalas | E36: 6 | F36: 1570 | G36: 670 | H36: 0 | I36: 1
A37: MI Sept2 | B37: Sat 1 | C37: Fleet | D37: Craig Singer | E37: 6 | F37: 352.6315789 | G37: 630 | H37: 0 | I37: 1
A38: MI Sept2 | B38: Sat 1 | C38: Fleet | D38: Mark Roe | E38: 5 | F38: 317.3684211 | G38: 940 | H38: 0 | I38: 1
A39: MI Oct | B39: Sat 1 | C39: Fleet | D39: Kas Gaigalas | E39: 2 | F39: 106.1538462 | G39: 20 | H39: 0 | I39: 1
A40: MI Oct | B40: Sat 1 | C40: Fleet | D40: Andrew Le | E40: 3 | F40: 123.8461538 | G40: 70 | H40: 0 | I40: 1
A41: MI Oct | B41: Sat 1 | C41: Fleet | D41: Mark Roe | E41: 4 | F41: 90 | G41: 230 | H41: 0 | I41: 1
A42: MI Oct | B42: Sat 2 | C42: Fleet | D42: Andrew Le | E42: 3 | F42: 102.3076923 | G42: 10 | H42: 0 | I42: 1
A43: MI Oct | B43: Sat 2 | C43: Fleet | D43: Kas Gaigalas | E43: 2 | F43: 87.69230769 | G43: 80 | H43: 0 | I43: 1
A44: MI Oct | B44: Sat 2 | C44: Fleet | D44: Mark Roe | E44: 4 | F44: 90 | G44: 190 | H44: 0 | I44: 1
A45: TX Nov | B45: Sat 1 | C45: Fleet | D45: Ted Buehring | E45: 3 | F45: 70 | G45: 290 | H45: 0 | I45: 1
A46: TX Nov | B46: Sat 1 | C46: Fleet | D46: John Zaruba | E46: 2 | F46: 290 | G46: 70 | H46: 0 | I46: 1
A47: TX Nov | B47: Sat 2 | C47: Fleet | D47: Ted Buehring | E47: 3 | F47: 0 | G47: 580 | H47: 0 | I47: 1
A48: TX Nov | B48: Sat 2 | C48: Fleet | D48: John Zaruba | E48: 2 | F48: 0 | G48: 50 | H48: 0 | I48: 1
A49: NY Oct | B49: Sat 1 | C49: Fleet | D49: Steve Andrews | E49: 4 | F49: 792.9411765 | G49: 1570 | H49: 1 | I49: 1
A50: NY Oct | B50: Sat 1 | C50: Fleet | D50: David Simmons | E50: 4 | F50: 1720 | G50: 950 | H50: 0 | I50: 1
A51: NY Oct | B51: Sat 1 | C51: Fleet | D51: Rob Arena | E51: 5 | F51: 917.0588235 | G51: 1870 | H51: 1 | I51: 1
A52: NY Oct | B52: Sat 1 | C52: Fleet | D52: Carl Camurati | E52: 4 | F52: 1720 | G52: 1160 | H52: 0 | I52: 1
A53: NY Oct | B53: Sat 2 | C53: Fleet | D53: David Simmons | E53: 4 | F53: 1000 | G53: 3060 | H53: 2 | I53: 1
A54: NY Oct | B54: Sat 2 | C54: Fleet | D54: Carl Camurati | E54: 4 | F54: 1200 | G54: 1050 | H54: 0 | I54: 1
A55: NY Oct | B55: Sat 2 | C55: Fleet | D55: Steve Andrews | E55: 4 | F55: 1934.117647 | G55: 790 | H55: 0 | I55: 1
A56: NY Oct | B56: Sat 2 | C56: Fleet | D56: Rob Arena | E56: 5 | F56: 1775.882353 | G56: 1610 | H56: 1 | I56: 1
A57: NY Oct | B57: Sun 1 | C57: Fleet | D57: David Simmons | E57: 4 | F57: 137.7777778 | G57: 1520 | H57: 1 | I57: 1
A58: NY Oct | B58: Sun 1 | C58: Fleet | D58: Rob Arena | E58: 5 | F58: 2239.411765 | G58: 400 | H58: 0 | I58: 1
A59: NY Oct | B59: Sun 1 | C59: Fleet | D59: Steve Andrews | E59: 4 | F59: 1990.588235 | G59: 360 | H59: 0 | I59: 1
A60: NY Oct | B60: Sun 1 | C60: Fleet | D60: Carl Camurati | E60: 7 | F60: 422.2222222 | G60: 2710 | H60: 0 | I60: 1
A61: MD Sept | B61: Sat 1 | C61: Fleet | D61: Steve Andrews | E61: 4 | F61: 1136.842105 | G61: 2080 | H61: 1 | I61: 1
A62: MD Sept | B62: Sat 1 | C62: Fleet | D62: Nate Graham | E62: 1 | F62: 782.8571429 | G62: 30 | H62: 0 | I62: 1
A63: MD Sept | B63: Sat 1 | C63: Fleet | D63: Tom Tanner | E63: 4 | F63: 568.4210526 | G63: 1870 | H63: 1 | I63: 0
A64: MD Sept | B64: Sat 1 | C64: Fleet | D64: Tom Tanner | E64: 3 | F64: 672.3684211 | G64: 1260 | H64: 1 | I64: 0
A65: MD Sept | B65: Sat 1 | C65: Fleet | D65: Ginger Andrews | E65: 3 | F65: 672.3684211 | G65: 270 | H65: 0 | I65: 0
A66: MD Sept | B66: Sat 1 | C66: Fleet | D66: Kevin Plumer | E66: 5 | F66: 1761.428571 | G66: 2180 | H66: 0 | I66: 1
A67: MD Sept | B67: Sat 1 | C67: Fleet | D67: Holly Moore | E67: 3 | F67: 1370 | G67: 10 | H67: 0 | I67: 1
A68: MD Sept | B68: Sat 1 | C68: Fleet | D68: Marty Hayes | E68: 4 | F68: 1365.714286 | G68: 1430 | H68: 1 | I68: 1
A69: MD Sept | B69: Sat 2 | C69: Fleet | D69: Ginger Andrews | E69: 3 | F69: 1310.4 | G69: 100 | H69: 0 | I69: 1
A70: MD Sept | B70: Sat 2 | C70: Fleet | D70: Matt Andrews | E70: 5 | F70: 884.8 | G70: 1140 | H70: 0 | I70: 1
A71: MD Sept | B71: Sat 2 | C71: Fleet | D71: Steve Andrews | E71: 4 | F71: 1348.571429 | G71: 1070 | H71: 0 | I71: 1
A72: MD Sept | B72: Sat 2 | C72: Fleet | D72: Marty Hayes | E72: 4 | F72: 1348.571429 | G72: 690 | H72: 0 | I72: 1
A73: MD Sept | B73: Sat 2 | C73: Fleet | D73: Nate Graham | E73: 1 | F73: 137.1428571 | G73: 400 | H73: 1 | I73: 0
A74: MD Sept | B74: Sat 2 | C74: Fleet | D74: Nate Graham | E74: 1 | F74: 337.1428571 | G74: 0 | H74: 0 | I74: 0
A75: MD Sept | B75: Sat 2 | C75: Fleet | D75: Kevin Plumer | E75: 5 | F75: 1684.8 | G75: 3480 | H75: 0 | I75: 1
A76: MD Sept | B76: Sat 2 | C76: Fleet | D76: Tom Tanner | E76: 4 | F76: 1148.571429 | G76: 2520 | H76: 1 | I76: 1
A77: MD Sept | B77: Sun 1 | C77: Fleet | D77: Ginger Andrews | E77: 3 | F77: 1.136868377e-13 | G77: 10 | H77: 0 | I77: 0
A78: MD Sept | B78: Sun 1 | C78: Fleet | D78: Tom Tanner | E78: 4 | F78: 1834.782609 | G78: 2470 | H78: 1 | I78: 1
A79: MD Sept | B79: Sun 1 | C79: Fleet | D79: Steve Andrews | E79: 4 | F79: 1634.782609 | G79: 2470 | H79: 1 | I79: 1
A80: MD Sept | B80: Sun 1 | C80: Fleet | D80: Nate Graham | E80: 1 | F80: 800 | G80: 20 | H80: 0 | I80: 1
A81: MD Sept | B81: Sun 1 | C81: Fleet | D81: Matt Andrews | E81: 5 | F81: 1800 | G81: 2150 | H81: 0 | I81: 1
A82: MD Sept | B82: Sun 1 | C82: Fleet | D82: Kevin Plumer | E82: 5 | F82: 1600 | G82: 3670 | H82: 1 | I82: 1
A83: MD Sept | B83: Sun 1 | C83: Fleet | D83: Marty Hayes | E83: 3 | F83: 1780.434783 | G83: 160 | H83: 0 | I83: 1
A84: MN Sept | B84: Sat 1 | C84: Fleet | D84: Tyler Helland | E84: 6 | F84: 1642.424242 | G84: 1390 | H84: 0 | I84: 1
A85: MN Sept | B85: Sat 1 | C85: Fleet | D85: Andy Terpstra | E85: 5 | F85: 2606.086957 | G85: 1930 | H85: 0 | I85: 1
A86: MN Sept | B86: Sat 1 | C86: Fleet | D86: Bob Hoernemann | E86: 4 | F86: 2316.521739 | G86: 3360 | H86: 0 | I86: 1
A87: MN Sept | B87: Sat 1 | C87: Fleet | D87: Tom Palmer | E87: 4 | F87: 1113.939394 | G87: 2110 | H87: 1 | I87: 1
A88: MN Sept | B88: Sat 1 | C88: Fleet | D88: Peter Ellison | E88: 4 | F88: 1113.939394 | G88: 2340 | H88: 1 | I88: 1
A89: MN Sept | B89: Sat 1 | C89: Fleet | D89: McCoy Helland | E89: 3 | F89: 1149.69697 | G89: 820 | H89: 0 | I89: 1
A90: MN Sept | B90: Sat 1 | C90: Fleet | D90: Rick Whitsell | E90: 2 | F90: 1737.391304 | G90: 130 | H90: 0 | I90: 1
A91: MN Sept | B91: Sat 2 | C91: Fleet | D91: Tyler Helland | E91: 6 | F91: 2254.545455 | G91: 850 | H91: 0 | I91: 1
A92: MN Sept | B92: Sat 2 | C92: Fleet | D92: Andy Terpstra | E92: 5 | F92: 2962.173913 | G92: 2230 | H92: 0 | I92: 1
A93: MN Sept | B93: Sat 2 | C93: Fleet | D93: Bob Hoernemann | E93: 4 | F93: 2433.043478 | G93: 4590 | H93: 1 | I93: 1
A94: MN Sept | B94: Sat 2 | C94: Fleet | D94: Tom Palmer | E94: 4 | F94: 1603.636364 | G94: 2800 | H94: 1 | I94: 1
A95: MN Sept | B95: Sat 2 | C95: Fleet | D95: Peter Ellison | E95: 4 | F95: 1603.636364 | G95: 2450 | H95: 1 | I95: 1
A96: MN Sept | B96: Sat 2 | C96: Fleet | D96: Rick Whitsell | E96: 2 | F96: 1774.782609 | G96: 620 | H96: 1 | I96: 1
A97: MN Sept | B97: Sat 2 | C97: Fleet | D97: McCoy Helland | E97: 3 | F97: 1378.181818 | G97: 1470 | H97: 1 | I97: 1
A98: MN Sept | B98: Sat 3 | C98: Fleet | D98: Tyler Helland | E98: 6 | F98: 3436.363636 | G98: 1980 | H98: 0 | I98: 1
A99: MN Sept | B99: Sat 3 | C99: Fleet | D99: Andy Terpstra | E99: 5 | F99: 2390.434783 | G99: 3370 | H99: 1 | I99: 1
A100: MN Sept | B100: Sat 3 | C100: Fleet | D100: Bob Hoernemann | E100: 4 | F100: 2102.608696 | G100: 7950 | H100: 2 | I100: 1
A101: MN Sept | B101: Sat 3 | C101: Fleet | D101: Tom Palmer | E101: 4 | F101: 2749.090909 | G101: 2080 | H101: 0 | I101: 1
A102: MN Sept | B102: Sat 3 | C102: Fleet | D102: Peter Ellison | E102: 4 | F102: 2749.090909 | G102: 2010 | H102: 0 | I102: 1
A103: MN Sept | B103: Sat 3 | C103: Fleet | D103: Rick Whitsell | E103: 2 | F103: 1726.956522 | G103: 20 | H103: 0 | I103: 1
A104: MN Sept | B104: Sat 3 | C104: Fleet | D104: McCoy Helland | E104: 3 | F104: 2405.454545 | G104: 550 | H104: 0 | I104: 1
A105: MI May | B105: 1 1 | C105: Fleet | D105: Craig Singer | E105: 6 | F105: 278.9473684 | G105: 720 | H105: 0 | I105: 1
A106: MI May | B106: 1 1 | C106: Fleet | D106: Mark Roe | E106: 5 | F106: 51.05263158 | G106: 1860 | H106: 1 | I106: 1
A107: MI May | B107: 1 1 | C107: Fleet | D107: Kas Gaigalas | E107: 6 | F107: 2580 | G107: 530 | H107: 0 | I107: 1
A108: MI May | B108: 1 2 | C108: Fleet | D108: Craig Singer | E108: 6 | F108: 515.7894737 | G108: 470 | H108: 0 | I108: 1
A109: MI May | B109: 1 2 | C109: Fleet | D109: Mark Roe | E109: 5 | F109: 464.2105263 | G109: 1110 | H109: 0 | I109: 1
A110: MI May | B110: 1 2 | C110: Fleet | D110: Kas Gaigalas | E110: 6 | F110: 1580 | G110: 980 | H110: 0 | I110: 1
A111: MI May | B111: 1 2 | C111: Fleet | D111: Craig Singer | E111: 6 | F111: 515.7894737 | G111: 470 | H111: 0 | I111: 1
A112: MI May | B112: 1 2 | C112: Fleet | D112: Mark Roe | E112: 5 | F112: 464.2105263 | G112: 1110 | H112: 0 | I112: 1
A113: MI May | B113: 1 2 | C113: Fleet | D113: Kas Gaigalas | E113: 6 | F113: 1580 | G113: 980 | H113: 0 | I113: 1
A114: MI May | B114: 1 2 | C114: Fleet | D114: Craig Singer | E114: 6 | F114: 515.7894737 | G114: 470 | H114: 0 | I114: 1
A115: MI May | B115: 1 2 | C115: Fleet | D115: Mark Roe | E115: 5 | F115: 464.2105263 | G115: 1110 | H115: 0 | I115: 1
A116: MI May | B116: 1 2 | C116: Fleet | D116: Kas Gaigalas | E116: 6 | F116: 1580 | G116: 980 | H116: 0 | I116: 1
A117: MI May | B117: 1 3 | C117: Fleet | D117: Craig Singer | E117: 6 | F117: 378.9473684 | G117: 730 | H117: 0 | I117: 1
A118: MI May | B118: 1 3 | C118: Fleet | D118: Mark Roe | E118: 5 | F118: 341.0526316 | G118: 1020 | H118: 0 | I118: 1
A119: MI May | B119: 1 3 | C119: Fleet | D119: Kas Gaigalas | E119: 6 | F119: 1750 | G119: 720 | H119: 0 | I119: 1
A120: MI June | B120: 1 1 | C120: Fleet | D120: Mark Roe | E120: 5 | F120: 2368.421053 | G120: 1080 | H120: 0 | I120: 1
A121: MI June | B121: 1 1 | C121: Fleet | D121: Kas Gaigalas | E121: 6 | F121: 2631.578947 | G121: 470 | H121: 0 | I121: 1
A122: MI June | B122: 1 1 | C122: Fleet | D122: Craig Singer | E122: 6 | F122: 661.1111111 | G122: 2730 | H122: 1 | I122: 1
A123: MI June | B123: 1 1 | C123: Fleet | D123: Will Cover | E123: 4 | F123: 488.8888889 | G123: 2270 | H123: 1 | I123: 1
A124: MN May | B124: 1 1 | C124: Fleet | D124: Bob Hoernemann | E124: 6 | F124: 2385.185185 | G124: 2000 | H124: 1 | I124: 1
A125: MN May | B125: 1 1 | C125: Fleet | D125: Bryan Box | E125: 5 | F125: 2126.666667 | G125: 1400 | H125: 1 | I125: 1
A126: MN May | B126: 1 1 | C126: Fleet | D126: Zach Hoernemann | E126: 4 | F126: 1868.148148 | G126: 1780 | H126: 1 | I126: 1
A127: MN May | B127: 1 1 | C127: Fleet | D127: Tyler Helland | E127: 4 | F127: 1601.73913 | G127: 3420 | H127: 1 | I127: 1
A128: MN May | B128: 1 1 | C128: Fleet | D128: Peter Ellison | E128: 4 | F128: 1601.73913 | G128: 1970 | H128: 1 | I128: 1
A129: MN May | B129: 1 1 | C129: Fleet | D129: McCoy Helland | E129: 3 | F129: 1376.521739 | G129: 1590 | H129: 1 | I129: 1
A130: MN May | B130: 1 2 | C130: Fleet | D130: Bob Hoernemann | E130: 6 | F130: 2240.740741 | G130: 2000 | H130: 0 | I130: 1
A131: MN May | B131: 1 2 | C131: Fleet | D131: Bryan Box | E131: 5 | F131: 1816.666667 | G131: 2910 | H131: 2 | I131: 1
A132: MN May | B132: 1 2 | C132: Fleet | D132: Zach Hoernemann | E132: 4 | F132: 1592.592593 | G132: 2390 | H132: 1 | I132: 1
A133: MN May | B133: 1 2 | C133: Fleet | D133: Tyler Helland | E133: 4 | F133: 2339.130435 | G133: 3100 | H133: 1 | I133: 1
A134: MN May | B134: 1 2 | C134: Fleet | D134: Peter Ellison | E134: 4 | F134: 2339.130435 | G134: 2730 | H134: 1 | I134: 1
A135: MN May | B135: 1 2 | C135: Fleet | D135: McCoy Helland | E135: 3 | F135: 2221.73913 | G135: 220 | H135: 0 | I135: 1
A136: Nats | B136: 1 1 | C136: Fleet | D136: Kevin Sundberg | E136: 4 | F136: 987.4074074 | G136: 70 | H136: 0 | I136: 1 | K136: =IF(H136=1,0,G136) -> 70
A137: Nats | B137: 1 1 | C137: Fleet | D137: Ginger Andrews | E137: 3 | F137: 863.9814815 | G137: 920 | H137: 0 | I137: 1 | K137: 920
A138: Nats | B138: 1 1 | C138: Fleet | D138: William Tustin | E138: 6 | F138: 617.1296296 | G138: 2840 | H138: 1 | I138: 0 | K138: 0
A139: Nats | B139: 1 1 | C139: Fleet | D139: Nate Graham | E139: 1 | F139: 493.7037037 | G139: 10 | H139: 0 | I139: 1 | K139: 10
A140: Nats | B140: 1 1 | C140: Fleet | D140: Brandon Graham | E140: 4 | F140: 987.4074074 | G140: 1300 | H140: 0 | I140: 1 | K140: 1300
A141: Nats | B141: 1 1 | C141: Fleet | D141: Tom Palmer | E141: 5 | F141: 1110.833333 | G141: 800 | H141: 0 | I141: 1 | K141: 800
A142: Nats | B142: 1 1 | C142: Fleet | D142: Rick Whitsell | E142: 2 | F142: 740.5555556 | G142: 330 | H142: 0 | I142: 1 | K142: 330
A143: Nats | B143: 1 1 | C143: Fleet | D143: Kas Gaigalas | E143: 6 | F143: 1234.259259 | G143: 1430 | H143: 0 | I143: 1 | K143: 1430
A144: Nats | B144: 1 1 | C144: Fleet | D144: Brian Koehler | E144: 2 | F144: 740.5555556 | G144: 50 | H144: 0 | I144: 1 | K144: 50
A145: Nats | B145: 1 1 | C145: Fleet | D145: Robert Stalnaker | E145: 5 | F145: 910.8333333 | G145: 1300 | H145: 1 | I145: 1 | K145: 0
A146: Nats | B146: 1 1 | C146: Fleet | D146: Caleb Smith | E146: 4 | F146: 787.4074074 | G146: 3070 | H146: 1 | I146: 1 | K146: 0
A147: Nats | B147: 1 1 | C147: Fleet | D147: Chris Pearce | E147: 4 | F147: 800.8695652 | G147: 20 | H147: 0 | I147: 0 | K147: 20
A148: Nats | B148: 1 1 | C148: Fleet | D148: Matt Andrews | E148: 6 | F148: 234.2592593 | G148: 1130 | H148: 0 | I148: 1 | K148: 1130
A149: Nats | B149: 1 1 | C149: Fleet | D149: Charley Stephens | E149: 4 | F149: 1601.73913 | G149: 1430 | H149: 0 | I149: 1 | K149: 1430
A150: Nats | B150: 1 1 | C150: Fleet | D150: Isaac McKinzie | E150: 1 | F150: 800.8695652 | G150: 250 | H150: 0 | I150: 1 | K150: 250
A151: Nats | B151: 1 1 | C151: Fleet | D151: Bob Hoernemann | E151: 6 | F151: 1702.173913 | G151: 2260 | H151: 1 | I151: 1 | K151: 0
A152: Nats | B152: 1 1 | C152: Fleet | D152: Andy Terpstra | E152: 4 | F152: 1401.73913 | G152: 1180 | H152: 0 | I152: 1 | K152: 1180
A153: Nats | B153: 1 1 | C153: Fleet | D153: Sydnee McKinzie | E153: 3 | F153: 1401.521739 | G153: 290 | H153: 0 | I153: 1 | K153: 290
A154: Nats | B154: 1 1 | C154: Fleet | D154: Matt Larson | E154: 6 | F154: 1802.173913 | G154: 1830 | H154: 1 | I154: 1 | K154: 0
A155: Nats | B155: 1 1 | C155: Fleet | D155: Zach Hoernemann | E155: 4 | F155: 1601.73913 | G155: 730 | H155: 0 | I155: 1 | K155: 730
A156: Nats | B156: 1 1 | C156: Fleet | D156: Timothy Beckett | E156: 3 | F156: 1401.521739 | G156: 130 | H156: 0 | I156: 1 | K156: 130
A157: Nats | B157: 1 1 | C157: Fleet | D157: Brian Lamb | E157: 4 | F157: 1601.73913 | G157: 570 | H157: 0 | I157: 1 | K157: 570
A158: Nats | B158: 1 1 | C158: Fleet | D158: Tom Tanner | E158: 4 | F158: 1401.73913 | G158: 440 | H158: 0 | I158: 1 | K158: 440
A159: Nats | B159: 1 1 | C159: Fleet | D159: Steve Andrews | E159: 4 | F159: 787.4074074 | G159: 3170 | H159: 1 | I159: 1 | K159: 0
A160: Nats | B160: 1 1 | C160: Fleet | D160: Craig Singer | E160: 6 | F160: 1802.173913 | G160: 4200 | H160: 1 | I160: 1 | K160: 0
A161: Nats | B161: 1 1 | C161: Fleet | D161: Kevin Plumer | E161: 7 | F161: 1234.259259 | G161: 2000 | H161: 0 | I161: 1 | K161: 2000
A162: Nats | B162: 1 2 | C162: Fleet | D162: Craig Singer | E162: 6 | F162: 1800 | G162: 1330 | H162: 0 | I162: 1 | K162: 1330
A163: Nats | B163: 1 2 | C163: Fleet | D163: Caleb Smith | E163: 4 | F163: 721.2785388 | G163: 1550 | H163: 0 | I163: 1 | K163: 1550
A164: Nats | B164: 1 2 | C164: Fleet | D164: Steve Andrews | E164: 4 | F164: 921.2785388 | G164: 1140 | H164: 0 | I164: 1 | K164: 1140
A165: Nats | B165: 1 2 | C165: Fleet | D165: Tom Palmer | E165: 5 | F165: 836.4383562 | G165: 3220 | H165: 1 | I165: 1 | K165: 0
A166: Nats | B166: 1 2 | C166: Fleet | D166: William Tustin | E166: 5 | F166: 836.4383562 | G166: 2480 | H166: 1 | I166: 1 | K166: 0
A167: Nats | B167: 1 2 | C167: Fleet | D167: Bob Hoernemann | E167: 6 | F167: 1600 | G167: 1460 | H167: 1 | I167: 1 | K167: 0
A168: Nats | B168: 1 2 | C168: Fleet | D168: Charley Stephens | E168: 4 | F168: 1440 | G168: 830 | H168: 0 | I168: 1 | K168: 830
A169: Nats | B169: 1 2 | C169: Fleet | D169: Andy Terpstra | E169: 4 | F169: 1240 | G169: 3450 | H169: 1 | I169: 1 | K169: 0
A170: Nats | B170: 1 2 | C170: Fleet | D170: Ginger Andrews | E170: 3 | F170: 806.1187215 | G170: 320 | H170: 0 | I170: 1 | K170: 320
A171: Nats | B171: 1 2 | C171: Fleet | D171: Brandon Graham | E171: 4 | F171: 921.2785388 | G171: 810 | H171: 0 | I171: 1 | K171: 810
A172: Nats | B172: 1 2 | C172: Fleet | D172: Kevin Sundberg | E172: 4 | F172: 921.2785388 | G172: 30 | H172: 0 | I172: 1 | K172: 30
A173: Nats | B173: 1 2 | C173: Fleet | D173: Matt Andrews | E173: 5 | F173: 418.2191781 | G173: 2620 | H173: 1 | I173: 0 | K173: 0
A174: Nats | B174: 1 2 | C174: Fleet | D174: Kevin Plumer | E174: 7 | F174: 1151.598174 | G174: 1150 | H174: 0 | I174: 1 | K174: 1150
A175: Nats | B175: 1 2 | C175: Fleet | D175: Tom Tanner | E175: 4 | F175: 1440 | G175: 370 | H175: 0 | I175: 1 | K175: 370
A176: Nats | B176: 1 2 | C176: Fleet | D176: Brian Koehler | E176: 5 | F176: 836.4383562 | G176: 1780 | H176: 1 | I176: 1 | K176: 0
A177: Nats | B177: 1 2 | C177: Fleet | D177: Zach Hoernemann | E177: 3 | F177: 630 | G177: 150 | H177: 0 | I177: 0 | K177: 150
A178: Nats | B178: 1 2 | C178: Fleet | D178: Zach Hoernemann | E178: 4 | F178: 720 | G178: 1200 | H178: 1 | I178: 0 | K178: 0
A179: Nats | B179: 1 2 | C179: Fleet | D179: Matt Larson | E179: 6 | F179: 1600 | G179: 870 | H179: 0 | I179: 1 | K179: 870
A180: Nats | B180: 1 2 | C180: Fleet | D180: Robert Stalnaker | E180: 5 | F180: 836.4383562 | G180: 1210 | H180: 1 | I180: 1 | K180: 0
A181: Nats | B181: 1 2 | C181: Fleet | D181: Rick Whitsell | E181: 2 | F181: 690.9589041 | G181: 90 | H181: 0 | I181: 1 | K181: 90
A182: Nats | B182: 1 2 | C182: Fleet | D182: Nate Graham | E182: 1 | F182: 460.6392694 | G182: 150 | H182: 0 | I182: 1 | K182: 150
A183: Nats | B183: 1 2 | C183: Fleet | D183: Brian Lamb | E183: 4 | F183: 1440 | G183: 1270 | H183: 0 | I183: 1 | K183: 1270
A184: Nats | B184: 1 2 | C184: Fleet | D184: Kas Gaigalas | E184: 6 | F184: 951.5981735 | G184: 640 | H184: 0 | I184: 1 | K184: 640
A185: Nats | B185: 1 2 | C185: Fleet | D185: Sydnee McKinzie | E185: 3 | F185: 1260 | G185: 380 | H185: 0 | I185: 1 | K185: 380
A186: Nats | B186: 1 2 | C186: Fleet | D186: Timothy Beckett | E186: 3 | F186: 1260 | G186: 200 | H186: 0 | I186: 1 | K186: 200
A187: Nats | B187: 1 2 | C187: Fleet | D187: Isaac McKinzie | E187: 1 | F187: 520 | G187: 490 | H187: 1 | I187: 1 | K187: 0
A188: Nats | B188: 1 2 | C188: Fleet | D188: Chris Pearce | E188: 4 | F188: 1240 | G188: 610 | H188: 0 | I188: 1 | K188: 610
A189: Nats | B189: Tues 1 | C189: Fleet | D189: Andy Terpstra | E189: 4 | F189: 1477.6 | G189: 2070 | H189: 0 | I189: 1 | K189: 2070
A190: Nats | B190: Tues 1 | C190: Fleet | D190: William Tustin | E190: 6 | F190: 773.655914 | G190: 2650 | H190: 1 | I190: 0 | K190: 0
A191: Nats | B191: Tues 1 | C191: Fleet | D191: Tom Tanner | E191: 4 | F191: 1477.6 | G191: 820 | H191: 0 | I191: 1 | K191: 820
A192: Nats | B192: Tues 1 | C192: Fleet | D192: Tom Palmer | E192: 5 | F192: 1392.580645 | G192: 910 | H192: 0 | I192: 1 | K192: 910
A193: Nats | B193: Tues 1 | C193: Fleet | D193: Kevin Sundberg | E193: 4 | F193: 618.9247312 | G193: 1130 | H193: 1 | I193: 0 | K193: 0
A194: Nats | B194: Tues 1 | C194: Fleet | D194: Brian Lamb | E194: 4 | F194: 1477.6 | G194: 760 | H194: 0 | I194: 1 | K194: 760
A195: Nats | B195: Tues 1 | C195: Fleet | D195: Brian Koehler | E195: 5 | F195: 1392.580645 | G195: 270 | H195: 0 | I195: 1 | K195: 270
A196: Nats | B196: Tues 1 | C196: Fleet | D196: Rick Whitsell | E196: 2 | F196: 928.3870968 | G196: 790 | H196: 0 | I196: 1 | K196: 790
A197: Nats | B197: Tues 1 | C197: Fleet | D197: Brandon Graham | E197: 4 | F197: 1237.849462 | G197: 1820 | H197: 0 | I197: 1 | K197: 1820
A198: Nats | B198: Tues 1 | C198: Fleet | D198: Ginger Andrews | E198: 3 | F198: 1083.11828 | G198: 390 | H198: 0 | I198: 1 | K198: 390
A199: Nats | B199: Tues 1 | C199: Fleet | D199: Charley Stephens | E199: 4 | F199: 1477.6 | G199: 1370 | H199: 0 | I199: 1 | K199: 1370
A200: Nats | B200: Tues 1 | C200: Fleet | D200: Lee McKinzie | E200: 5 | F200: 1662.3 | G200: 870 | H200: 0 | I200: 1 | K200: =IF(H200=1,0,G200) -> 870
... 110 more rows

Sheet BattleSummary
A1: Event | I1: Award | J1: Captain | K1: Score | L1: Tie? | O1: List of Battles | Q1: Points | R1: Class | AA1: Battles | AB1: Class | AJ1: Average | AK1: Class | AS1: Individual
I2: Individual | J2: N/A | K2: 0 | L2: Yes | O2: MI July | Q2: Captain | R2: 1 | S2: 2 | T2: 3 | U2: 4 | V2: 5 | W2: 6 | X2: 7 | AA2: Captain | AB2: 1 | AC2: 2 | AD2: 3 | AE2: 4 | AF2: 5 | AG2: 6 | AH2: 7 | AJ2: Captain | AK2: 1 | AL2: 2 | AM2: 3 | AN2: 4 | AO2: 5 | AP2: 6 | AQ2: 7 | AS2: Captain | AT2: Points
A3: Fleet Battles | B3: 8 | I3: Most Damaged (w/ sink) | J3: Michael Smith | K3: 4330 | O3: MI Aug | Q3: Kevin Sundberg | U3: 3249.91837 | AA3: Kevin Sundberg | AE3: 4 | AJ3: Kevin Sundberg | AN3: 406.2397962 | AS3: Kevin Sundberg | AT3: 0
I4: Most Damaged (w/o sink) | J4: Brandon Graham | K4: 3020 | O4: MI Sept | Q4: Ginger Andrews | T4: 4230.422898 | AA4: Ginger Andrews | AD4: 5 | AJ4: Ginger Andrews | AM4: 423.0422898 | AS4: Ginger Andrews | AT4: 0
O5: MI Sept2 | Q5: William Tustin | U5: 765.9259259 | V5: 836.4383562 | W5: 1842.227851 | AA5: William Tustin | AE5: 1 | AF5: 1 | AG5: 3 | AJ5: William Tustin | AN5: 382.962963 | AO5: 418.2191781 | AP5: 307.0379752 | AS5: William Tustin | AT5: 0
O6: MI Oct | Q6: Nate Graham | R6: 2610.932901 | AA6: Nate Graham | AB6: 6 | AJ6: Nate Graham | AK6: 217.5777417 | AS6: Nate Graham | AT6: 0
A7: Fleet Battle Summary | I7: High Sortie Average | J7: Captain | K7: Score | L7: No. of Captains | M7: Tie? | O7: TX Nov | Q7: Brandon Graham | U7: 4634.769027 | AA7: Brandon Graham | AE7: 5 | AJ7: Brandon Graham | AN7: 463.4769027 | AS7: Brandon Graham | AT7: 0
A8: Battle | B8: Fleet 1 | C8: Fleet 1 Score | D8: Fleet 2 | E8: Fleet 2 Score | F8: Winning Fleet | G8: Points Difference | I8: Class 1 | J8: Isaac McKinzie | K8: 324.1966375 | L8: 3 | M8: No | O8: NY Oct | Q8: Tom Palmer | V8: 4832.817078 | AA8: Tom Palmer | AF8: 5 | AJ8: Tom Palmer | AO8: 483.2817078 | AS8: Tom Palmer | AT8: 0
A9: 1 1 | B9: Allied | C9: 12329.99902 | D9: Axis | E9: 17920.00195 | F9: Axis | G9: 5590.00293 | I9: Class 2 | J9: Brian Koehler | K9: 366.25 | L9: 2 | M9: No | O9: MD Sept | Q9: Rick Whitsell | S9: 3916.399351 | AA9: Rick Whitsell | AC9: 6 | AJ9: Rick Whitsell | AL9: 326.3666126 | AS9: Rick Whitsell | AT9: 0
A10: 1 2 | B10: Allied | C10: 12110.00098 | D10: Axis | E10: 16790 | F10: Axis | G10: 4679.999023 | I10: Class 3 | J10: Sydnee McKinzie | K10: 613.690428 | L10: 6 | M10: Yes | O10: MN Sept | Q10: Kas Gaigalas | W10: 6327.332251 | AA10: Kas Gaigalas | AG10: 6 | AJ10: Kas Gaigalas | AP10: 527.2776876 | AS10: Kas Gaigalas | AT10: 0
A11: Tues 1 | B11: Allied | C11: 14190 | D11: Axis | E11: 18070 | F11: Axis | G11: 3880 | I11: Class 4 | J11: Tom Tanner | K11: 760.5097799 | L11: 12 | M11: No | O11: MI May | Q11: Brian Koehler | S11: 1465 | V11: 3277.099026 | AA11: Brian Koehler | AC11: 2 | AF11: 4 | AJ11: Brian Koehler | AL11: 366.25 | AO11: 409.6373783 | AS11: Brian Koehler | AT11: 0
A12: Tues Campaign | B12: Allied | C12: 24850 | D12: Axis | E12: 5100 | F12: Allied | G12: 19750 | I12: Class 5 | J12: Lee McKinzie | K12: 755.8012601 | L12: 7 | M12: No | O12: MI June | Q12: Robert Stalnaker | V12: 2153.569766 | AA12: Robert Stalnaker | AF12: 3 | AJ12: Robert Stalnaker | AO12: 358.9282944 | AS12: Robert Stalnaker | AT12: 0
A13: Wed 1 | B13: Allied | C13: 3000 | D13: Axis | E13: 2930 | F13: Allied | G13: 70 | I13: Class 6 | J13: Matt Larson | K13: 960.6372249 | L13: 7 | M13: No | O13: MN May | Q13: Caleb Smith | U13: 4221.865801 | AA13: Caleb Smith | AE13: 6 | AJ13: Caleb Smith | AN13: 351.8221501 | AS13: Caleb Smith | AT13: 0
A14: Thur 1 | B14: Allied | C14: 9390 | D14: Axis | E14: 26419.99805 | F14: Axis | G14: 17029.99805 | I14: Class 7 | J14: Kevin Plumer | K14: 559.2018976 | L14: 1 | M14: No | O14: Nats | Q14: Chris Pearce | U14: 6615.456304 | AA14: Chris Pearce | AE14: 6 | AJ14: Chris Pearce | AN14: 551.2880253 | AS14: Chris Pearce | AT14: 0
A15: Thurs Campaign | B15: Allied | C15: 22550 | D15: Axis | E15: 3100 | F15: Allied | G15: 19450 | Q15: Matt Andrews | V15: 1367.850588 | W15: 1007.915173 | AA15: Matt Andrews | AF15: 3 | AG15: 2 | AJ15: Matt Andrews | AO15: 227.9750981 | AP15: 251.9787933 | AS15: Matt Andrews | AT15: 0
A16: Fri 1 | B16: Allied | C16: 11410 | D16: Axis | E16: 17370.00195 | F16: Axis | G16: 5960.001953 | Q16: Charley Stephens | U16: 8216.325869 | AA16: Charley Stephens | AE16: 6 | AJ16: Charley Stephens | AN16: =U16/(2*AE16) -> 684.6938224 | AS16: Charley Stephens | AT16: 0
Q17: Isaac McKinzie | R17: 3241.966375 | AA17: Isaac McKinzie | AB17: 5 | AJ17: Isaac McKinzie | AK17: 324.1966375 | AN17: =U17/(2*AE17) ->  | AS17: Isaac McKinzie | AT17: 0
Q18: Bob Hoernemann | W18: 9306.372249 | AA18: Bob Hoernemann | AG18: 5 | AJ18: Bob Hoernemann | AP18: 930.6372249 | AS18: Bob Hoernemann | AT18: 0
Q19: Andy Terpstra | U19: 7405.097799 | AA19: Andy Terpstra | AE19: 6 | AJ19: Andy Terpstra | AN19: 617.0914832 | AS19: Andy Terpstra | AT19: 0
Q20: Sydnee McKinzie | T20: 7364.285135 | AA20: Sydnee McKinzie | AD20: 6 | AJ20: Sydnee McKinzie | AM20: 613.690428 | AS20: Sydnee McKinzie | AT20: 0
Q21: Matt Larson | W21: 9606.372249 | AA21: Matt Larson | AG21: 5 | AJ21: Matt Larson | AP21: 960.6372249 | AS21: Matt Larson | AT21: 0
Q22: Zach Hoernemann | T22: 630 | U22: 7285.097799 | AA22: Zach Hoernemann | AD22: 1 | AE22: 6 | AJ22: Zach Hoernemann | AM22: 315 | AN22: 607.0914832 | AS22: Zach Hoernemann | AT22: 0
Q23: Timothy Beckett | T23: 7364.285135 | AA23: Timothy Beckett | AD23: 6 | AJ23: Timothy Beckett | AM23: 613.690428 | AS23: Timothy Beckett | AT23: 0
Q24: Brian Lamb | U24: 8416.325869 | AA24: Brian Lamb | AE24: 6 | AJ24: Brian Lamb | AN24: 701.3604891 | AS24: Brian Lamb | AT24: 0
Q25: Tom Tanner | U25: 7605.097799 | AA25: Tom Tanner | AE25: 6 | AJ25: Tom Tanner | AN25: 633.7581499 | AS25: Tom Tanner | AT25: 0
Q26: Steve Andrews | R26: 482.962963 | T26: 632.0192308 | U26: 3133.632183 | AA26: Steve Andrews | AB26: 1 | AD26: 1 | AE26: 4 | AJ26: Steve Andrews | AK26: 241.4814815 | AM26: 316.0096154 | AN26: 391.7040228 | AS26: Steve Andrews | AT26: 0
Q27: Craig Singer | W27: 8596.907336 | AA27: Craig Singer | AG27: 6 | AJ27: Craig Singer | AP27: 716.4089447 | AS27: Craig Singer | AT27: 0
Q28: Kevin Plumer | T28: 316.0096154 | U28: 387.0967742 | V28: 435.483871 | X28: 5592.018976 | AA28: Kevin Plumer | AD28: 1 | AE28: 1 | AF28: 1 | AH28: 5 | AJ28: Kevin Plumer | AM28: 158.0048077 | AN28: 193.5483871 | AO28: 217.7419355 | AQ28: 559.2018976 | AS28: Kevin Plumer | AT28: 0
Q29: Lee McKinzie | V29: 6046.410081 | AA29: Lee McKinzie | AF29: 4 | AJ29: Lee McKinzie | AO29: =V29/12 -> 503.8675068 | AS29: Lee McKinzie | AT29: 0
Q30: Allied | Y30: 47400 | AA30: Allied | AI30: 2 | AJ30: Allied | AS30: Allied | AT30: 0
Q31: Axis | Y31: 8200 | AA31: Axis | AI31: 2 | AJ31: Axis | AS31: Axis | AT31: 0
Q32: Michael Smith | W32: 1910.292023 | AA32: Michael Smith | AG32: 2 | AJ32: Michael Smith | AP32: 477.5730057 | AS32: Michael Smith | AT32: 0
AN37: =U25/AN25 -> 12

Sheet Nats Awards
A1: Awards | E1: Battle | F1: Fleet 1 | G1: Fleet 1 Score | H1: Fleet 2 | I1: Fleet 2 Score | J1: Winning Fleet | K1: Points Difference
A2: Fleet Award | B2: Allied | E2: Monday AM | F2: Allied | G2: 12329.99902 | H2: Axis | I2: 17920.00195 | J2: Axis | K2: 5590.00293
A3: Class 1 | B3: Isaac M. | E3: Monday PM | F3: Allied | G3: 12110.00098 | H3: Axis | I3: 16790 | J3: Axis | K3: 4679.999023
A4: Class 2 | B4: N/A | E4: Tues 1 | F4: Allied | G4: 14190 | H4: Axis | I4: 18070 | J4: Axis | K4: 3880
A5: Class 3 | B5: Sydnee M. / Tim B. | E5: Tues Campaign | F5: Allied | G5: 24850 | H5: Axis | I5: 5100 | J5: Allied | K5: 19750
A6: Class 4 | B6: Brian L. | E6: Wed 1 | F6: Allied | G6: 3000 | H6: Axis | I6: 2930 | J6: Allied | K6: 70
A7: Class 5 | B7: Lee M. | E7: Thur 1 | F7: Allied | G7: 9390 | H7: Axis | I7: 26419.99805 | J7: Axis | K7: 17029.99805
A8: Class 6 | B8: Matt L. | E8: Thurs Campaign | F8: Allied | G8: 22550 | H8: Axis | I8: 3100 | J8: Allied | K8: 19450
A9: Class 7 | B9: N/A | E9: Fri 1 | F9: Allied | G9: 11410 | H9: Axis | I9: 17370.00195 | J9: Axis | K9: 5960.001953
A10: Von Fluegel | B10: Kas G.
A11: Best of Scale Warship | B11: Brian K. - QE
A12: Best of Scale Convoy | B12: Tom P. - Saratoga
A13: Brian Spychalski Award | B13: Will T. | E13: Total | F13: Allied | G13: =SUM(G2:G12) -> 109830 | H13: Axis | I13: =SUM(I2:I12) -> 107700.002 | J13: =IF(G13>I13,F13,H13) -> Allied | K13: =ABS(G13-I13) -> 2129.998047
A14: Fire Stick Award | B14: Will T.
A15: Individual Combat Trophy | B15: Kevin P.
A16: Life Line Award | B16: Tom P. - Saratoga
A17: Most Damaged Sunk | B17: Mike S. - NC - 137-38-40
A18: Most Damaged NOT Sunk | B18: Brandon G. - Courbet - 44-15-76
A19: Ring of Death | B19: N/A
A20: Allied Most Feared | B20: Kevin P. - Missouri
A21: Axis Most Feared | B21: Isaac M - Capitani
A22: Rookie of the Year | B22: Caleb S.
A23: Axis Spirit | B23: Craig S.
A24: Allied Spirit | B24: Kevin P.
A25: Technology Award | B25: Will T.
A26: Most Spectacular Sink | B26: Matt A. - NC
A27: Best Ram | B27: Chris P.

Sheet Potential Cap List
A1: Captains 2019 | B1: Present? | C1: Current Member?
A2: Andy Terpstra | B2: 1 | C2: y
A3: Bob Hoernemann | B3: 1 | C3: y
A4: Brian Koehler | B4: 1 | C4: y
A5: Brian Lamb | B5: 1 | C5: y
A6: Caleb Smith | B6: 1 | C6: y
A7: Charley Stephens | B7: 1 | C7: y
A8: Chris Pearce | B8: 1 | C8: y
A9: Craig Singer | B9: 1 | C9: y
A10: Ginger Andrews | B10: 1 | C10: y
A11: Isaac McKinzie | B11: 1 | C11: y
A12: Kas Gaigalas | B12: 1 | C12: y
A13: Kevin Plumer | B13: 1 | C13: y
A14: Lee McKinzie | B14: 1 | C14: y
A15: Matt Andrews | B15: 1 | C15: y
A16: Michael Smith | B16: 1 | C16: y
A17: Nate Graham | B17: 1 | C17: y
A18: Rick Whitsell | B18: 1 | C18: y
A19: Robert Stalnaker | B19: 1 | C19: y
A20: Steve Andrews | B20: 1 | C20: y
A21: Sydnee McKinzie | B21: 1 | C21: y
A22: Timothy Beckett | B22: 1 | C22: y
A23: Tom Palmer | B23: 1 | C23: y
A24: Tom Tanner | B24: 1 | C24: y
A25: William Tustin | B25: 1 | C25: y
A26: Zach Hoernemann | B26: 1 | C26: y
A27: Brandon Graham | B27: 1 | C27: y
A28: Matt Larson | B28: 1 | C28: y
A29: Kevin Sundberg | B29: 1 | C29: y
A30: Andrew Le | C30: y
A31: Austin Stephens | C31: y
A32: Barry Tighe | C32: y
A33: Bill Byrnes | C33: y
A34: Bob Amend | C34: y
A35: Brandon Smith | C35: y
A36: Brennen Schultz | C36: y
A37: Bryan Box | C37: y
A38: Cameron Hunt | C38: y
A39: Carl Bitondo | C39: y
A40: Carl Camurati | C40: y
A41: Chase Hargraves | C41: y
A42: Chris Kessler | C42: y
A43: Christopher Gaigalas | C43: y
A44: Christopher Koehler | C44: y
A45: D.W. Fluegel | C45: y
A46: David Haynes | C46: y
A47: David Ranier | C47: y
A48: David Simmons | C48: y
A49: David Vogtman | C49: y
A50: Don Cole | C50: y
A51: Eric Bitondo | C51: y
A52: Erik Helland | C52: y
A53: Evan Fowler | C53: y
A54: Gary Powell | C54: y
A55: Gerald Roberts | C55: y
A56: Hadrian Tucker | C56: y
A57: Heiko Dewald | C57: y
A58: Holly Moore | C58: n
A59: Hudson Maiers | C59: y
A60: Jack Alvenus | C60: y
A61: James Foster | C61: y
A62: Jason Pagegala | C62: y
A63: Jason Schafer | C63: y
A64: Jeff Lide | C64: y
A65: Jeff Lipp | C65: y
A66: Jeffrey Poindexter | C66: y
A67: Joel Goodman | C67: y
A68: John Jones | C68: y
A69: John Kriner | C69: y
A70: John Zaruba | C70: y
A71: Johnny Adams | C71: y
A72: Justin Ragucci | C72: y
A73: Justin Stalnaker | C73: y
A74: Karl Smith | C74: y
A75: Ken Arena | C75: y
A76: Ken Kelly | C76: y
A77: Kyle Scott | C77: y
A78: Lewis Beckett | C78: y
A79: Lou Meszaros | C79: y
A80: Mark Kuntz | C80: y
A81: Mark Lide | C81: y
A82: Mark Roe | C82: y
A83: Marty Hayes | C83: y
A84: Mary Tighe | C84: y
A85: Matthew Webb | C85: y
A86: McCoy Helland | C86: y
A87: Michael Butts | C87: y
A88: Michael Pagegala | C88: y
A89: Michael Tanzillo | C89: y
A90: Michael Thomas | C90: y
A91: Mike Mangus | C91: y
A92: Nathan Thompson | C92: y
A93: Nick Myers | C93: y
A94: Paul Rye | C94: y
A95: Peter Ellison | C95: y
A96: Philip Pace | C96: y
A97: Plato Avramides | C97: y
A98: Randy Stiponovich | C98: y
A99: Rebecca Tustin | C99: y
A100: Rick King | C100: y
A101: Rick Schultz | C101: y
A102: Rob Arena | C102: y
A103: Robert Neumann | C103: y
A104: Ron Hunt | C104: y
A105: Sara Carter | C105: y
A106: Stan Watkins | C106: y
A107: Steve Crane | C107: y
A108: Ted Buehring | C108: y
A109: Travis Chezick | C109: y
A110: Trey Schultz | C110: y
A111: Tyler Helland | C111: y
A112: Wade Koehn | C112: y
A113: Weston Dodge | C113: y
A114: Will Cover | C114: y

Sheet Captain
A1: Captian | B1: Ship | C1: Class | D1: Units | H1: Enter "Convoy" for campaign battles
A2: Andy Terpstra | B2: Kongo | C2: 4 | D2: 4.5
A3: Bob Hoernemann | B3: Nagato | C3: 6 | D3: 6
A4: Brian Koehler | B4: QE | C4: 5 | D4: 5.5
A5: Brian Lamb | B5: Seydlitz | C5: 4 | D5: 4.5
A6: Caleb Smith | B6: Courbet | C6: 4 | D6: 4.5
A7: Charley Stephens | B7: Seydlitz | C7: 4 | D7: 4.5
A8: Chris Pearce | B8: Seydlitz | C8: 4 | D8: 4.5
A9: Craig Singer | B9: Nagato | C9: 6 | D9: 6
A10: Ginger Andrews | B10: Des Moines | C10: 3 | D10: 3.5
A11: Isaac McKinzie | B11: Capitani Romani | C11: 1 | D11: 1.5
A12: Kas Gaigalas | B12: Washington | C12: 6 | D12: 6
A13: Kevin Plumer | B13: Missouri | C13: 7 | D13: 8
A14: Lee McKinzie | B14: Baden | C14: 5 | D14: 5.5
A15: Matt Andrews | B15: NC | C15: 6 | D15: 6
A16: Michael Smith | B16: NC | C16: 6 | D16: 6
A17: Nate Graham | B17: Gearing | C17: 1 | D17: 1.5
A18: Rick Whitsell | B18: Jamaica | C18: 2 | D18: 2.5
A19: Robert Stalnaker | B19: Revenge | C19: 5 | D19: 5.5
A20: Steve Andrews | B20: Courbet | C20: 4 | D20: 4.5
A21: Sydnee McKinzie | B21: Radetzky | C21: 3 | D21: 3.5
A22: Timothy Beckett | B22: Foch | C22: 3 | D22: 3
A23: Tom Palmer | B23: Warspite | C23: 5 | D23: 5.5
A24: Tom Tanner | B24: Ostfriesland | C24: 4 | D24: 4
A25: William Tustin | B25: Jean Bart | C25: 6 | D25: 6.5
A26: Zach Hoernemann | B26: Kongo | C26: 4 | D26: 4.5
A27: Brandon Graham | B27: NC | C27: 6 | D27: 6
A28: Matt Larson | B28: Nagato | C28: 6 | D28: 6
A29: Kevin Sundberg | B29: Invincible | C29: 4 | D29: 4
A30: Justin Ragucci | B30: Ajax | C30: 2 | D30: 2.5
B31: Lutzow | C31: 3 | D31: 3.5
B32: Agincourt | C32: 5 | D32: 5.5
B33: Iron Duke | C33: 5 | D33: 5
B34: West Virginia | C34: 5 | D34: 5.5
B35: Fiji | C35: 2 | D35: 2.5
B36: Suffern | C36: 3 | D36: 3
B37: Torielle | C37: 2 | D37: 2.5
B38: Tromp | C38: 1 | D38: 1.5
B39: Connecticut | C39: 3 | D39: 3.5

Sheet Campaign Master
I1: Winner: | J1: =IF(K2>K3, B2, IF(K3>K2, B3, "Tie")) -> Tie | M1: Battle Location and Month (i.e. MD May) | N1: Nats | P1: Convoy Runs | W1: Sinks | AC1: Convoy Friendly Ram | AJ1: Ram Penalties
A2: Fleet 1 : | B2: Allied | F2: Fleet Points: | G2: =B15 -> 0 | H2: Fleet Penalties: | I2: =B16 -> 0 | J2: Fleet Score: | K2: =B17 -> 0 | M2: Battle Day | N2: Tues | P2: Captain | Q2: Fleet | R2: Ship | S2: Ship Length | T2: Number of Runs | U2: Points | W2: Captain | X2: Fleet | Y2: Ship | Z2: Class | AA2: Sink Points | AC2: Ramming Captain | AD2: Fleet | AE2: Convoy Ship | AF2: Convoy Captain | AG2: Ship Length | AH2: Points | AJ2: Ramming Captain | AK2: Fleet | AL2: Ram Type | AM2: Rammed Captain | AN2: Rammed Ship | AO2: Rammed Ship Class | AP2: Ram Sink | AQ2: Points
A3: Fleet 2 : | B3: Axis | F3: Fleet Points: | G3: =C15 -> 0 | H3: Fleet Penalties: | I3: =C16 -> 0 | J3: Fleet Score: | K3: =C17 -> 0
A5: Fleet: | B5: =B2 -> Allied | C5: =B3 -> Axis
A6: Targets Remaining:
A7: Target Points:
A8: Convoy Run Points:
A9: Scuttled Convoy Points:
A10: Sink Points:
A11: Convoy Friendly Ram Points:
A12: Ram Penalty Points:
A13: No Ship on Water Points:
A14: Convoy Run Every 10 Min Points:
A15: Total Points: | B15: =B7+B8+B9+B10+B11+B13+B14 -> 0 | C15: =C7+C8+C9+C10+C11+C13+C14 -> 0
A16: Total Penalties: | B16: =B12 -> 0 | C16: =C12 -> 0
A17: Fleet Score: | B17: =B15-B16 -> 0 | C17: =C15-C16 -> 0

Sheet Instructions
A2: Ensure that all participating captains/ships are entered into the Captian Tab.
A4: Make a COPY of the "Master Score Sheet" tab and rename it to the name of the battle to be scored.
A6: Enter Opposing Fleet Names into Cells B2 & B3
A8: Use the "Enter Score" button to enter the socres for ALL battlers in the battle.
B9: DO NOT CLOSE THE WINDOW UNTIL ALL SCORES ARE ENTERED
A11: Use the "Calculate Totals" button to finish the scoring of the battle
A13: The Winner will be displayed in Cell J1

Sheet Master Sheet
I1: Winner: | J1: =IF(K2>K3, B2, IF(K3>K2, B3, "Tie")) -> Allied | L1: Battle Type | M1: Battle Location and Month (i.e. MD May) | S1: Fleet
A2: Fleet 1 : | B2: Allied | D2: Fleet Units: | E2: 8 | F2: Fleet Weight: | G2: 10 | H2: Fleet Battle Damage: | I2: 600 | J2: Fleet Score: | K2: 1800 | M2: Battle Day | S2: Mini-Fleet
A3: Fleet 2 : | B3: Axis | D3: Fleet Units: | E3: 8 | F3: Fleet Weight: | G3: 10 | H3: Fleet Battle Damage: | I3: 1800 | J3: Fleet Score: | K3: 600 | M3: Battle Number | S3: Individual
A4: Captian | B4: Ship | C4: Fleet | D4: Class | E4: Units | F4: Above | G4: On | H4: Below | I4: Sinks | J4: Participate all Sorties | K4: Penalties Points | L4: 2nd Sortie Sink | M4: Damage Points | N4: Scored By | O4: Notes | P4: Weight Factor | Q4: Weight Points | R4: Captian | S4: Captain Points | T4: Indiv Points

Sheet Nats Fri TwovTwo
I1: Winner: | J1: =IF(K2>K3, B2, IF(K3>K2, B3, "Tie")) -> No Flag | L1: Battle Type | M1: Battle Location and Month (i.e. MD May) | N1: Nats | S1: Fleet
A2: Fleet 1 : | B2: Flag | D2: Fleet Units: | E2: 5.5 | F2: Fleet Weight: | G2: 12 | H2: Fleet Battle Damage: | I2: 2010 | J2: Fleet Score: | K2: 330 | M2: Battle Day | N2: Fri | S2: Mini-Fleet
A3: Fleet 2 : | B3: No Flag | D3: Fleet Units: | E3: 6.5 | F3: Fleet Weight: | G3: 13 | H3: Fleet Battle Damage: | I3: 330 | J3: Fleet Score: | K3: 2010 | M3: Battle Number | N3: TwovTwo | S3: Individual
A4: Captian | B4: Ship | C4: Fleet | D4: Class | E4: Units | F4: Above | G4: On | H4: Below | I4: Sinks | J4: Participate all Sorties | K4: Penalties Points | L4: 2nd Sortie Sink | M4: Damage Points | N4: Scored By | O4: Notes | P4: Weight Factor | Q4: Weight Points | R4: Captian | S4: Captain Points | T4: Indiv Points
A5: Matt Andrews | B5: Iron Duke | C5: No Flag | D5: 5 | E5: 5 | F5: 17 | G5: 1 | H5: 3 | I5: 0 | J5: 1 | K5: 0 | L5: 0 | M5: 280 | N5: Matt | O5: None,None,None | P5: 9 | Q5: 1391.538462 | R5: Matt Andrews | S5: 1391.538462 | T5: 1163.076923
A6: William Tustin | B6: Invincible | C6: Flag | D6: 4 | E6: 4 | F6: 45 | G6: 3 | H6: 19 | I6: 1 | J6: 1 | K6: 0 | L6: 1 | M6: 1880 | N6: Matt | O6: None,None,None | P6: 8 | Q6: 220 | R6: William Tustin | S6: 20 | T6: 0
A7: Nate Graham | B7: Gearing | C7: Flag | D7: 1 | E7: 1.5 | F7: 5 | G7: 1 | H7: 2 | I7: 0 | J7: 1 | K7: 0 | L7: 0 | M7: 130 | N7: Nate | O7: None,None,None | P7: 4 | Q7: 110 | R7: Nate Graham | S7: 110 | T7: 0
A8: Steve Andrews | B8: Tromp | C8: No Flag | D8: 1 | E8: 1.5 | F8: 5 | G8: 0 | H8: 0 | I8: 0 | J8: 1 | K8: 0 | L8: 0 | M8: 50 | N8: Steve | O8: None,None,None | P8: 4 | Q8: 618.4615385 | R8: Steve Andrews | S8: 618.4615385 | T8: 516.9230769

Sheet Nats Fri CalebTom
I1: Winner: | J1: =IF(K2>K3, B2, IF(K3>K2, B3, "Tie")) -> Caleb | L1: Battle Type | M1: Battle Location and Month (i.e. MD May) | N1: Nats | S1: Fleet
A2: Fleet 1 : | B2: Caleb | D2: Fleet Units: | E2: 4.5 | F2: Fleet Weight: | G2: 8 | H2: Fleet Battle Damage: | I2: 1270 | J2: Fleet Score: | K2: 2060 | M2: Battle Day | N2: Fri | S2: Mini-Fleet
A3: Fleet 2 : | B3: Tom | D3: Fleet Units: | E3: 4 | F3: Fleet Weight: | G3: 8 | H3: Fleet Battle Damage: | I3: 2060 | J3: Fleet Score: | K3: 1270 | M3: Battle Number | N3: CalebTom | S3: Individual
A4: Captian | B4: Ship | C4: Fleet | D4: Class | E4: Units | F4: Above | G4: On | H4: Below | I4: Sinks | J4: Participate all Sorties | K4: Penalties Points | L4: 2nd Sortie Sink | M4: Damage Points | N4: Scored By | O4: Notes | P4: Weight Factor | Q4: Weight Points | R4: Captian | S4: Captain Points | T4: Indiv Points
A5: Caleb Smith | B5: Courbet | C5: Caleb | D5: 4 | E5: 4.5 | F5: 53 | G5: 10 | H5: 18 | I5: 0 | J5: 1 | K5: 0 | L5: 0 | M5: 1270 | N5: Tom | O5: None,None,None | P5: 8 | Q5: 2060 | R5: Caleb Smith | S5: 2060
A6: Tom Tanner | B6: Ostfriesland | C6: Tom | D6: 4 | E6: 4 | F6: 55 | G6: 14 | H6: 41 | I6: 0 | J6: 1 | K6: 0 | L6: 0 | M6: 2060 | N6: Caleb | O6: None,None,None | P6: 8 | Q6: 1270 | R6: Tom Tanner | S6: 1270

Sheet Nats Fri KevVCraig
I1: Winner: | J1: =IF(K2>K3, B2, IF(K3>K2, B3, "Tie")) -> Kevin | L1: Battle Type | M1: Battle Location and Month (i.e. MD May) | N1: Nats | S1: Fleet
A2: Fleet 1 : | B2: Kevin | D2: Fleet Units: | E2: 5.5 | F2: Fleet Weight: | G2: 9 | H2: Fleet Battle Damage: | I2: 1640 | J2: Fleet Score: | K2: 4640 | M2: Battle Day | N2: Fri | S2: Mini-Fleet
A3: Fleet 2 : | B3: Craig | D3: Fleet Units: | E3: 6 | F3: Fleet Weight: | G3: 10 | H3: Fleet Battle Damage: | I3: 4640 | J3: Fleet Score: | K3: 1640 | M3: Battle Number | N3: KevVCraig | S3: Individual
A4: Captian | B4: Ship | C4: Fleet | D4: Class | E4: Units | F4: Above | G4: On | H4: Below | I4: Sinks | J4: Participate all Sorties | K4: Penalties Points | L4: 2nd Sortie Sink | M4: Damage Points | N4: Scored By | O4: Notes | P4: Weight Factor | Q4: Weight Points | R4: Captian | S4: Captain Points | T4: Indiv Points
A5: Kevin Plumer | B5: Agincourt | C5: Kevin | D5: 5 | E5: 5.5 | F5: 66 | G5: 16 | H5: 22 | I5: 0 | J5: 1 | K5: 0 | L5: 0 | M5: 1640 | N5: Craig | O5: None,None,None | P5: 9 | Q5: 4640 | R5: Kevin Plumer | S5: 4640 | T5: 3000
A6: Craig Singer | B6: Nagato | C6: Craig | D6: 6 | E6: 6 | F6: 59 | G6: 10 | H6: 95 | I6: 1 | J6: 1 | K6: 0 | L6: 1 | M6: 4640 | N6: Kevin | O6: None,None,None | P6: 10 | Q6: 1640 | R6: Craig Singer | S6: 1440 | T6: 0

Sheet Nats Fri 1
I1: Winner: | J1: =IF(K2>K3, B2, IF(K3>K2, B3, "Tie")) -> Axis | L1: Battle Type | M1: Battle Location and Month (i.e. MD May) | N1: Nats | S1: Fleet
A2: Fleet 1 : | B2: Allied | D2: Fleet Units: | E2: 55 | F2: Fleet Weight: | G2: 94.5 | H2: Fleet Battle Damage: | I2: 18570 | J2: Fleet Score: | K2: 11410 | M2: Battle Day | N2: Fri | S2: Mini-Fleet
A3: Fleet 2 : | B3: Axis | D3: Fleet Units: | E3: 58 | F3: Fleet Weight: | G3: 103 | H3: Fleet Battle Damage: | I3: 11410 | J3: Fleet Score: | K3: 17370.00195 | M3: Battle Number | N3: 1 | S3: Individual
A4: Captian | B4: Ship | C4: Fleet | D4: Class | E4: Units | F4: Above | G4: On | H4: Below | I4: Sinks | J4: Participate all Sorties | K4: Penalties Points | L4: 2nd Sortie Sink | M4: Damage Points | N4: Scored By | O4: Notes | P4: Weight Factor | Q4: Weight Points | R4: Captian | S4: Captain Points | T4: Indiv Points
A5: Ginger Andrews | B5: Des Moines | C5: Allied | D5: 3 | E5: 3.5 | F5: 3 | G5: 1 | H5: 2 | I5: 0 | J5: 1 | K5: 0 | L5: 0 | M5: 110 | N5: Andy | O5: None,None,None | P5: 7 | Q5: 845.1851852 | R5: Ginger Andrews | S5: 845.1851852
A6: Craig Singer | B6: Nagato | C6: Axis | D6: 6 | E6: 6 | F6: 13 | G6: 4 | H6: 13 | I6: 0 | J6: 1 | K6: 800 | L6: 0 | M6: 600 | N6: Kas | O6: Ram Sink Courbet,None,None | P6: 10 | Q6: 1002.912621 | R6: Craig Singer | S6: 1002.912621
A7: Zach Hoernemann | B7: Kongo | C7: Axis | D7: 4 | E7: 4.5 | F7: 41 | G7: 4 | H7: 25 | I7: 0 | J7: 1 | K7: 0 | L7: 0 | M7: 1240 | N7: Brandon | O7: None,None,None | P7: 8 | Q7: 1442.330097 | R7: Zach Hoernemann | S7: 1442.330097
A8: Kas Gaigalas | B8: Washington | C8: Allied | D8: 6 | E8: 6 | F8: 15 | G8: 2 | H8: 12 | I8: 0 | J8: 1 | K8: 0 | L8: 0 | M8: 550 | N8: Craig | O8: None,None,None | P8: 10 | Q8: 1207.407407 | R8: Kas Gaigalas | S8: 1207.407407
A9: Charley Stephens | B9: Seydlitz | C9: Axis | D9: 4 | E9: 4.5 | F9: 19 | G9: 6 | H9: 20 | I9: 0 | J9: 1 | K9: 200 | L9: 0 | M9: 910 | N9: Caleb | O9: Ram Below Brandon,None,None | P9: 8 | Q9: 1242.330097 | R9: Charley Stephens | S9: 1242.330097
A10: Tom Tanner | B10: Ostfriesland | C10: Axis | D10: 4 | E10: 4 | F10: 35 | G10: 9 | H10: 27 | I10: 1 | J10: 1 | K10: 0 | L10: 1 | M10: 2140 | N10: Matt | O10: None,None,None | P10: 8 | Q10: 1442.330097 | R10: Tom Tanner | S10: 1242.330097
A11: Timothy Beckett | B11: Foch | C11: Axis | D11: 3 | E11: 3 | F11: 3 | G11: 2 | H11: 1 | I11: 0 | J11: 1 | K11: 0 | L11: 0 | M11: 100 | N11: Rick | O11: None,None,None | P11: 7 | Q11: 1262.038835 | R11: Timothy Beckett | S11: 1262.038835
A12: Caleb Smith | B12: Courbet | C12: Allied | D12: 4 | E12: 4.5 | F12: 112 | G12: 28 | H12: 32 | I12: 1 | J12: 1 | K12: 0 | L12: 1 | M12: 3440 | N12: Charley | O12: None,None,None | P12: 8 | Q12: 965.9259259 | R12: Caleb Smith | S12: 765.9259259
A13: William Tustin | B13: Invincible | C13: Allied | D13: 4 | E13: 4 | F13: 20 | G13: 11 | H13: 15 | I13: 1 | J13: 1 | K13: 0 | L13: 1 | M13: 1670 | N13: Lee | O13: None,None,None | P13: 8 | Q13: 965.9259259 | R13: William Tustin | S13: 765.9259259
A14: Brian Koehler | B14: Ajax | C14: Allied | D14: 2 | E14: 2.5 | F14: 15 | G14: 2 | H14: 5 | I14: 0 | J14: 1 | K14: 0 | L14: 0 | M14: 340 | N14: Brian | O14: None,None,None | P14: 6 | Q14: 724.4444444 | R14: Brian Koehler | S14: 724.4444444
A15: Brian Lamb | B15: Seydlitz | C15: Axis | D15: 4 | E15: 4.5 | F15: 13 | G15: 4 | H15: 9 | I15: 0 | J15: 1 | K15: 0 | L15: 0 | M15: 480 | N15: Brian K | O15: None,None,None | P15: 8 | Q15: 1442.330097 | R15: Brian Lamb | S15: 1442.330097
A16: Rick Whitsell | B16: Jamaica | C16: Allied | D16: 2 | E16: 2.5 | F16: 3 | G16: 1 | H16: 0 | I16: 0 | J16: 1 | K16: 0 | L16: 0 | M16: 50 | N16: Tim | O16: None,None,None | P16: 6 | Q16: 724.4444444 | R16: Rick Whitsell | S16: 724.4444444
A17: Nate Graham | B17: Gearing | C17: Allied | D17: 1 | E17: 1.5 | F17: 0 | G17: 0 | H17: 0 | I17: 0 | J17: 1 | K17: 0 | L17: 0 | M17: 0 | N17: Lee | O17: None,None,None | P17: 4 | Q17: 482.962963 | R17: Nate Graham | S17: 482.962963
A18: Michael Smith | B18: NC | C18: Allied | D18: 6 | E18: 6 | F18: 137 | G18: 38 | H18: 40 | I18: 1 | J18: 1 | K18: 0 | L18: 1 | M18: 4330 | N18: Tim | O18: None,None,None | P18: 10 | Q18: 1207.407407 | R18: Michael Smith | S18: 1007.407407
A19: Bob Hoernemann | B19: Nagato | C19: Axis | D19: 6 | E19: 6 | F19: 32 | G19: 10 | H19: 42 | I19: 0 | J19: 1 | K19: 0 | L19: 0 | M19: 1780 | N19: Kevin | O19: None,None,None | P19: 10 | Q19: 1802.912621 | R19: Bob Hoernemann | S19: 1802.912621
A20: Isaac McKinzie | B20: Capitani Romani | C20: Axis | D20: 1 | E20: 1.5 | F20: 8 | G20: 6 | H20: 0 | I20: 1 | J20: 0 | K20: 0 | L20: 0 | M20: 600 | N20: Steve | O20: None,None,None | P20: 2 | Q20: 360.5825243 | R20: Isaac McKinzie | S20: 360.5825243
A21: Kevin Plumer | B21: Missouri | C21: Allied | D21: 7 | E21: 8 | F21: 32 | G21: 12 | H21: 20 | I21: 0 | J21: 1 | K21: 0 | L21: 0 | M21: 1160 | N21: Bob | O21: None,None,None | P21: 10 | Q21: 1207.407407 | R21: Kevin Plumer | S21: 1207.407407
A22: Matt Andrews | B22: Iron Duke | C22: Allied | D22: 5 | E22: 5 | F22: 54 | G22: 12 | H22: 32 | I22: 1 | J22: 0 | K22: 0 | L22: 0 | M22: 2640 | N22: Tom | O22: None,None,None | P22: 4.5 | Q22: 543.3333333 | R22: Matt Andrews | S22: 543.3333333
A23: Matt Larson | B23: Nagato | C23: Axis | D23: 6 | E23: 6 | F23: 37 | G23: 2 | H23: 13 | I23: 0 | J23: 1 | K23: 0 | L23: 0 | M23: 800 | N23: Nate | O23: None,None,None | P23: 10 | Q23: 1802.912621 | R23: Matt Larson | S23: 1802.912621
A24: Brandon Graham | B24: Courbet | C24: Allied | D24: 4 | E24: 4.5 | F24: 44 | G24: 15 | H24: 76 | I24: 0 | J24: 1 | K24: 0 | L24: 0 | M24: 3020 | N24: Zach | O24: None,None,None | P24: 8 | Q24: 965.9259259 | R24: Brandon Graham | S24: 965.9259259
A25: Andy Terpstra | B25: Kongo | C25: Axis | D25: 4 | E25: 4.5 | F25: 52 | G25: 4 | H25: 15 | I25: 0 | J25: 1 | K25: 0 | L25: 0 | M25: 1050 | N25: Kevin | O25: None,None,None | P25: 8 | Q25: 1442.330097 | R25: Andy Terpstra | S25: 1442.330097
A26: Chris Pearce | B26: Seydlitz | C26: Axis | D26: 4 | E26: 4.5 | F26: 11 | G26: 2 | H26: 3 | I26: 0 | J26: 1 | K26: 200 | L26: 0 | M26: 240 | N26: Tom | O26: Ram Below,None,None | P26: 8 | Q26: 1242.330097 | R26: Chris Pearce | S26: 1242.330097
A27: Tom Palmer | B27: Warspite | C27: Allied | D27: 5 | E27: 5.5 | F27: 43 | G27: 13 | H27: 19 | I27: 0 | J27: 1 | K27: 0 | L27: 0 | M27: 1260 | N27: Chris | O27: None,None,None | P27: 9 | Q27: 1086.666667 | R27: Tom Palmer | S27: 1086.666667
A28: Sydnee McKinzie | B28: Radetzky | C28: Axis | D28: 3 | E28: 3.5 | F28: 7 | G28: 8 | H28: 4 | I28: 0 | J28: 1 | K28: 0 | L28: 0 | M28: 350 | N28: Ginger | O28: None,None,None | P28: 7 | Q28: 1262.038835 | R28: Sydnee McKinzie | S28: 1262.038835
A29: Lee McKinzie | B29: Baden | C29: Axis | D29: 5 | E29: 5.5 | F29: 34 | G29: 12 | H29: 18 | I29: 0 | J29: 1 | K29: 0 | L29: 0 | M29: 1120 | N29: Ginger | O29: None,None,None | P29: 9 | Q29: 1622.621359 | R29: Lee McKinzie | S29: 1622.621359
A30: Steve Andrews | B30: Tromp | C30: Allied | D30: 1 | E30: 1.5 | F30: 0 | G30: 0 | H30: 0 | I30: 0 | J30: 1 | K30: 0 | L30: 0 | M30: 0 | N30: Lee | O30: None,None,None | P30: 4 | Q30: 482.962963 | R30: Steve Andrews | S30: 482.962963

Sheet Nats Thurs Campaign
I1: Winner: | J1: =IF(K2>K3, B2, IF(K3>K2, B3, "Tie")) -> Allied | M1: Battle Location and Month (i.e. MD May) | N1: Nats | P1: Convoy Runs | W1: Sinks | AC1: Convoy Friendly Ram | AJ1: Ram Penalties
A2: Fleet 1 : | B2: Allied | F2: Fleet Points: | G2: =B15 -> 22550 | H2: Fleet Penalties: | I2: =B16 -> 0 | J2: Fleet Score: | K2: =B17 -> 22550 | M2: Battle Day | N2: Thurs | P2: Captain | Q2: Fleet | R2: Ship | S2: Ship Length | T2: Number of Runs | U2: Points | W2: Captain | X2: Fleet | Y2: Ship | Z2: Class | AA2: Sink Points | AC2: Ramming Captain | AD2: Fleet | AE2: Convoy Ship | AF2: Convoy Captain | AG2: Ship Length | AH2: Points | AJ2: Ramming Captain | AK2: Fleet | AL2: Ram Type | AM2: Rammed Captain | AN2: Rammed Ship | AO2: Rammed Ship Class | AP2: Ram Sink | AQ2: Points
A3: Fleet 2 : | B3: Axis | F3: Fleet Points: | G3: =C15 -> 3100 | H3: Fleet Penalties: | I3: =C16 -> 0 | J3: Fleet Score: | K3: =C17 -> 3100 | P3: Tom Tanner | Q3: Axis | R3: Oki Maru | S3: 35.5 | T3: 3 | U3: 1650 | W3: Kevin Plumer | X3: Allied | Y3: Agincourt | Z3: 5 | AA3: 900
P4: Andy Terpstra | Q4: Axis | R4: Riuju | S4: 54 | T4: 1 | U4: 550 | W4: Chris Pearce | X4: Axis | Y4: Lutzow | Z4: 3 | AA4: 700
A5: Fleet: | B5: =B2 -> Allied | C5: =B3 -> Axis | P5: Nate Graham | Q5: Allied | R5: LST | S5: 28 | T5: 1 | U5: 300 | W5: Andy Terpstra | X5: Axis | Y5: Lutzow | Z5: 3 | AA5: 700
A6: Targets Remaining: | B6: 0 | C6: 0 | P6: Nate Graham | Q6: Allied | R6: Mathers | S6: 50 | T6: 5 | U6: 2750 | W6: Isaac McKinzie | X6: Axis | Y6: Capitani Romani | Z6: 1 | AA6: 400
A7: Target Points: | B7: 0 | C7: 0 | P7: William Tustin | Q7: Allied | R7: Bogue | S7: 42 | T7: 5 | U7: 2750
A8: Convoy Run Points: | B8: 20250 | C8: 2200 | P8: Tom Palmer | Q8: Allied | R8: Adm Simms | S8: 51 | T8: 2 | U8: 1100
A9: Scuttled Convoy Points: | B9: 0 | C9: 0 | P9: Tom Palmer | Q9: Allied | R9: Saratoga | S9: 74 | T9: 5 | U9: 4250
A10: Sink Points: | B10: 1800 | C10: 900 | P10: Kevin Sundberg | Q10: Allied | R10: C3 | S10: 42 | T10: 2 | U10: 1100
A11: Convoy Friendly Ram Points: | P11: Justin Ragucci | Q11: Allied | R11: LST | S11: 28 | T11: 1 | U11: 300
A12: Ram Penalty Points: | P12: Justin Ragucci | Q12: Allied | R12: Patrick Henry | S12: 37 | T12: 6 | U12: 3300
A13: No Ship on Water Points: | B13: 0 | C13: 0 | P13: Kevin Plumer | Q13: Allied | R13: Bogue | S13: 42 | T13: 1 | U13: 550
A14: Convoy Run Every 10 Min Points: | B14: 500 | C14: 0 | P14: Matt Andrews | Q14: Allied | R14: C3 | S14: 42 | T14: 4 | U14: 2200
A15: Total Points: | B15: =B7+B8+B9+B10+B11+B13+B14 -> 22550 | C15: =C7+C8+C9+C10+C11+C13+C14 -> 3100 | P15: Brandon Graham | Q15: Allied | R15: Gambier | S15: 35.5 | T15: 1 | U15: 550
A16: Total Penalties: | B16: =B12 -> 0 | C16: =C12 -> 0 | P16: Brian Koehler | Q16: Allied | R16: Altmark | S16: 47 | T16: 2 | U16: 1100
A17: Fleet Score: | B17: =B15-B16 -> 22550 | C17: =C15-C16 -> 3100

Sheet Nats Thur 1
I1: Winner: | J1: =IF(K2>K3, B2, IF(K3>K2, B3, "Tie")) -> Axis | L1: Battle Type | M1: Battle Location and Month (i.e. MD May) | N1: Nats | S1: Fleet
A2: Fleet 1 : | B2: Allied | D2: Fleet Units: | E2: 75.5 | F2: Fleet Weight: | G2: 104 | H2: Fleet Battle Damage: | I2: 26820 | J2: Fleet Score: | K2: 9390 | M2: Battle Day | N2: Thur | S2: Mini-Fleet
A3: Fleet 2 : | B3: Axis | D3: Fleet Units: | E3: 58 | F3: Fleet Weight: | G3: 105 | H3: Fleet Battle Damage: | I3: 9390 | J3: Fleet Score: | K3: 26419.99805 | M3: Battle Number | N3: 1 | S3: Individual
A4: Captian | B4: Ship | C4: Fleet | D4: Class | E4: Units | F4: Above | G4: On | H4: Below | I4: Sinks | J4: Participate all Sorties | K4: Penalties Points | L4: 2nd Sortie Sink | M4: Damage Points | N4: Scored By | O4: Notes | P4: Weight Factor | Q4: Weight Points | R4: Captian | S4: Captain Points | T4: Indiv Points
A5: Steve Andrews | B5: Des Moines | C5: Allied | D5: 3 | E5: 3.5 | F5: 120 | G5: 12 | H5: 16 | I5: 0 | J5: 1 | K5: 0 | L5: 0 | M5: 1920 | N5: Craig | O5: None,None,None | P5: 7 | Q5: 632.0192308 | R5: Steve Andrews | S5: 632.0192308
A6: Caleb Smith | B6: Courbet | C6: Allied | D6: 4 | E6: 4.5 | F6: 124 | G6: 31 | H6: 31 | I6: 1 | J6: 1 | K6: 0 | L6: 1 | M6: 3590 | N6: Bob | O6: None,None,None | P6: 8 | Q6: 722.3076923 | R6: Caleb Smith | S6: 522.3076923
A7: Michael Smith | B7: NC | C7: Allied | D7: 6 | E7: 6 | F7: 67 | G7: 6 | H7: 32 | I7: 0 | J7: 1 | K7: 0 | L7: 0 | M7: 1750 | N7: Tim | O7: None,None,None | P7: 10 | Q7: 902.8846154 | R7: Michael Smith | S7: 902.8846154
A8: Kas Gaigalas | B8: NC | C8: Allied | D8: 6 | E8: 6 | F8: 28 | G8: 7 | H8: 24 | I8: 0 | J8: 1 | K8: 0 | L8: 0 | M8: 1140 | N8: Tom | O8: None,None,None | P8: 10 | Q8: 902.8846154 | R8: Kas Gaigalas | S8: 902.8846154
A9: Craig Singer | B9: Nagato | C9: Axis | D9: 6 | E9: 6 | F9: 49 | G9: 6 | H9: 22 | I9: 0 | J9: 1 | K9: 0 | L9: 0 | M9: 1270 | N9: Matt | O9: None,None,None | P9: 10 | Q9: 2554.285714 | R9: Craig Singer | S9: 2554.285714
A10: Matt Andrews | B10: Iron Duke | C10: Allied | D10: 5 | E10: 5 | F10: 46 | G10: 3 | H10: 31 | I10: 1 | J10: 0 | K10: 0 | L10: 0 | M10: 2350 | N10: Zach | O10: None,None,None | P10: 4.5 | Q10: 406.2980769 | R10: Matt Andrews | S10: 406.2980769
A11: William Tustin | B11: Jean Bart | C11: Allied | D11: 6 | E11: 6.5 | F11: 54 | G11: 10 | H11: 44 | I11: 1 | J11: 0 | K11: 0 | L11: 0 | M11: 3060 | N11: Zach | O11: None,None,None | P11: 5 | Q11: 451.4423077 | R11: William Tustin | S11: 451.4423077
A12: Kevin Sundberg | B12: Invincible | C12: Allied | D12: 4 | E12: 4 | F12: 7 | G12: 0 | H12: 2 | I12: 0 | J12: 1 | K12: 0 | L12: 0 | M12: 130 | N12: Matt | O12: None,None,None | P12: 8 | Q12: 722.3076923 | R12: Kevin Sundberg | S12: 722.3076923
A13: Isaac McKinzie | B13: Capitani Romani | C13: Axis | D13: 1 | E13: 1.5 | F13: 9 | G13: 2 | H13: 1 | I13: 1 | J13: 1 | K13: 0 | L13: 1 | M13: 560 | N13: Nate | O13: None,None,None | P13: 4 | Q13: 1021.714286 | R13: Isaac McKinzie | S13: 821.7142857
A14: Sydnee McKinzie | B14: Radetzky | C14: Axis | D14: 3 | E14: 3.5 | F14: 18 | G14: 1 | H14: 2 | I14: 0 | J14: 1 | K14: 0 | L14: 0 | M14: 260 | N14: Tom | O14: None,None,None | P14: 7 | Q14: 1788 | R14: Sydnee McKinzie | S14: 1788
A15: Nate Graham | B15: Gearing | C15: Allied | D15: 1 | E15: 1.5 | F15: 1 | G15: 0 | H15: 0 | I15: 0 | J15: 1 | K15: 0 | L15: 0 | M15: 10 | N15: Sydnee | O15: None,None,None | P15: 4 | Q15: 361.1538462 | R15: Nate Graham | S15: 361.1538462
A16: Timothy Beckett | B16: Foch | C16: Axis | D16: 3 | E16: 3 | F16: 0 | G16: 0 | H16: 2 | I16: 0 | J16: 1 | K16: 0 | L16: 0 | M16: 60 | N16: Rick | O16: None,None,None | P16: 7 | Q16: 1788 | R16: Timothy Beckett | S16: 1788
A17: Brandon Graham | B17: Courbet | C17: Allied | D17: 4 | E17: 4.5 | F17: 49 | G17: 7 | H17: 55 | I17: 1 | J17: 1 | K17: 0 | L17: 1 | M17: 3080 | N17: Tim | O17: None,None,None | P17: 8 | Q17: 722.3076923 | R17: Brandon Graham | S17: 522.3076923
A18: Rick Whitsell | B18: Jamaica | C18: Allied | D18: 2 | E18: 2.5 | F18: 2 | G18: 9 | H18: 3 | I18: 0 | J18: 1 | K18: 0 | L18: 0 | M18: 290 | N18: Tim | O18: None,None,None | P18: 6 | Q18: 541.7307692 | R18: Rick Whitsell | S18: 541.7307692
A19: Chris Pearce | B19: Seydlitz | C19: Axis | D19: 4 | E19: 4.5 | F19: 39 | G19: 6 | H19: 18 | I19: 0 | J19: 1 | K19: 0 | L19: 0 | M19: 1050 | N19: Kevin | O19: None,None,None | P19: 8 | Q19: 2043.428571 | R19: Chris Pearce | S19: 2043.428571
A20: Brian Koehler | B20: QE | C20: Allied | D20: 5 | E20: 5.5 | F20: 36 | G20: 2 | H20: 14 | I20: 1 | J20: 1 | K20: 0 | L20: 1 | M20: 1720 | N20: Chris | O20: None,None,None | P20: 9 | Q20: 812.5961538 | R20: Brian Koehler | S20: 612.5961538
A21: Andy Terpstra | B21: Kongo | C21: Axis | D21: 4 | E21: 4.5 | F21: 24 | G21: 2 | H21: 16 | I21: 0 | J21: 1 | K21: 200 | L21: 0 | M21: 760 | N21: Kevin | O21: Ram Below Jean Bart,None,None | P21: 8 | Q21: 1843.428571 | R21: Andy Terpstra | S21: 1843.428571
A22: Bob Hoernemann | B22: Nagato | C22: Axis | D22: 6 | E22: 6 | F22: 49 | G22: 29 | H22: 37 | I22: 0 | J22: 1 | K22: 200 | L22: 0 | M22: 2180 | N22: Kevin | O22: Ram Below Des Moines,None,None | P22: 10 | Q22: 2354.285714 | R22: Bob Hoernemann | S22: 2354.285714
A23: Zach Hoernemann | B23: Kongo | C23: Axis | D23: 4 | E23: 4.5 | F23: 27 | G23: 0 | H23: 11 | I23: 0 | J23: 1 | K23: 0 | L23: 0 | M23: 600 | N23: Kevin | O23: None,None,None | P23: 8 | Q23: 2043.428571 | R23: Zach Hoernemann | S23: 2043.428571
A24: Tom Palmer | B24: Warspite | C24: Allied | D24: 5 | E24: 5.5 | F24: 24 | G24: 14 | H24: 23 | I24: 1 | J24: 0 | K24: 0 | L24: 0 | M24: 2110 | N24: Lee | O24: None,None,None | P24: 4.5 | Q24: 406.2980769 | R24: Tom Palmer | S24: 406.2980769
A25: Brian Lamb | B25: Seydlitz | C25: Axis | D25: 4 | E25: 4.5 | F25: 12 | G25: 2 | H25: 6 | I25: 0 | J25: 1 | K25: 0 | L25: 0 | M25: 340 | N25: Rob | O25: None,None,None | P25: 8 | Q25: 2043.428571 | R25: Brian Lamb | S25: 2043.428571
A26: Tom Tanner | B26: Ostfriesland | C26: Axis | D26: 4 | E26: 4 | F26: 28 | G26: 1 | H26: 7 | I26: 0 | J26: 1 | K26: 0 | L26: 0 | M26: 510 | N26: Caleb | O26: None,None,None | P26: 8 | Q26: 2043.428571 | R26: Tom Tanner | S26: 2043.428571
A27: Robert Stalnaker | B27: Revenge | C27: Allied | D27: 5 | E27: 5.5 | F27: 16 | G27: 1 | H27: 0 | I27: 1 | J27: 0 | K27: 0 | L27: 0 | M27: 1080 | N27: Lee | O27: None,None,None | P27: 4.5 | Q27: 406.2980769 | R27: Robert Stalnaker | S27: 406.2980769
A28: Ginger Andrews | B28: Des Moines | C28: Allied | D28: 3 | E28: 3.5 | F28: 49 | G28: 13 | H28: 28 | I28: 0 | J28: 1 | K28: 0 | L28: 0 | M28: 1590 | N28: Chris | O28: None,None,None | P28: 7 | Q28: 632.0192308 | R28: Ginger Andrews | S28: 632.0192308
A29: Kevin Plumer | B29: Radetzky | C29: Allied | D29: 3 | E29: 3.5 | F29: 10 | G29: 3 | H29: 10 | I29: 0 | J29: 0 | K29: 0 | L29: 0 | M29: 460 | N29: Andy | O29: None,None,None | P29: 3.5 | Q29: 316.0096154 | R29: Kevin Plumer | S29: 316.0096154
A30: Kevin Plumer | B30: Missouri | C30: Allied | D30: 7 | E30: 8 | F30: 39 | G30: 1 | H30: 31 | I30: 1 | J30: 0 | K30: 0 | L30: 0 | M30: 2540 | N30: Andy | O30: None,None,None | P30: 5 | Q30: 451.4423077 | R30: Kevin Plumer | S30: 451.4423077
A31: Charley Stephens | B31: Seydlitz | C31: Axis | D31: 4 | E31: 4.5 | F31: 24 | G31: 5 | H31: 16 | I31: 0 | J31: 1 | K31: 0 | L31: 0 | M31: 820 | N31: Ginger | O31: None,None,None | P31: 8 | Q31: 2043.428571 | R31: Charley Stephens | S31: 2043.428571
A32: Matt Larson | B32: Nagato | C32: Axis | D32: 6 | E32: 6 | F32: 32 | G32: 0 | H32: 10 | I32: 0 | J32: 1 | K32: 0 | L32: 0 | M32: 620 | N32: Kas | O32: None,None,None | P32: 10 | Q32: 2554.285714 | R32: Matt Larson | S32: 2554.285714
A33: Lee McKinzie | B33: Baden | C33: Axis | D33: 5 | E33: 5.5 | F33: 21 | G33: 3 | H33: 3 | I33: 0 | J33: 1 | K33: 0 | L33: 0 | M33: 360 | N33: Caleb | O33: None,None,None | P33: 9 | Q33: 2298.857143 | R33: Lee McKinzie | S33: 2298.857143

Sheet Nationals Wed Cruiser
I1: Winner: | J1: =IF(K2>K3, B2, IF(K3>K2, B3, "Tie")) -> No Flag | L1: Battle Type | M1: Battle Location and Month (i.e. MD May) | N1: Nationals | S1: Fleet
A2: Fleet 1 : | B2: Flag | D2: Fleet Units: | E2: 13.5 | F2: Fleet Weight: | G2: 30 | H2: Fleet Battle Damage: | I2: 7450 | J2: Fleet Score: | K2: 4320 | M2: Battle Day | N2: Wed | S2: Mini-Fleet
A3: Fleet 2 : | B3: No Flag | D3: Fleet Units: | E3: 13 | F3: Fleet Weight: | G3: 27 | H3: Fleet Battle Damage: | I3: 4320 | J3: Fleet Score: | K3: 7450 | M3: Battle Number | N3: Cruiser | S3: Individual
A4: Captian | B4: Ship | C4: Fleet | D4: Class | E4: Units | F4: Above | G4: On | H4: Below | I4: Sinks | J4: Participate all Sorties | K4: Penalties Points | L4: 2nd Sortie Sink | M4: Damage Points | N4: Scored By | O4: Notes | P4: Weight Factor | Q4: Weight Points | R4: Captian | S4: Captain Points | T4: Indiv Points
A5: Michael Smith | B5: Torielle | C5: Flag | D5: 2 | E5: 2.5 | F5: 58 | G5: 9 | H5: 17 | I5: 2 | J5: 1 | K5: 0 | L5: 1 | M5: 2470 | N5: Kevin | O5: None,None,None | P5: 6 | Q5: 864 | R5: Michael Smith | S5: 664
A6: Kevin Plumer | B6: Fiji | C6: No Flag | D6: 2 | E6: 2.5 | F6: 89 | G6: 2 | H6: 1 | I6: 0 | J6: 1 | K6: 0 | L6: 0 | M6: 960 | N6: Kevin | O6: None,None,None | P6: 6 | Q6: 1655.555556 | R6: Kevin Plumer | S6: 1655.555556
A7: Caleb Smith | B7: Tromp | C7: Flag | D7: 1 | E7: 1.5 | F7: 3 | G7: 0 | H7: 0 | I7: 0 | J7: 1 | K7: 0 | L7: 0 | M7: 30 | N7: Caleb | O7: None,None,None | P7: 4 | Q7: 576 | R7: Caleb Smith | S7: 576
A8: Steve Andrews | B8: Des Moines | C8: No Flag | D8: 3 | E8: 3.5 | F8: 90 | G8: 2 | H8: 3 | I8: 0 | J8: 1 | K8: 0 | L8: 0 | M8: 1030 | N8: Justin | O8: None,None,None | P8: 7 | Q8: 1931.481481 | R8: Steve Andrews | S8: 1931.481481
A9: Bob Hoernemann | B9: Lutzow | C9: No Flag | D9: 3 | E9: 3.5 | F9: 28 | G9: 5 | H9: 19 | I9: 1 | J9: 1 | K9: 0 | L9: 1 | M9: 1650 | N9: Bob | O9: None,None,None | P9: 7 | Q9: 1931.481481 | R9: Bob Hoernemann | S9: 1731.481481
A10: Ginger Andrews | B10: Des Moines | C10: Flag | D10: 3 | E10: 3.5 | F10: 38 | G10: 0 | H10: 5 | I10: 0 | J10: 1 | K10: 0 | L10: 0 | M10: 530 | N10: Ginger | O10: None,None,None | P10: 7 | Q10: 1008 | R10: Ginger Andrews | S10: 1008
A11: Tom Palmer | B11: Connecticut | C11: Flag | D11: 3 | E11: 3.5 | F11: 105 | G11: 16 | H11: 27 | I11: 2 | J11: 1 | K11: 0 | L11: 1 | M11: 3580 | N11: Tom | O11: None,None,None | P11: 7 | Q11: 1008 | R11: Tom Palmer | S11: 808
A12: Rick Whitsell | B12: Jamaica | C12: Flag | D12: 2 | E12: 2.5 | F12: 9 | G12: 6 | H12: 21 | I12: 0 | J12: 1 | K12: 0 | L12: 0 | M12: 840 | N12: Rick | O12: None,None,None | P12: 6 | Q12: 864 | R12: Rick Whitsell | S12: 864
A13: Zach Hoernemann | B13: Radetzky | C13: No Flag | D13: 3 | E13: 3.5 | F13: 24 | G13: 7 | H13: 10 | I13: 0 | J13: 1 | K13: 0 | L13: 0 | M13: 680 | N13: Zach | O13: None,None,None | P13: 7 | Q13: 1931.481481 | R13: Zach Hoernemann | S13: 1931.481481

Sheet Nationals Wed FrenchvNagato
I1: Winner: | J1: =IF(K2>K3, B2, IF(K3>K2, B3, "Tie")) -> French | L1: Battle Type | M1: Battle Location and Month (i.e. MD May) | N1: Nationals | S1: Fleet
A2: Fleet 1 : | B2: French | D2: Fleet Units: | E2: 9 | F2: Fleet Weight: | G2: 16 | H2: Fleet Battle Damage: | I2: 650 | J2: Fleet Score: | K2: 3210 | M2: Battle Day | N2: Wed | S2: Mini-Fleet
A3: Fleet 2 : | B3: Craig | D3: Fleet Units: | E3: 6 | F3: Fleet Weight: | G3: 10 | H3: Fleet Battle Damage: | I3: 3210 | J3: Fleet Score: | K3: 650 | M3: Battle Number | N3: FrenchvNagato | S3: Individual
A4: Captian | B4: Ship | C4: Fleet | D4: Class | E4: Units | F4: Above | G4: On | H4: Below | I4: Sinks | J4: Participate all Sorties | K4: Penalties Points | L4: 2nd Sortie Sink | M4: Damage Points | N4: Scored By | O4: Notes | P4: Weight Factor | Q4: Weight Points | R4: Captian | S4: Captain Points | T4: Indiv Points
A5: Steve Andrews | B5: Courbet | C5: French | D5: 4 | E5: 4.5 | F5: 8 | G5: 0 | H5: 1 | I5: 0 | J5: 1 | K5: 0 | L5: 0 | M5: 110 | N5: Craig | O5: None,None,None | P5: 8 | Q5: 1605 | R5: Steve Andrews | S5: 1605 | T5: 1280
A6: Caleb Smith | B6: Courbet | C6: French | D6: 4 | E6: 4.5 | F6: 37 | G6: 1 | H6: 5 | I6: 0 | J6: 1 | K6: 0 | L6: 0 | M6: 540 | N6: Caleb | O6: None,None,None | P6: 8 | Q6: 1605 | R6: Caleb Smith | S6: 1605 | T6: 1280
A7: Craig Singer | B7: Nagato | C7: Craig | D7: 6 | E7: 6 | F7: 69 | G7: 16 | H7: 40 | I7: 1 | J7: 1 | K7: 0 | L7: 1 | M7: 3210 | N7: Steve | O7: None,None,None | P7: 10 | Q7: 650 | R7: Craig Singer | S7: 450 | T7: 0

Sheet Nationals Wed MattvKevin
I1: Winner: | J1: =IF(K2>K3, B2, IF(K3>K2, B3, "Tie")) -> Kevin | L1: Battle Type | M1: Battle Location and Month (i.e. MD May) | N1: Nationals | S1: Fleet
A2: Fleet 1 : | B2: Kevin | D2: Fleet Units: | E2: 5.5 | F2: Fleet Weight: | G2: 9 | H2: Fleet Battle Damage: | I2: 180 | J2: Fleet Score: | K2: 1910 | M2: Battle Day | N2: Wed | S2: Mini-Fleet
A3: Fleet 2 : | B3: Matt | D3: Fleet Units: | E3: 5 | F3: Fleet Weight: | G3: 9 | H3: Fleet Battle Damage: | I3: 1910 | J3: Fleet Score: | K3: 180 | M3: Battle Number | N3: MattvKevin | S3: Individual
A4: Captian | B4: Ship | C4: Fleet | D4: Class | E4: Units | F4: Above | G4: On | H4: Below | I4: Sinks | J4: Participate all Sorties | K4: Penalties Points | L4: 2nd Sortie Sink | M4: Damage Points | N4: Scored By | O4: Notes | P4: Weight Factor | Q4: Weight Points | R4: Captian | S4: Captain Points | T4: Indiv Points
A5: Kevin Plumer | B5: Agincourt | C5: Kevin | D5: 5 | E5: 5.5 | F5: 6 | G5: 0 | H5: 4 | I5: 0 | J5: 1 | K5: 0 | L5: 0 | M5: 180 | N5: Matt | O5: None,None,None | P5: 9 | Q5: 1910 | R5: Kevin Plumer | S5: 1910 | T5: 1730
A6: Matt Andrews | B6: Iron Duke | C6: Matt | D6: 5 | E6: 5 | F6: 36 | G6: 7 | H6: 17 | I6: 1 | J6: 1 | K6: 0 | L6: 1 | M6: 1910 | N6: Kevin | O6: None,None,None | P6: 9 | Q6: 180 | R6: Matt Andrews | S6: -20 | T6: 0

Sheet Nats Wed 1
I1: Winner: | J1: =IF(K2>K3, B2, IF(K3>K2, B3, "Tie")) -> Allied | L1: Battle Type | M1: Battle Location and Month (i.e. MD May) | N1: Nats | S1: Fleet
A2: Fleet 1 : | B2: Allied | D2: Fleet Units: | E2: 34 | F2: Fleet Weight: | G2: 62 | H2: Fleet Battle Damage: | I2: 2930 | J2: Fleet Score: | K2: 3000 | M2: Battle Day | N2: Wed | S2: Mini-Fleet
A3: Fleet 2 : | B3: Axis | D3: Fleet Units: | E3: 31.5 | F3: Fleet Weight: | G3: 57 | H3: Fleet Battle Damage: | I3: 3000 | J3: Fleet Score: | K3: 2930 | M3: Battle Number | N3: 1 | S3: Individual
A4: Captian | B4: Ship | C4: Fleet | D4: Class | E4: Units | F4: Above | G4: On | H4: Below | I4: Sinks | J4: Participate all Sorties | K4: Penalties Points | L4: 2nd Sortie Sink | M4: Damage Points | N4: Scored By | O4: Notes | P4: Weight Factor | Q4: Weight Points | R4: Captian | S4: Captain Points | T4: Indiv Points
A5: Craig Singer | B5: Nagato | C5: Axis | D5: 6 | E5: 6 | F5: 33 | G5: 9 | H5: 27 | I5: 0 | J5: 1 | K5: 0 | L5: 0 | M5: 1320 | N5: Kas | O5: None,None,None | P5: 10 | Q5: 514.0350877 | R5: Craig Singer | S5: 514.0350877
A6: Kas Gaigalas | B6: Washington | C6: Allied | D6: 6 | E6: 6 | F6: 42 | G6: 7 | H6: 4 | I6: 0 | J6: 1 | K6: 0 | L6: 0 | M6: 680 | N6: Craig | O6: None,None,None | P6: 10 | Q6: 483.8709677 | R6: Kas Gaigalas | S6: 483.8709677
A7: Kevin Plumer | B7: Invincible | C7: Allied | D7: 4 | E7: 4 | F7: 0 | G7: 0 | H7: 1 | I7: 0 | J7: 1 | K7: 0 | L7: 0 | M7: 30 | N7: Tim | O7: None,None,None | P7: 8 | Q7: 387.0967742 | R7: Kevin Plumer | S7: 387.0967742
A8: Sydnee McKinzie | B8: Radetzky | C8: Axis | D8: 3 | E8: 3.5 | F8: 6 | G8: 1 | H8: 0 | I8: 0 | J8: 1 | K8: 0 | L8: 0 | M8: 80 | N8: Kevin | O8: None,None,None | P8: 7 | Q8: 359.8245614 | R8: Sydnee McKinzie | S8: 359.8245614
A9: Brian Lamb | B9: Seydlitz | C9: Axis | D9: 4 | E9: 4.5 | F9: 19 | G9: 2 | H9: 2 | I9: 0 | J9: 1 | K9: 0 | L9: 0 | M9: 290 | N9: Brian | O9: None,None,None | P9: 8 | Q9: 411.2280702 | R9: Brian Lamb | S9: 411.2280702
A10: Chris Pearce | B10: Seydlitz | C10: Axis | D10: 4 | E10: 4.5 | F10: 3 | G10: 1 | H10: 1 | I10: 0 | J10: 1 | K10: 0 | L10: 0 | M10: 80 | N10: Brain | O10: None,None,None | P10: 8 | Q10: 411.2280702 | R10: Chris Pearce | S10: 411.2280702
A11: Timothy Beckett | B11: Foch | C11: Axis | D11: 3 | E11: 3 | F11: 1 | G11: 0 | H11: 0 | I11: 0 | J11: 1 | K11: 0 | L11: 0 | M11: 10 | N11: Brian | O11: None,None,None | P11: 7 | Q11: 359.8245614 | R11: Timothy Beckett | S11: 359.8245614
A12: Brian Koehler | B12: QE | C12: Allied | D12: 5 | E12: 5.5 | F12: 0 | G12: 0 | H12: 0 | I12: 0 | J12: 1 | K12: 0 | L12: 0 | M12: 0 | N12: Chris | O12: None,None,None | P12: 9 | Q12: 435.483871 | R12: Brian Koehler | S12: 435.483871
A13: Rick Whitsell | B13: Jamaica | C13: Allied | D13: 2 | E13: 2.5 | F13: 2 | G13: 1 | H13: 1 | I13: 0 | J13: 1 | K13: 0 | L13: 0 | M13: 70 | N13: Tim | O13: None,None,None | P13: 6 | Q13: 290.3225806 | R13: Rick Whitsell | S13: 290.3225806
A14: Lee McKinzie | B14: Baden | C14: Axis | D14: 5 | E14: 5.5 | F14: 6 | G14: 1 | H14: 2 | I14: 0 | J14: 1 | K14: 0 | L14: 0 | M14: 140 | N14: Nate | O14: None,None,None | P14: 9 | Q14: 462.6315789 | R14: Lee McKinzie | S14: 462.6315789
A15: Steve Andrews | B15: Courbet | C15: Allied | D15: 4 | E15: 4.5 | F15: 1 | G15: 1 | H15: 4 | I15: 0 | J15: 1 | K15: 0 | L15: 0 | M15: 150 | N15: Tom | O15: None,None,None | P15: 8 | Q15: 387.0967742 | R15: Steve Andrews | S15: 387.0967742
A16: Charley Stephens | B16: Seydlitz | C16: Axis | D16: 4 | E16: 4.5 | F16: 9 | G16: 9 | H16: 27 | I16: 0 | J16: 1 | K16: 0 | L16: 0 | M16: 1080 | N16: Kevin | O16: None,None,None | P16: 8 | Q16: 411.2280702 | R16: Charley Stephens | S16: 411.2280702
A17: Nate Graham | B17: Gearing | C17: Allied | D17: 1 | E17: 1.5 | F17: 3 | G17: 0 | H17: 0 | I17: 0 | J17: 1 | K17: 0 | L17: 0 | M17: 30 | N17: Tom | O17: None,None,None | P17: 4 | Q17: 193.5483871 | R17: Nate Graham | S17: 193.5483871
A18: Caleb Smith | B18: Courbet | C18: Allied | D18: 4 | E18: 4.5 | F18: 81 | G18: 9 | H18: 6 | I18: 0 | J18: 1 | K18: 0 | L18: 0 | M18: 1170 | N18: Charley | O18: None,None,None | P18: 8 | Q18: 387.0967742 | R18: Caleb Smith | S18: 387.0967742
A19: Kevin Plumer | B19: Agincourt | C19: Allied | D19: 5 | E19: 5.5 | F19: 27 | G19: 7 | H19: 13 | I19: 0 | J19: 1 | K19: 0 | L19: 0 | M19: 800 | N19: Tim | O19: None,None,None | P19: 9 | Q19: 435.483871 | R19: Kevin Plumer | S19: 435.483871

Sheet Nats Tues Campaign
I1: Winner: | J1: =IF(K2>K3, B2, IF(K3>K2, B3, "Tie")) -> Allied | M1: Battle Location and Month (i.e. MD May) | N1: Nats | P1: Convoy Runs | W1: Sinks | AC1: Convoy Friendly Ram | AJ1: Ram Penalties
A2: Fleet 1 : | B2: Allied | F2: Fleet Points: | G2: =B15 -> 24850 | H2: Fleet Penalties: | I2: =B16 -> 0 | J2: Fleet Score: | K2: =B17 -> 24850 | M2: Battle Day | N2: Tues | P2: Captain | Q2: Fleet | R2: Ship | S2: Ship Length | T2: Number of Runs | U2: Points | W2: Captain | X2: Fleet | Y2: Ship | Z2: Class | AA2: Sink Points | AC2: Ramming Captain | AD2: Fleet | AE2: Convoy Ship | AF2: Convoy Captain | AG2: Ship Length | AH2: Points | AJ2: Ramming Captain | AK2: Fleet | AL2: Ram Type | AM2: Rammed Captain | AN2: Rammed Ship | AO2: Rammed Ship Class | AP2: Ram Sink | AQ2: Points
A3: Fleet 2 : | B3: Axis | F3: Fleet Points: | G3: =C15 -> 5550 | H3: Fleet Penalties: | I3: =C16 -> 450 | J3: Fleet Score: | K3: =C17 -> 5100 | P3: Tom Palmer | Q3: Allied | R3: Adm Taylor | S3: 51 | T3: 3 | U3: 1650 | W3: Isaac McKinzie | X3: Axis | Y3: Capitani Romani | Z3: 1 | AA3: 400 | AJ3: Lee McKinzie | AK3: Axis | AL3: Below | AM3: Kevin Plumer | AN3: Agincourt | AO3: 5 | AP3: 0 | AQ3: 200
P4: Tom Palmer | Q4: Allied | R4: Saratoga | S4: 74 | T4: 4 | U4: 3400 | W4: William Tustin | X4: Allied | Y4: Jean Bart | Z4: 6 | AA4: 1000 | AJ4: Lee McKinzie | AK4: Axis | AL4: Below | AM4: Kevin Plumer | AN4: Radetzky | AO4: 3 | AP4: 0 | AQ4: 200
A5: Fleet: | B5: =B2 -> Allied | C5: =B3 -> Axis | P5: Nate Graham | Q5: Allied | R5: LST | S5: 26.75 | T5: 5 | U5: 1500 | W5: Matt Andrews | X5: Allied | Y5: NC | Z5: 6 | AA5: 1000 | AJ5: Lee McKinzie | AK5: Axis | AL5: Superstructure | AM5: Kas Gaigalas | AN5: Fiji | AO5: 2 | AP5: 0 | AQ5: 50
A6: Targets Remaining: | B6: 0 | C6: 0 | P6: Nate Graham | Q6: Allied | R6: mathers | S6: 51 | T6: 2 | U6: 1100 | W6: Kevin Sundberg | X6: Allied | Y6: Invincible | Z6: 4 | AA6: 800
A7: Target Points: | B7: 0 | C7: 0 | P7: Kevin Plumer | Q7: Allied | R7: Bogue | S7: 42 | T7: 3 | U7: 1650
A8: Convoy Run Points: | B8: 24450 | C8: 2750 | P8: Robert Stalnaker | Q8: Allied | R8: Red Oak | S8: 37 | T8: 5 | U8: 2750
A9: Scuttled Convoy Points: | B9: 0 | C9: 0 | P9: Robert Stalnaker | Q9: Allied | R9: Patrick | S9: 37 | T9: 2 | U9: 1100
A10: Sink Points: | B10: 400 | C10: 2800 | P10: Brian Koehler | Q10: Allied | R10: Altmark | S10: 49 | T10: 1 | U10: 550
A11: Convoy Friendly Ram Points: | P11: Brian Koehler | Q11: Allied | R11: C3 | S11: 42 | T11: 2 | U11: 1100
A12: Ram Penalty Points: | C12: 450 | P12: Matt Andrews | Q12: Allied | R12: C3 | S12: 42 | T12: 2 | U12: 1100
A13: No Ship on Water Points: | B13: 0 | C13: 0 | P13: William Tustin | Q13: Allied | R13: C3 | S13: 42 | T13: 6 | U13: 3300
A14: Convoy Run Every 10 Min Points: | B14: 0 | C14: 0 | P14: William Tustin | Q14: Allied | R14: LST | S14: 26.75 | T14: 1 | U14: 300
A15: Total Points: | B15: =B7+B8+B9+B10+B11+B13+B14 -> 24850 | C15: =C7+C8+C9+C10+C11+C13+C14 -> 5550 | P15: Matt Andrews | Q15: Allied | R15: Gambrier Bay | S15: 38 | T15: 4 | U15: 2200
A16: Total Penalties: | B16: =B12 -> 0 | C16: =C12 -> 450 | P16: Brandon Graham | Q16: Allied | R16: Bogue | S16: 42 | T16: 2 | U16: 1100
A17: Fleet Score: | B17: =B15-B16 -> 24850 | C17: =C15-C16 -> 5100 | P17: Kevin Sundberg | Q17: Allied | R17: altmark | S17: 49 | T17: 1 | U17: 550
P18: Kevin Sundberg | Q18: Allied | R18: C3 | S18: 42 | T18: 2 | U18: 1100
P19: Charley Stephens | Q19: Axis | R19: Oki Maru | S19: 35.5 | T19: 2 | U19: 1100
P20: Charley Stephens | Q20: Axis | R20: Ruju | S20: 54 | T20: 3 | U20: 1650

Sheet Nats Tues 1
I1: Winner: | J1: =IF(K2>K3, B2, IF(K3>K2, B3, "Tie")) -> Axis | L1: Battle Type | M1: Battle Location and Month (i.e. MD May) | N1: Nats | S1: Fleet
A2: Fleet 1 : | B2: Allied | D2: Fleet Units: | E2: 62.5 | F2: Fleet Weight: | G2: 93 | H2: Fleet Battle Damage: | I2: 18470 | J2: Fleet Score: | K2: 14190 | M2: Battle Day | N2: Tues | S2: Mini-Fleet
A3: Fleet 2 : | B3: Axis | D3: Fleet Units: | E3: 58 | F3: Fleet Weight: | G3: 100 | H3: Fleet Battle Damage: | I3: 14390 | J3: Fleet Score: | K3: 18070 | M3: Battle Number | N3: 1 | S3: Individual
A4: Captian | B4: Ship | C4: Fleet | D4: Class | E4: Units | F4: Above | G4: On | H4: Below | I4: Sinks | J4: Participate all Sorties | K4: Penalties Points | L4: 2nd Sortie Sink | M4: Damage Points | N4: Scored By | O4: Notes | P4: Weight Factor | Q4: Weight Points | R4: Captian | S4: Captain Points | T4: Indiv Points
A5: Andy Terpstra | B5: Kongo | C5: Axis | D5: 4 | E5: 4.5 | F5: 83 | G5: 8 | H5: 36 | I5: 0 | J5: 1 | K5: 0 | L5: 0 | M5: 2070 | N5: Brandon | O5: None,None,None | P5: 8 | Q5: 1477.6 | R5: Andy Terpstra | S5: 1477.6
A6: William Tustin | B6: Jean Bart | C6: Allied | D6: 6 | E6: 6.5 | F6: 62 | G6: 11 | H6: 27 | I6: 1 | J6: 0 | K6: 0 | L6: 0 | M6: 2650 | N6: Craig | O6: None,None,None | P6: 5 | Q6: 773.655914 | R6: William Tustin | S6: 773.655914
A7: Tom Tanner | B7: Ostfriesland | C7: Axis | D7: 4 | E7: 4 | F7: 21 | G7: 5 | H7: 17 | I7: 0 | J7: 1 | K7: 0 | L7: 0 | M7: 820 | N7: Caleb | O7: None,None,None | P7: 8 | Q7: 1477.6 | R7: Tom Tanner | S7: 1477.6
A8: Tom Palmer | B8: Warspite | C8: Allied | D8: 5 | E8: 5.5 | F8: 13 | G8: 12 | H8: 18 | I8: 0 | J8: 1 | K8: 0 | L8: 0 | M8: 910 | N8: Brian | O8: None,None,None | P8: 9 | Q8: 1392.580645 | R8: Tom Palmer | S8: 1392.580645
A9: Kevin Sundberg | B9: Invincible | C9: Allied | D9: 4 | E9: 4 | F9: 7 | G9: 1 | H9: 8 | I9: 1 | J9: 0 | K9: 0 | L9: 0 | M9: 1130 | N9: Tom | O9: None,None,None | P9: 4 | Q9: 618.9247312 | R9: Kevin Sundberg | S9: 618.9247312
A10: Brian Lamb | B10: Seydlitz | C10: Axis | D10: 4 | E10: 4.5 | F10: 45 | G10: 5 | H10: 7 | I10: 0 | J10: 1 | K10: 0 | L10: 0 | M10: 760 | N10: Kas | O10: None,None,None | P10: 8 | Q10: 1477.6 | R10: Brian Lamb | S10: 1477.6
A11: Brian Koehler | B11: QE | C11: Allied | D11: 5 | E11: 5.5 | F11: 3 | G11: 0 | H11: 8 | I11: 0 | J11: 1 | K11: 0 | L11: 0 | M11: 270 | N11: Chris | O11: None,None,None | P11: 9 | Q11: 1392.580645 | R11: Brian Koehler | S11: 1392.580645
A12: Rick Whitsell | B12: Jamaica | C12: Allied | D12: 2 | E12: 2.5 | F12: 24 | G12: 2 | H12: 17 | I12: 0 | J12: 1 | K12: 0 | L12: 0 | M12: 790 | N12: Tim | O12: None,None,None | P12: 6 | Q12: 928.3870968 | R12: Rick Whitsell | S12: 928.3870968
A13: Brandon Graham | B13: Courbet | C13: Allied | D13: 4 | E13: 4.5 | F13: 43 | G13: 8 | H13: 41 | I13: 0 | J13: 1 | K13: 0 | L13: 0 | M13: 1820 | N13: Chris | O13: None,None,None | P13: 8 | Q13: 1237.849462 | R13: Brandon Graham | S13: 1237.849462
A14: Ginger Andrews | B14: Des Moines | C14: Allied | D14: 3 | E14: 3.5 | F14: 5 | G14: 5 | H14: 8 | I14: 0 | J14: 1 | K14: 0 | L14: 0 | M14: 390 | N14: Chris | O14: None,None,None | P14: 7 | Q14: 1083.11828 | R14: Ginger Andrews | S14: 1083.11828
A15: Charley Stephens | B15: Seydlitz | C15: Axis | D15: 4 | E15: 4.5 | F15: 44 | G15: 6 | H15: 27 | I15: 0 | J15: 1 | K15: 0 | L15: 0 | M15: 1370 | N15: Kevin S | O15: None,None,None | P15: 8 | Q15: 1477.6 | R15: Charley Stephens | S15: 1477.6
A16: Lee McKinzie | B16: Baden | C16: Axis | D16: 5 | E16: 5.5 | F16: 21 | G16: 0 | H16: 22 | I16: 0 | J16: 1 | K16: 0 | L16: 0 | M16: 870 | N16: Matt | O16: None,None,None | P16: 9 | Q16: 1662.3 | R16: Lee McKinzie | S16: 1662.3
A17: Matt Andrews | B17: NC | C17: Allied | D17: 6 | E17: 6 | F17: 36 | G17: 6 | H17: 14 | I17: 1 | J17: 0 | K17: 0 | L17: 0 | M17: 1900 | N17: Andy | O17: None,None,None | P17: 5 | Q17: 773.655914 | R17: Matt Andrews | S17: 773.655914
A18: Chris Pearce | B18: Seydlitz | C18: Axis | D18: 4 | E18: 4.5 | F18: 11 | G18: 5 | H18: 6 | I18: 1 | J18: 1 | K18: 400 | L18: 1 | M18: 1190 | N18: Brian | O18: Ram Below Kevin,Ram Below,None | P18: 8 | Q18: 1077.6 | R18: Chris Pearce | S18: 877.6
A19: Timothy Beckett | B19: Foch | C19: Axis | D19: 3 | E19: 3 | F19: 5 | G19: 2 | H19: 3 | I19: 0 | J19: 1 | K19: 0 | L19: 0 | M19: 180 | N19: Rick | O19: None,None,None | P19: 7 | Q19: 1292.9 | R19: Timothy Beckett | S19: 1292.9
A20: Isaac McKinzie | B20: Capitani Romani | C20: Axis | D20: 1 | E20: 1.5 | F20: 0 | G20: 0 | H20: 1 | I20: 0 | J20: 1 | K20: 0 | L20: 0 | M20: 30 | N20: Nate | O20: None,None,None | P20: 4 | Q20: 738.8 | R20: Isaac McKinzie | S20: 738.8
A21: Nate Graham | B21: Gearing | C21: Allied | D21: 1 | E21: 1.5 | F21: 3 | G21: 0 | H21: 5 | I21: 0 | J21: 1 | K21: 0 | L21: 0 | M21: 180 | N21: Lee | O21: None,None,None | P21: 4 | Q21: 618.9247312 | R21: Nate Graham | S21: 618.9247312
A22: Sydnee McKinzie | B22: Radetzky | C22: Axis | D22: 3 | E22: 3.5 | F22: 9 | G22: 1 | H22: 2 | I22: 0 | J22: 1 | K22: 0 | L22: 0 | M22: 170 | N22: Will | O22: None,None,None | P22: 7 | Q22: 1292.9 | R22: Sydnee McKinzie | S22: 1292.9
A23: Matt Larson | B23: Nagato | C23: Axis | D23: 6 | E23: 6 | F23: 33 | G23: 3 | H23: 12 | I23: 0 | J23: 1 | K23: 0 | L23: 0 | M23: 750 | N23: Tom | O23: None,None,None | P23: 10 | Q23: 1847 | R23: Matt Larson | S23: 1847
A24: Bob Hoernemann | B24: Nagato | C24: Axis | D24: 6 | E24: 6 | F24: 52 | G24: 13 | H24: 41 | I24: 0 | J24: 1 | K24: 0 | L24: 0 | M24: 2010 | N24: Kevin | O24: None,None,None | P24: 10 | Q24: 1847 | R24: Bob Hoernemann | S24: 1847
A25: Steve Andrews | B25: Courbet | C25: Allied | D25: 4 | E25: 4.5 | F25: 51 | G25: 11 | H25: 29 | I25: 1 | J25: 1 | K25: 200 | L25: 0 | M25: 2400 | N25: Andy | O25: Ram Below Tom,None,None | P25: 8 | Q25: 1037.849462 | R25: Steve Andrews | S25: 1037.849462
A26: Caleb Smith | B26: Courbet | C26: Allied | D26: 4 | E26: 4.5 | F26: 41 | G26: 10 | H26: 33 | I26: 1 | J26: 1 | K26: 0 | L26: 1 | M26: 2400 | N26: Lee | O26: None,None,None | P26: 8 | Q26: 1237.849462 | R26: Caleb Smith | S26: 1037.849462
A27: Kas Gaigalas | B27: Washington | C27: Allied | D27: 6 | E27: 6 | F27: 37 | G27: 6 | H27: 17 | I27: 0 | J27: 1 | K27: 0 | L27: 0 | M27: 1000 | N27: Craig | O27: None,None,None | P27: 10 | Q27: 1547.311828 | R27: Kas Gaigalas | S27: 1547.311828
A28: Craig Singer | B28: Nagato | C28: Axis | D28: 6 | E28: 6 | F28: 22 | G28: 0 | H28: 20 | I28: 1 | J28: 0 | K28: 0 | L28: 0 | M28: 1820 | N28: Kas | O28: None,None,None | P28: 5 | Q28: 923.5 | R28: Craig Singer | S28: 923.5
A29: Kevin Plumer | B29: Missouri | C29: Allied | D29: 7 | E29: 8 | F29: 90 | G29: 25 | H29: 41 | I29: 0 | J29: 1 | K29: 0 | L29: 0 | M29: 2630 | N29: Zach | O29: None,None,None | P29: 10 | Q29: 1547.311828 | R29: Kevin Plumer | S29: 1547.311828
A30: Zach Hoernemann | B30: Kongo | C30: Axis | D30: 4 | E30: 4.5 | F30: 43 | G30: 12 | H30: 56 | I30: 0 | J30: 1 | K30: 0 | L30: 0 | M30: 2350 | N30: Kevin | O30: None,None,None | P30: 8 | Q30: 1477.6 | R30: Zach Hoernemann | S30: 1477.6

Sheet Nats 1 2
I1: Winner: | J1: =IF(K2>K3, B2, IF(K3>K2, B3, "Tie")) -> Axis | L1: Battle Type | M1: Battle Location and Month (i.e. MD May) | N1: Nats | S1: Fleet
A2: Fleet 1 : | B2: Allied | D2: Fleet Units: | E2: 66 | F2: Fleet Weight: | G2: 109.5 | H2: Fleet Battle Damage: | I2: 17190 | J2: Fleet Score: | K2: 12110.00098 | M2: Battle Day | N2: 1 | S2: Mini-Fleet
A3: Fleet 2 : | B3: Axis | D3: Fleet Units: | E3: 56 | F3: Fleet Weight: | G3: 95.5 | H3: Fleet Battle Damage: | I3: 12610 | J3: Fleet Score: | K3: 16790 | M3: Battle Number | N3: 2 | S3: Individual
A4: Captian | B4: Ship | C4: Fleet | D4: Class | E4: Units | F4: Above | G4: On | H4: Below | I4: Sinks | J4: Participate all Sorties | K4: Penalties Points | L4: 2nd Sortie Sink | M4: Damage Points | N4: Scored By | O4: Notes | P4: Weight Factor | Q4: Weight Points | R4: Captian | S4: Captain Points | T4: Indiv Points
A5: Craig Singer | B5: Nagato | C5: Axis | D5: 6 | E5: 6 | F5: 40 | G5: 9 | H5: 25 | I5: 0 | J5: 1 | K5: 0 | L5: 0 | M5: 1330 | N5: Kas | O5: None,None,None | P5: 10 | Q5: 1800 | R5: Craig Singer | S5: 1800
A6: Caleb Smith | B6: Courbet | C6: Allied | D6: 4 | E6: 4.5 | F6: 51 | G6: 13 | H6: 26 | I6: 0 | J6: 1 | K6: 200 | L6: 0 | M6: 1550 | N6: Charley | O6: Ram Below,None,None | P6: 8 | Q6: 721.2785388 | R6: Caleb Smith | S6: 721.2785388
A7: Steve Andrews | B7: Courbet | C7: Allied | D7: 4 | E7: 4.5 | F7: 14 | G7: 11 | H7: 26 | I7: 0 | J7: 1 | K7: 0 | L7: 0 | M7: 1140 | N7: Sydnee | O7: None,None,None | P7: 8 | Q7: 921.2785388 | R7: Steve Andrews | S7: 921.2785388
A8: Tom Palmer | B8: Warspite | C8: Allied | D8: 5 | E8: 5.5 | F8: 40 | G8: 21 | H8: 50 | I8: 1 | J8: 1 | K8: 0 | L8: 1 | M8: 3220 | N8: Brian | O8: None,None,None | P8: 9 | Q8: 1036.438356 | R8: Tom Palmer | S8: 836.4383562
A9: William Tustin | B9: Agincourt | C9: Allied | D9: 5 | E9: 5.5 | F9: 49 | G9: 17 | H9: 25 | I9: 1 | J9: 1 | K9: 0 | L9: 1 | M9: 2480 | N9: Craig | O9: None,None,None | P9: 9 | Q9: 1036.438356 | R9: William Tustin | S9: 836.4383562
A10: Bob Hoernemann | B10: Nagato | C10: Axis | D10: 6 | E10: 6 | F10: 11 | G10: 4 | H10: 9 | I10: 1 | J10: 1 | K10: 0 | L10: 1 | M10: 1460 | N10: Brian | O10: None,None,None | P10: 10 | Q10: 1800 | R10: Bob Hoernemann | S10: 1600
A11: Charley Stephens | B11: Seydlitz | C11: Axis | D11: 4 | E11: 4.5 | F11: 10 | G11: 8 | H11: 19 | I11: 0 | J11: 1 | K11: 0 | L11: 0 | M11: 830 | N11: Rob | O11: None,None,None | P11: 8 | Q11: 1440 | R11: Charley Stephens | S11: 1440
A12: Andy Terpstra | B12: Kongo | C12: Axis | D12: 4 | E12: 4.5 | F12: 77 | G12: 10 | H12: 56 | I12: 1 | J12: 1 | K12: 0 | L12: 1 | M12: 3450 | N12: Rick | O12: None,None,None | P12: 8 | Q12: 1440 | R12: Andy Terpstra | S12: 1240
A13: Ginger Andrews | B13: Des Moines | C13: Allied | D13: 3 | E13: 3.5 | F13: 14 | G13: 0 | H13: 6 | I13: 0 | J13: 1 | K13: 0 | L13: 0 | M13: 320 | N13: Tom | O13: None,None,None | P13: 7 | Q13: 806.1187215 | R13: Ginger Andrews | S13: 806.1187215
A14: Brandon Graham | B14: Courbet | C14: Allied | D14: 4 | E14: 4.5 | F14: 25 | G14: 4 | H14: 16 | I14: 0 | J14: 1 | K14: 0 | L14: 0 | M14: 810 | N14: Andy | O14: None,None,None | P14: 8 | Q14: 921.2785388 | R14: Brandon Graham | S14: 921.2785388
A15: Kevin Sundberg | B15: Invincible | C15: Allied | D15: 4 | E15: 4 | F15: 1 | G15: 1 | H15: 0 | I15: 0 | J15: 1 | K15: 0 | L15: 0 | M15: 30 | N15: Craig | O15: None,None,None | P15: 8 | Q15: 921.2785388 | R15: Kevin Sundberg | S15: 921.2785388
A16: Matt Andrews | B16: Iron Duke | C16: Allied | D16: 5 | E16: 5 | F16: 53 | G16: 16 | H16: 29 | I16: 1 | J16: 0 | K16: 100 | L16: 0 | M16: 2620 | N16: Tom | O16: Ram Above Craig,None,None | P16: 4.5 | Q16: 418.2191781 | R16: Matt Andrews | S16: 418.2191781
A17: Kevin Plumer | B17: Missouri | C17: Allied | D17: 7 | E17: 8 | F17: 50 | G17: 10 | H17: 15 | I17: 0 | J17: 1 | K17: 0 | L17: 0 | M17: 1150 | N17: Brian | O17: None,None,None | P17: 10 | Q17: 1151.598174 | R17: Kevin Plumer | S17: 1151.598174
A18: Tom Tanner | B18: Ostfriesland | C18: Axis | D18: 4 | E18: 4 | F18: 8 | G18: 4 | H18: 7 | I18: 0 | J18: 1 | K18: 0 | L18: 0 | M18: 370 | N18: Brandon | O18: None,None,None | P18: 8 | Q18: 1440 | R18: Tom Tanner | S18: 1440
A19: Brian Koehler | B19: QE | C19: Allied | D19: 5 | E19: 5.5 | F19: 29 | G19: 4 | H19: 17 | I19: 1 | J19: 1 | K19: 0 | L19: 1 | M19: 1780 | N19: Chris | O19: None,None,None | P19: 9 | Q19: 1036.438356 | R19: Brian Koehler | S19: 836.4383562
A20: Zach Hoernemann | B20: Radetzky | C20: Axis | D20: 3 | E20: 3.5 | F20: 5 | G20: 2 | H20: 2 | I20: 0 | J20: 0 | K20: 0 | L20: 0 | M20: 150 | N20: Mike | O20: None,None,None | P20: 3.5 | Q20: 630 | R20: Zach Hoernemann | S20: 630
A21: Zach Hoernemann | B21: Kongo | C21: Axis | D21: 4 | E21: 4.5 | F21: 25 | G21: 0 | H21: 5 | I21: 1 | J21: 0 | K21: 0 | L21: 0 | M21: 1200 | N21: Mike | O21: None,None,None | P21: 4 | Q21: 720 | R21: Zach Hoernemann | S21: 720
A22: Matt Larson | B22: Nagato | C22: Axis | D22: 6 | E22: 6 | F22: 50 | G22: 2 | H22: 11 | I22: 0 | J22: 1 | K22: 200 | L22: 0 | M22: 870 | N22: Mike | O22: Ram Below Kevin,None,None | P22: 10 | Q22: 1600 | R22: Matt Larson | S22: 1600
A23: Robert Stalnaker | B23: Revenge | C23: Allied | D23: 5 | E23: 5.5 | F23: 22 | G23: 0 | H23: 3 | I23: 1 | J23: 1 | K23: 0 | L23: 1 | M23: 1210 | N23: Craig | O23: None,None,None | P23: 9 | Q23: 1036.438356 | R23: Robert Stalnaker | S23: 836.4383562
A24: Rick Whitsell | B24: Jamaica | C24: Allied | D24: 2 | E24: 2.5 | F24: 4 | G24: 1 | H24: 1 | I24: 0 | J24: 1 | K24: 0 | L24: 0 | M24: 90 | N24: Tim | O24: None,None,None | P24: 6 | Q24: 690.9589041 | R24: Rick Whitsell | S24: 690.9589041
A25: Nate Graham | B25: Gearing | C25: Allied | D25: 1 | E25: 1.5 | F25: 8 | G25: 2 | H25: 1 | I25: 0 | J25: 1 | K25: 0 | L25: 0 | M25: 150 | N25: Isaac | O25: None,None,None | P25: 4 | Q25: 460.6392694 | R25: Nate Graham | S25: 460.6392694
A26: Brian Lamb | B26: Seydlitz | C26: Axis | D26: 4 | E26: 4.5 | F26: 35 | G26: 7 | H26: 26 | I26: 0 | J26: 1 | K26: 0 | L26: 0 | M26: 1270 | N26: Kevin | O26: None,None,None | P26: 8 | Q26: 1440 | R26: Brian Lamb | S26: 1440
A27: Kas Gaigalas | B27: Washington | C27: Allied | D27: 6 | E27: 6 | F27: 24 | G27: 2 | H27: 12 | I27: 0 | J27: 1 | K27: 200 | L27: 0 | M27: 640 | N27: Craig | O27: Ram Below Sydnee,None,None | P27: 10 | Q27: 951.5981735 | R27: Kas Gaigalas | S27: 951.5981735
A28: Sydnee McKinzie | B28: Radetzky | C28: Axis | D28: 3 | E28: 3.5 | F28: 13 | G28: 5 | H28: 5 | I28: 0 | J28: 1 | K28: 0 | L28: 0 | M28: 380 | N28: Ginger | O28: None,None,None | P28: 7 | Q28: 1260 | R28: Sydnee McKinzie | S28: 1260
A29: Timothy Beckett | B29: Foch | C29: Axis | D29: 3 | E29: 3 | F29: 10 | G29: 2 | H29: 2 | I29: 0 | J29: 1 | K29: 0 | L29: 0 | M29: 200 | N29: Rick | O29: None,None,None | P29: 7 | Q29: 1260 | R29: Timothy Beckett | S29: 1260
A30: Isaac McKinzie | B30: Capitani Romani | C30: Axis | D30: 1 | E30: 1.5 | F30: 3 | G30: 0 | H30: 2 | I30: 1 | J30: 1 | K30: 0 | L30: 1 | M30: 490 | N30: Nate | O30: None,None,None | P30: 4 | Q30: 720 | R30: Isaac McKinzie | S30: 520
A31: Chris Pearce | B31: Seydlitz | C31: Axis | D31: 4 | E31: 4.5 | F31: 15 | G31: 11 | H31: 8 | I31: 0 | J31: 1 | K31: 200 | L31: 0 | M31: 610 | N31: Brian | O31: Ram Below Kevin,None,None | P31: 8 | Q31: 1240 | R31: Chris Pearce | S31: 1240

Sheet Nats 1 1
I1: Winner: | J1: =IF(K2>K3, B2, IF(K3>K2, B3, "Tie")) -> Axis | L1: Battle Type | M1: Battle Location and Month (i.e. MD May) | N1: Nats | S1: Fleet
A2: Fleet 1 : | B2: Allied | D2: Fleet Units: | E2: 65 | F2: Fleet Weight: | G2: 108 | H2: Fleet Battle Damage: | I2: 18420 | J2: Fleet Score: | K2: 12329.99902 | M2: Battle Day | N2: 1 | S2: Mini-Fleet
A3: Fleet 2 : | B3: Axis | D3: Fleet Units: | E3: 52.5 | F3: Fleet Weight: | G3: 92 | H3: Fleet Battle Damage: | I3: 13330 | J3: Fleet Score: | K3: 17920.00195 | M3: Battle Number | N3: 1 | S3: Individual
A4: Captian | B4: Ship | C4: Fleet | D4: Class | E4: Units | F4: Above | G4: On | H4: Below | I4: Sinks | J4: Participate all Sorties | K4: Penalties Points | L4: 2nd Sortie Sink | M4: Damage Points | N4: Scored By | O4: Notes | P4: Weight Factor | Q4: Weight Points | R4: Captian | S4: Captain Points | T4: Indiv Points
A5: Kevin Sundberg | B5: Invincible | C5: Allied | D5: 4 | E5: 4 | F5: 7 | G5: 0 | H5: 0 | I5: 0 | J5: 1 | K5: 0 | L5: 0 | M5: 70 | N5: Chris | O5: None,None,None | P5: 8 | Q5: 987.4074074 | R5: Kevin Sundberg | S5: 987.4074074
A6: Ginger Andrews | B6: Des Moines | C6: Allied | D6: 3 | E6: 3.5 | F6: 28 | G6: 5 | H6: 18 | I6: 0 | J6: 1 | K6: 0 | L6: 0 | M6: 920 | N6: Sydnee | O6: None,None,None | P6: 7 | Q6: 863.9814815 | R6: Ginger Andrews | S6: 863.9814815
A7: William Tustin | B7: Jean Bart | C7: Allied | D7: 6 | E7: 6.5 | F7: 71 | G7: 13 | H7: 29 | I7: 1 | J7: 0 | K7: 0 | L7: 0 | M7: 2840 | N7: Chris | O7: None,None,None | P7: 5 | Q7: 617.1296296 | R7: William Tustin | S7: 617.1296296
A8: Nate Graham | B8: Gearing | C8: Allied | D8: 1 | E8: 1.5 | F8: 1 | G8: 0 | H8: 0 | I8: 0 | J8: 1 | K8: 0 | L8: 0 | M8: 10 | N8: Tom | O8: None,None,None | P8: 4 | Q8: 493.7037037 | R8: Nate Graham | S8: 493.7037037
A9: Brandon Graham | B9: Courbet | C9: Allied | D9: 4 | E9: 4.5 | F9: 37 | G9: 3 | H9: 29 | I9: 0 | J9: 1 | K9: 0 | L9: 0 | M9: 1300 | N9: Chris | O9: None,None,None | P9: 8 | Q9: 987.4074074 | R9: Brandon Graham | S9: 987.4074074
A10: Tom Palmer | B10: Warspite | C10: Allied | D10: 5 | E10: 5.5 | F10: 26 | G10: 9 | H10: 12 | I10: 0 | J10: 1 | K10: 0 | L10: 0 | M10: 800 | N10: Matt | O10: None,None,None | P10: 9 | Q10: 1110.833333 | R10: Tom Palmer | S10: 1110.833333
A11: Rick Whitsell | B11: Jamaica | C11: Allied | D11: 2 | E11: 2.5 | F11: 12 | G11: 6 | H11: 3 | I11: 0 | J11: 1 | K11: 0 | L11: 0 | M11: 330 | N11: Tim | O11: None,None,None | P11: 6 | Q11: 740.5555556 | R11: Rick Whitsell | S11: 740.5555556
A12: Kas Gaigalas | B12: Washington | C12: Allied | D12: 6 | E12: 6 | F12: 43 | G12: 8 | H12: 28 | I12: 0 | J12: 1 | K12: 0 | L12: 0 | M12: 1430 | N12: Craig | O12: None,None,None | P12: 10 | Q12: 1234.259259 | R12: Kas Gaigalas | S12: 1234.259259
A13: Brian Koehler | B13: Ajax | C13: Allied | D13: 2 | E13: 2.5 | F13: 0 | G13: 1 | H13: 1 | I13: 0 | J13: 1 | K13: 0 | L13: 0 | M13: 50 | N13: Tom | O13: None,None,None | P13: 6 | Q13: 740.5555556 | R13: Brian Koehler | S13: 740.5555556
A14: Robert Stalnaker | B14: Revenge | C14: Allied | D14: 5 | E14: 5.5 | F14: 27 | G14: 2 | H14: 3 | I14: 1 | J14: 1 | K14: 0 | L14: 1 | M14: 1300 | N14: Tim | O14: None,None,None | P14: 9 | Q14: 1110.833333 | R14: Robert Stalnaker | S14: 910.8333333
A15: Caleb Smith | B15: Courbet | C15: Allied | D15: 4 | E15: 4.5 | F15: 103 | G15: 17 | H15: 30 | I15: 1 | J15: 1 | K15: 0 | L15: 1 | M15: 3070 | N15: tom | O15: None,None,None | P15: 8 | Q15: 987.4074074 | R15: Caleb Smith | S15: 787.4074074
A16: Chris Pearce | B16: Seydlitz | C16: Axis | D16: 4 | E16: 4.5 | F16: 2 | G16: 0 | H16: 0 | I16: 0 | J16: 0 | K16: 0 | L16: 0 | M16: 20 | N16: Brandon | O16: None,None,None | P16: 4 | Q16: 800.8695652 | R16: Chris Pearce | S16: 800.8695652
A17: Matt Andrews | B17: NC | C17: Allied | D17: 6 | E17: 6 | F17: 27 | G17: 7 | H17: 24 | I17: 0 | J17: 1 | K17: 1000 | L17: 0 | M17: 1130 | N17: Tommy | O17: Withdraw,None,None | P17: 10 | Q17: 234.2592593 | R17: Matt Andrews | S17: 234.2592593
A18: Charley Stephens | B18: Seydlitz | C18: Axis | D18: 4 | E18: 4.5 | F18: 18 | G18: 16 | H18: 31 | I18: 0 | J18: 1 | K18: 0 | L18: 0 | M18: 1430 | N18: Brian | O18: None,None,None | P18: 8 | Q18: 1601.73913 | R18: Charley Stephens | S18: 1601.73913
A19: Isaac McKinzie | B19: Capitani Romani | C19: Axis | D19: 1 | E19: 1.5 | F19: 6 | G19: 2 | H19: 5 | I19: 0 | J19: 1 | K19: 0 | L19: 0 | M19: 250 | N19: Kevin | O19: None,None,None | P19: 4 | Q19: 800.8695652 | R19: Isaac McKinzie | S19: 800.8695652
A20: Bob Hoernemann | B20: Nagato | C20: Axis | D20: 6 | E20: 6 | F20: 33 | G20: 6 | H20: 27 | I20: 1 | J20: 1 | K20: 100 | L20: 1 | M20: 2260 | N20: Kevin | O20: Ram Above Kevin,None,None | P20: 10 | Q20: 1902.173913 | R20: Bob Hoernemann | S20: 1702.173913
A21: Andy Terpstra | B21: Kongo | C21: Axis | D21: 4 | E21: 4.5 | F21: 55 | G21: 6 | H21: 17 | I21: 0 | J21: 1 | K21: 200 | L21: 0 | M21: 1180 | N21: Kevin | O21: Ram Below Brandon,None,None | P21: 8 | Q21: 1401.73913 | R21: Andy Terpstra | S21: 1401.73913
A22: Sydnee McKinzie | B22: Radetzky | C22: Axis | D22: 3 | E22: 3.5 | F22: 1 | G22: 5 | H22: 6 | I22: 0 | J22: 1 | K22: 0 | L22: 0 | M22: 290 | N22: Kevin | O22: None,None,None | P22: 7 | Q22: 1401.521739 | R22: Sydnee McKinzie | S22: 1401.521739
A23: Matt Larson | B23: Nagato | C23: Axis | D23: 6 | E23: 6 | F23: 31 | G23: 5 | H23: 14 | I23: 1 | J23: 1 | K23: 0 | L23: 1 | M23: 1830 | N23: Tom | O23: None,None,None | P23: 10 | Q23: 2002.173913 | R23: Matt Larson | S23: 1802.173913
A24: Zach Hoernemann | B24: Kongo | C24: Axis | D24: 4 | E24: 4.5 | F24: 9 | G24: 2 | H24: 20 | I24: 0 | J24: 1 | K24: 0 | L24: 0 | M24: 730 | N24: Rick | O24: None,None,None | P24: 8 | Q24: 1601.73913 | R24: Zach Hoernemann | S24: 1601.73913
A25: Timothy Beckett | B25: Foch | C25: Axis | D25: 3 | E25: 3 | F25: 10 | G25: 0 | H25: 1 | I25: 0 | J25: 1 | K25: 0 | L25: 0 | M25: 130 | N25: Matt | O25: None,None,None | P25: 7 | Q25: 1401.521739 | R25: Timothy Beckett | S25: 1401.521739
A26: Brian Lamb | B26: Seydlitz | C26: Axis | D26: 4 | E26: 4.5 | F26: 22 | G26: 4 | H26: 9 | I26: 0 | J26: 1 | K26: 0 | L26: 0 | M26: 570 | N26: Caleb | O26: None,None,None | P26: 8 | Q26: 1601.73913 | R26: Brian Lamb | S26: 1601.73913
A27: Tom Tanner | B27: Ostfriesland | C27: Axis | D27: 4 | E27: 4 | F27: 19 | G27: 2 | H27: 7 | I27: 0 | J27: 1 | K27: 200 | L27: 0 | M27: 440 | N27: Kevin S | O27: Ram Below Craig,None,None | P27: 8 | Q27: 1401.73913 | R27: Tom Tanner | S27: 1401.73913
A28: Steve Andrews | B28: Courbet | C28: Allied | D28: 4 | E28: 4.5 | F28: 62 | G28: 11 | H28: 51 | I28: 1 | J28: 1 | K28: 0 | L28: 1 | M28: 3170 | N28: Andy | O28: None,None,None | P28: 8 | Q28: 987.4074074 | R28: Steve Andrews | S28: 787.4074074
A29: Craig Singer | B29: Nagato | C29: Axis | D29: 6 | E29: 6 | F29: 114 | G29: 13 | H29: 60 | I29: 1 | J29: 1 | K29: 0 | L29: 1 | M29: 4200 | N29: Kas | O29: None,None,None | P29: 10 | Q29: 2002.173913 | R29: Craig Singer | S29: 1802.173913
A30: Kevin Plumer | B30: Missouri | C30: Allied | D30: 7 | E30: 8 | F30: 75 | G30: 13 | H30: 33 | I30: 0 | J30: 1 | K30: 0 | L30: 0 | M30: 2000 | N30: Andy | O30: None,None,None | P30: 10 | Q30: 1234.259259 | R30: Kevin Plumer | S30: 1234.259259

Sheet MN May 1 2
I1: Winner: | J1: =IF(K2>K3, B2, IF(K3>K2, B3, "Tie")) -> Flag | L1: Battle Type | M1: Battle Location and Month (i.e. MD May) | N1: MN May | S1: Fleet
A2: Fleet 1 : | B2: Flag | D2: Fleet Units: | E2: 12 | F2: Fleet Weight: | G2: 23 | H2: Fleet Battle Damage: | I2: 6050 | J2: Fleet Score: | K2: 7300 | M2: Battle Day | N2: 1 | S2: Mini-Fleet
A3: Fleet 2 : | B3: No Flag | D3: Fleet Units: | E3: 16 | F3: Fleet Weight: | G3: 27 | H3: Fleet Battle Damage: | I3: 7300 | J3: Fleet Score: | K3: 6050 | M3: Battle Number | N3: 2 | S3: Individual
A4: Captian | B4: Ship | C4: Fleet | D4: Class | E4: Units | F4: Above | G4: On | H4: Below | I4: Sinks | J4: Participate all Sorties | K4: Penalties Points | L4: 2nd Sortie Sink | M4: Damage Points | N4: Scored By | O4: Notes | P4: Weight Factor | Q4: Weight Points | R4: Captian | S4: Captain Points | T4: Indiv Points
A5: Bob Hoernemann | B5: Nagato | C5: No Flag | D5: 6 | E5: 6 | F5: 23 | G5: 18 | H5: 47 | I5: 0 | J5: 1 | K5: 0 | L5: 0 | M5: 2000 | N5: Tyler | O5: None,None,None | P5: 10 | Q5: 2240.740741 | R5: Bob Hoernemann | S5: 2240.740741
A6: Bryan Box | B6: Texas | C6: No Flag | D6: 5 | E6: 5.5 | F6: 34 | G6: 4 | H6: 23 | I6: 2 | J6: 1 | K6: 0 | L6: 1 | M6: 2910 | N6: Tyler | O6: None,None,None | P6: 9 | Q6: 2016.666667 | R6: Bryan Box | S6: 1816.666667
A7: Zach Hoernemann | B7: Kongo | C7: No Flag | D7: 4 | E7: 4.5 | F7: 58 | G7: 7 | H7: 29 | I7: 1 | J7: 1 | K7: 0 | L7: 1 | M7: 2390 | N7: Tyler | O7: None,None,None | P7: 8 | Q7: 1792.592593 | R7: Zach Hoernemann | S7: 1592.592593
A8: Tyler Helland | B8: Derflinger | C8: Flag | D8: 4 | E8: 4.5 | F8: 25 | G8: 11 | H8: 61 | I8: 1 | J8: 1 | K8: 0 | L8: 1 | M8: 3100 | N8: Zach | O8: None,None,None | P8: 8 | Q8: 2539.130435 | R8: Tyler Helland | S8: 2339.130435
A9: Peter Ellison | B9: Erin | C9: Flag | D9: 4 | E9: 4.5 | F9: 54 | G9: 20 | H9: 33 | I9: 1 | J9: 1 | K9: 0 | L9: 1 | M9: 2730 | N9: Bob | O9: None,None,None | P9: 8 | Q9: 2539.130435 | R9: Peter Ellison | S9: 2339.130435
A10: McCoy Helland | B10: Zara | C10: Flag | D10: 3 | E10: 3 | F10: 1 | G10: 0 | H10: 7 | I10: 0 | J10: 1 | K10: 0 | L10: 0 | M10: 220 | N10: Bryan | O10: None,None,None | P10: 7 | Q10: 2221.73913 | R10: McCoy Helland | S10: 2221.73913

Sheet MN May 1 1
I1: Winner: | J1: =IF(K2>K3, B2, IF(K3>K2, B3, "Tie")) -> Axis | L1: Battle Type | M1: Battle Location and Month (i.e. MD May) | N1: MN May | S1: Fleet
A2: Fleet 1 : | B2: Allied | D2: Fleet Units: | E2: 12 | F2: Fleet Weight: | G2: 23 | H2: Fleet Battle Damage: | I2: 6980 | J2: Fleet Score: | K2: 5180 | M2: Battle Day | N2: 1 | S2: Mini-Fleet
A3: Fleet 2 : | B3: Axis | D3: Fleet Units: | E3: 16 | F3: Fleet Weight: | G3: 27 | H3: Fleet Battle Damage: | I3: 5180 | J3: Fleet Score: | K3: 6980 | M3: Battle Number | N3: 1 | S3: Individual
A4: Captian | B4: Ship | C4: Fleet | D4: Class | E4: Units | F4: Above | G4: On | H4: Below | I4: Sinks | J4: Participate all Sorties | K4: Penalties Points | L4: 2nd Sortie Sink | M4: Damage Points | N4: Scored By | O4: Notes | P4: Weight Factor | Q4: Weight Points | R4: Captian | S4: Captain Points | T4: Indiv Points
A5: Bob Hoernemann | B5: Nagato | C5: Axis | D5: 6 | E5: 6 | F5: 22 | G5: 9 | H5: 20 | I5: 1 | J5: 1 | K5: 0 | L5: 1 | M5: 2000 | N5: Tyler | O5: None,None,None | P5: 10 | Q5: 2585.185185 | R5: Bob Hoernemann | S5: 2385.185185
A6: Bryan Box | B6: Texas | C6: Axis | D6: 5 | E6: 5.5 | F6: 23 | G6: 3 | H6: 7 | I6: 1 | J6: 1 | K6: 0 | L6: 1 | M6: 1400 | N6: Peter | O6: None,None,None | P6: 9 | Q6: 2326.666667 | R6: Bryan Box | S6: 2126.666667
A7: Zach Hoernemann | B7: Kongo | C7: Axis | D7: 4 | E7: 4.5 | F7: 40 | G7: 2 | H7: 18 | I7: 1 | J7: 1 | K7: 0 | L7: 1 | M7: 1780 | N7: Tyler | O7: None,None,None | P7: 8 | Q7: 2068.148148 | R7: Zach Hoernemann | S7: 1868.148148
A8: Tyler Helland | B8: Derflinger | C8: Allied | D8: 4 | E8: 4.5 | F8: 17 | G8: 10 | H8: 75 | I8: 1 | J8: 1 | K8: 0 | L8: 1 | M8: 3420 | N8: Zach | O8: None,None,None | P8: 8 | Q8: 1801.73913 | R8: Tyler Helland | S8: 1601.73913
A9: Peter Ellison | B9: Erin | C9: Allied | D9: 4 | E9: 4.5 | F9: 25 | G9: 7 | H9: 26 | I9: 1 | J9: 1 | K9: 0 | L9: 1 | M9: 1970 | N9: Bob | O9: None,None,None | P9: 8 | Q9: 1801.73913 | R9: Peter Ellison | S9: 1601.73913
A10: McCoy Helland | B10: Zara | C10: Allied | D10: 3 | E10: 3 | F10: 16 | G10: 5 | H10: 21 | I10: 1 | J10: 1 | K10: 0 | L10: 1 | M10: 1590 | N10: Bryan | O10: None,None,None | P10: 7 | Q10: 1576.521739 | R10: McCoy Helland | S10: 1376.521739

Sheet MI June 1 1
I1: Winner: | J1: =IF(K2>K3, B2, IF(K3>K2, B3, "Tie")) -> Allied | L1: Battle Type | M1: Battle Location and Month (i.e. MD May) | N1: MI June | S1: Fleet
A2: Fleet 1 : | B2: Allied | D2: Fleet Units: | E2: 11.5 | F2: Fleet Weight: | G2: 19 | H2: Fleet Battle Damage: | I2: 1550 | J2: Fleet Score: | K2: 5000 | M2: Battle Day | N2: 1 | S2: Mini-Fleet
A3: Fleet 2 : | B3: Axis | D3: Fleet Units: | E3: 10.5 | F3: Fleet Weight: | G3: 18 | H3: Fleet Battle Damage: | I3: 5000 | J3: Fleet Score: | K3: 1550 | M3: Battle Number | N3: 1 | S3: Individual
A4: Captian | B4: Ship | C4: Fleet | D4: Class | E4: Units | F4: Above | G4: On | H4: Below | I4: Sinks | J4: Participate all Sorties | K4: Penalties Points | L4: 2nd Sortie Sink | M4: Damage Points | N4: Scored By | O4: Notes | P4: Weight Factor | Q4: Weight Points | R4: Captian | S4: Captain Points | T4: Indiv Points
A5: Mark Roe | B5: Baden | C5: Allied | D5: 5 | E5: 5.5 | F5: 49 | G5: 13 | H5: 11 | I5: 0 | J5: 1 | K5: 0 | L5: 0 | M5: 1080 | N5: Will | O5: None,None,None | P5: 9 | Q5: 2368.421053 | R5: Mark Roe | S5: 2368.421053
A6: Kas Gaigalas | B6: Washington | C6: Allied | D6: 6 | E6: 6 | F6: 26 | G6: 0 | H6: 7 | I6: 0 | J6: 1 | K6: 0 | L6: 0 | M6: 470 | N6: Will | O6: None,None,None | P6: 10 | Q6: 2631.578947 | R6: Kas Gaigalas | S6: 2631.578947
A7: Craig Singer | B7: Nagato | C7: Axis | D7: 6 | E7: 6 | F7: 59 | G7: 6 | H7: 34 | I7: 1 | J7: 1 | K7: 0 | L7: 1 | M7: 2730 | N7: Kas | O7: None,None,None | P7: 10 | Q7: 861.1111111 | R7: Craig Singer | S7: 661.1111111
A8: Will Cover | B8: Derflinger | C8: Axis | D8: 4 | E8: 4.5 | F8: 89 | G8: 5 | H8: 16 | I8: 1 | J8: 1 | K8: 0 | L8: 1 | M8: 2270 | N8: Kas | O8: None,None,None | P8: 8 | Q8: 688.8888889 | R8: Will Cover | S8: 488.8888889

Sheet MI May 1 3
I1: Winner: | J1: =IF(K2>K3, B2, IF(K3>K2, B3, "Tie")) -> Allied | L1: Battle Type | M1: Battle Location and Month (i.e. MD May) | N1: MI May | S1: Fleet
A2: Fleet 1 : | B2: Allied | D2: Fleet Units: | E2: 6 | F2: Fleet Weight: | G2: 10 | H2: Fleet Battle Damage: | I2: 720 | J2: Fleet Score: | K2: 1750 | M2: Battle Day | N2: 1 | S2: Mini-Fleet
A3: Fleet 2 : | B3: Axis | D3: Fleet Units: | E3: 11.5 | F3: Fleet Weight: | G3: 19 | H3: Fleet Battle Damage: | I3: 1750 | J3: Fleet Score: | K3: 720 | M3: Battle Number | N3: 3 | S3: Individual
A4: Captian | B4: Ship | C4: Fleet | D4: Class | E4: Units | F4: Above | G4: On | H4: Below | I4: Sinks | J4: Participate all Sorties | K4: Penalties Points | L4: 2nd Sortie Sink | M4: Damage Points | N4: Scored By | O4: Notes | P4: Weight Factor | Q4: Weight Points | R4: Captian | S4: Captain Points | T4: Indiv Points
A5: Craig Singer | B5: Nagato | C5: Axis | D5: 6 | E5: 6 | F5: 38 | G5: 4 | H5: 9 | I5: 0 | J5: 1 | K5: 0 | L5: 0 | M5: 730 | N5: Kas | O5: None,None,None | P5: 10 | Q5: 378.9473684 | R5: Craig Singer | S5: 378.9473684
A6: Mark Roe | B6: Baden | C6: Axis | D6: 5 | E6: 5.5 | F6: 48 | G6: 6 | H6: 14 | I6: 0 | J6: 1 | K6: 0 | L6: 0 | M6: 1020 | N6: Kas | O6: None,None,None | P6: 9 | Q6: 341.0526316 | R6: Mark Roe | S6: 341.0526316
A7: Kas Gaigalas | B7: Washington | C7: Allied | D7: 6 | E7: 6 | F7: 34 | G7: 4 | H7: 10 | I7: 0 | J7: 1 | K7: 0 | L7: 0 | M7: 720 | N7: Mark | O7: None,None,None | P7: 10 | Q7: 1750 | R7: Kas Gaigalas | S7: 1750

Sheet MI May 1 2
I1: Winner: | J1: =IF(K2>K3, B2, IF(K3>K2, B3, "Tie")) -> Allied | L1: Battle Type | M1: Battle Location and Month (i.e. MD May) | N1: MI May | S1: Fleet
A2: Fleet 1 : | B2: Allied | D2: Fleet Units: | E2: 6 | F2: Fleet Weight: | G2: 10 | H2: Fleet Battle Damage: | I2: 980 | J2: Fleet Score: | K2: 1580 | M2: Battle Day | N2: 1 | S2: Mini-Fleet
A3: Fleet 2 : | B3: Axis | D3: Fleet Units: | E3: 11.5 | F3: Fleet Weight: | G3: 19 | H3: Fleet Battle Damage: | I3: 1580 | J3: Fleet Score: | K3: 980 | M3: Battle Number | N3: 2 | S3: Individual
A4: Captian | B4: Ship | C4: Fleet | D4: Class | E4: Units | F4: Above | G4: On | H4: Below | I4: Sinks | J4: Participate all Sorties | K4: Penalties Points | L4: 2nd Sortie Sink | M4: Damage Points | N4: Scored By | O4: Notes | P4: Weight Factor | Q4: Weight Points | R4: Captian | S4: Captain Points | T4: Indiv Points
A5: Craig Singer | B5: Nagato | C5: Axis | D5: 6 | E5: 6 | F5: 38 | G5: 4 | H5: 9 | I5: 0 | J5: 1 | K5: 0 | L5: 0 | M5: 730 | N5: Kas | O5: None,None,None | P5: 10 | Q5: 515.7894737 | R5: Craig Singer | S5: 515.7894737
A6: Mark Roe | B6: Baden | C6: Axis | D6: 5 | E6: 5.5 | F6: 48 | G6: 6 | H6: 14 | I6: 0 | J6: 1 | K6: 0 | L6: 0 | M6: 1020 | N6: Kas | O6: None,None,None | P6: 9 | Q6: 464.2105263 | R6: Mark Roe | S6: 464.2105263
A7: Kas Gaigalas | B7: Washington | C7: Allied | D7: 6 | E7: 6 | F7: 54 | G7: 4 | H7: 12 | I7: 0 | J7: 1 | K7: 0 | L7: 0 | M7: 980 | N7: Craig | O7: None,None,None | P7: 10 | Q7: 1580 | R7: Kas Gaigalas | S7: 1580

Sheet MI May 1 1
I1: Winner: | J1: =IF(K2>K3, B2, IF(K3>K2, B3, "Tie")) -> Allied | L1: Battle Type | M1: Battle Location and Month (i.e. MD May) | N1: MI May | S1: Fleet
A2: Fleet 1 : | B2: Allied | D2: Fleet Units: | E2: 6 | F2: Fleet Weight: | G2: 10 | H2: Fleet Battle Damage: | I2: 530 | J2: Fleet Score: | K2: 2580 | M2: Battle Day | N2: 1 | S2: Mini-Fleet
A3: Fleet 2 : | B3: Axis | D3: Fleet Units: | E3: 11.5 | F3: Fleet Weight: | G3: 19 | H3: Fleet Battle Damage: | I3: 2580 | J3: Fleet Score: | K3: 530 | M3: Battle Number | N3: 1 | S3: Individual
A4: Captian | B4: Ship | C4: Fleet | D4: Class | E4: Units | F4: Above | G4: On | H4: Below | I4: Sinks | J4: Participate all Sorties | K4: Penalties Points | L4: 2nd Sortie Sink | M4: Damage Points | N4: Scored By | O4: Notes | P4: Weight Factor | Q4: Weight Points | R4: Captian | S4: Captain Points | T4: Indiv Points
A5: Craig Singer | B5: Nagato | C5: Axis | D5: 6 | E5: 6 | F5: 36 | G5: 3 | H5: 10 | I5: 0 | J5: 1 | K5: 0 | L5: 0 | M5: 720 | N5: Kas | O5: None,None,None | P5: 10 | Q5: 278.9473684 | R5: Craig Singer | S5: 278.9473684
A6: Mark Roe | B6: Baden | C6: Axis | D6: 5 | E6: 5.5 | F6: 21 | G6: 15 | H6: 15 | I6: 1 | J6: 1 | K6: 0 | L6: 1 | M6: 1860 | N6: Kas | O6: None,None,None | P6: 9 | Q6: 251.0526316 | R6: Mark Roe | S6: 51.05263158
A7: Kas Gaigalas | B7: Washington | C7: Allied | D7: 6 | E7: 6 | F7: 23 | G7: 0 | H7: 10 | I7: 0 | J7: 1 | K7: 0 | L7: 0 | M7: 530 | N7: Mark Roe | O7: None,None,None | P7: 10 | Q7: 2580 | R7: Kas Gaigalas | S7: 2580

Sheet MN Sept Sat 3
I1: Winner: | J1: =IF(K2>K3, B2, IF(K3>K2, B3, "Tie")) -> Flag | L1: Battle Type | M1: Battle Location and Month (i.e. MD May) | N1: MN Sept | S1: Fleet
A2: Fleet 1 : | B2: Flag | D2: Fleet Units: | E2: 18 | F2: Fleet Weight: | G2: 33 | H2: Fleet Battle Damage: | I2: 6620 | J2: Fleet Score: | K2: 11340 | M2: Battle Day | N2: Sat | S2: Mini-Fleet
A3: Fleet 2 : | B3: No Flag | D3: Fleet Units: | E3: 12.5 | F3: Fleet Weight: | G3: 23 | H3: Fleet Battle Damage: | I3: 11340 | J3: Fleet Score: | K3: 6620 | M3: Battle Number | N3: 3 | S3: Individual
A4: Captian | B4: Ship | C4: Fleet | D4: Class | E4: Units | F4: Above | G4: On | H4: Below | I4: Sinks | J4: Participate all Sorties | K4: Penalties Points | L4: 2nd Sortie Sink | M4: Damage Points | N4: Scored By | O4: Notes | P4: Weight Factor | Q4: Weight Points | R4: Captian | S4: Captain Points | T4: Indiv Points
A5: Tyler Helland | B5: Nagato | C5: Flag | D5: 6 | E5: 6 | F5: 73 | G5: 16 | H5: 31 | I5: 0 | J5: 1 | K5: 0 | L5: 0 | M5: 1980 | N5: Bob | O5: None,None,None | P5: 10 | Q5: 3436.363636 | R5: Tyler Helland | S5: 3436.363636
A6: Andy Terpstra | B6: Barham | C6: No Flag | D6: 5 | E6: 5.5 | F6: 136 | G6: 9 | H6: 31 | I6: 1 | J6: 1 | K6: 0 | L6: 1 | M6: 3370 | N6: Tyler | O6: None,None,None | P6: 9 | Q6: 2590.434783 | R6: Andy Terpstra | S6: 2390.434783
A7: Bob Hoernemann | B7: Kongo | C7: No Flag | D7: 4 | E7: 4.5 | F7: 167 | G7: 24 | H7: 140 | I7: 2 | J7: 1 | K7: 0 | L7: 1 | M7: 7950 | N7: Tyler | O7: None,None,None | P7: 8 | Q7: 2302.608696 | R7: Bob Hoernemann | S7: 2102.608696
A8: Tom Palmer | B8: Alaska | C8: Flag | D8: 4 | E8: 4.5 | F8: 33 | G8: 14 | H8: 49 | I8: 0 | J8: 1 | K8: 0 | L8: 0 | M8: 2080 | N8: Tom | O8: None,None,None | P8: 8 | Q8: 2749.090909 | R8: Tom Palmer | S8: 2749.090909
A9: Peter Ellison | B9: Erin | C9: Flag | D9: 4 | E9: 4.5 | F9: 80 | G9: 14 | H9: 31 | I9: 0 | J9: 1 | K9: 0 | L9: 0 | M9: 2010 | N9: Andy | O9: None,None,None | P9: 8 | Q9: 2749.090909 | R9: Peter Ellison | S9: 2749.090909
A10: Rick Whitsell | B10: Jamaica | C10: No Flag | D10: 2 | E10: 2.5 | F10: 2 | G10: 0 | H10: 0 | I10: 0 | J10: 1 | K10: 0 | L10: 0 | M10: 20 | N10: Rick | O10: None,None,None | P10: 6 | Q10: 1726.956522 | R10: Rick Whitsell | S10: 1726.956522
A11: McCoy Helland | B11: Zara | C11: Flag | D11: 3 | E11: 3 | F11: 26 | G11: 4 | H11: 7 | I11: 0 | J11: 1 | K11: 0 | L11: 0 | M11: 550 | N11: Andy | O11: None,None,None | P11: 7 | Q11: 2405.454545 | R11: McCoy Helland | S11: 2405.454545

Sheet MN Sept Sat 2
I1: Winner: | J1: =IF(K2>K3, B2, IF(K3>K2, B3, "Tie")) -> No Flag | L1: Battle Type | M1: Battle Location and Month (i.e. MD May) | N1: MN Sept | S1: Fleet
A2: Fleet 1 : | B2: Flag | D2: Fleet Units: | E2: 18 | F2: Fleet Weight: | G2: 33 | H2: Fleet Battle Damage: | I2: 7570 | J2: Fleet Score: | K2: 7440 | M2: Battle Day | N2: Sat | S2: Mini-Fleet
A3: Fleet 2 : | B3: No Flag | D3: Fleet Units: | E3: 12.5 | F3: Fleet Weight: | G3: 23 | H3: Fleet Battle Damage: | I3: 7440 | J3: Fleet Score: | K3: 7570 | M3: Battle Number | N3: 2 | S3: Individual
A4: Captian | B4: Ship | C4: Fleet | D4: Class | E4: Units | F4: Above | G4: On | H4: Below | I4: Sinks | J4: Participate all Sorties | K4: Penalties Points | L4: 2nd Sortie Sink | M4: Damage Points | N4: Scored By | O4: Notes | P4: Weight Factor | Q4: Weight Points | R4: Captian | S4: Captain Points | T4: Indiv Points
A5: Tyler Helland | B5: Nagato | C5: Flag | D5: 6 | E5: 6 | F5: 29 | G5: 4 | H5: 16 | I5: 0 | J5: 1 | K5: 0 | L5: 0 | M5: 850 | N5: Bob | O5: None,None,None | P5: 10 | Q5: 2254.545455 | R5: Tyler Helland | S5: 2254.545455
A6: Andy Terpstra | B6: Barham | C6: No Flag | D6: 5 | E6: 5.5 | F6: 113 | G6: 7 | H6: 32 | I6: 0 | J6: 1 | K6: 0 | L6: 0 | M6: 2230 | N6: Tyler | O6: None,None,None | P6: 9 | Q6: 2962.173913 | R6: Andy Terpstra | S6: 2962.173913
A7: Bob Hoernemann | B7: Kongo | C7: No Flag | D7: 4 | E7: 4.5 | F7: 97 | G7: 18 | H7: 82 | I7: 1 | J7: 1 | K7: 0 | L7: 1 | M7: 4590 | N7: Tyler | O7: None,None,None | P7: 8 | Q7: 2633.043478 | R7: Bob Hoernemann | S7: 2433.043478
A8: Tom Palmer | B8: Alaska | C8: Flag | D8: 4 | E8: 4.5 | F8: 65 | G8: 6 | H8: 41 | I8: 1 | J8: 1 | K8: 0 | L8: 1 | M8: 2800 | N8: Tom | O8: None,None,None | P8: 8 | Q8: 1803.636364 | R8: Tom Palmer | S8: 1603.636364
A9: Peter Ellison | B9: Erin | C9: Flag | D9: 4 | E9: 4.5 | F9: 50 | G9: 5 | H9: 35 | I9: 1 | J9: 1 | K9: 0 | L9: 1 | M9: 2450 | N9: Bob | O9: None,None,None | P9: 8 | Q9: 1803.636364 | R9: Peter Ellison | S9: 1603.636364
A10: Rick Whitsell | B10: Jamaica | C10: No Flag | D10: 2 | E10: 2.5 | F10: 2 | G10: 0 | H10: 0 | I10: 1 | J10: 1 | K10: 0 | L10: 1 | M10: 620 | N10: Rick | O10: None,None,None | P10: 6 | Q10: 1974.782609 | R10: Rick Whitsell | S10: 1774.782609
A11: McCoy Helland | B11: Zara | C11: Flag | D11: 3 | E11: 3 | F11: 24 | G11: 10 | H11: 11 | I11: 1 | J11: 1 | K11: 0 | L11: 1 | M11: 1470 | N11: Bob | O11: None,None,None | P11: 7 | Q11: 1578.181818 | R11: McCoy Helland | S11: 1378.181818

Sheet MN Sept Sat 1
I1: Winner: | J1: =IF(K2>K3, B2, IF(K3>K2, B3, "Tie")) -> No Flag | L1: Battle Type | M1: Battle Location and Month (i.e. MD May) | N1: MN Sept | S1: Fleet
A2: Fleet 1 : | B2: Flag | D2: Fleet Units: | E2: 18 | F2: Fleet Weight: | G2: 33 | H2: Fleet Battle Damage: | I2: 6660 | J2: Fleet Score: | K2: 5419.999512 | M2: Battle Day | N2: Sat | S2: Mini-Fleet
A3: Fleet 2 : | B3: No Flag | D3: Fleet Units: | E3: 12.5 | F3: Fleet Weight: | G3: 23 | H3: Fleet Battle Damage: | I3: 5420 | J3: Fleet Score: | K3: 6660 | M3: Battle Number | N3: 1 | S3: Individual
A4: Captian | B4: Ship | C4: Fleet | D4: Class | E4: Units | F4: Above | G4: On | H4: Below | I4: Sinks | J4: Participate all Sorties | K4: Penalties Points | L4: 2nd Sortie Sink | M4: Damage Points | N4: Scored By | O4: Notes | P4: Weight Factor | Q4: Weight Points | R4: Captian | S4: Captain Points | T4: Indiv Points
A5: Tyler Helland | B5: Nagato | C5: Flag | D5: 6 | E5: 6 | F5: 55 | G5: 9 | H5: 22 | I5: 0 | J5: 1 | K5: 0 | L5: 0 | M5: 1390 | N5: Bob | O5: None,None,None | P5: 10 | Q5: 1642.424242 | R5: Tyler Helland | S5: 1642.424242
A6: Andy Terpstra | B6: Barham | C6: No Flag | D6: 5 | E6: 5.5 | F6: 100 | G6: 6 | H6: 27 | I6: 0 | J6: 1 | K6: 0 | L6: 0 | M6: 1930 | N6: tyler | O6: None,None,None | P6: 9 | Q6: 2606.086957 | R6: Andy Terpstra | S6: 2606.086957
A7: Bob Hoernemann | B7: Kongo | C7: No Flag | D7: 4 | E7: 4.5 | F7: 109 | G7: 7 | H7: 71 | I7: 0 | J7: 1 | K7: 0 | L7: 0 | M7: 3360 | N7: Tyler | O7: None,None,None | P7: 8 | Q7: 2316.521739 | R7: Bob Hoernemann | S7: 2316.521739
A8: Tom Palmer | B8: Alaska | C8: Flag | D8: 4 | E8: 4.5 | F8: 48 | G8: 4 | H8: 25 | I8: 1 | J8: 1 | K8: 0 | L8: 1 | M8: 2110 | N8: Tom | O8: None,None,None | P8: 8 | Q8: 1313.939394 | R8: Tom Palmer | S8: 1113.939394
A9: Peter Ellison | B9: Erin | C9: Flag | D9: 4 | E9: 4.5 | F9: 57 | G9: 8 | H9: 27 | I9: 1 | J9: 1 | K9: 0 | L9: 1 | M9: 2340 | N9: Bob | O9: None,None,None | P9: 8 | Q9: 1313.939394 | R9: Peter Ellison | S9: 1113.939394
A10: McCoy Helland | B10: Zara | C10: Flag | D10: 3 | E10: 3 | F10: 8 | G10: 7 | H10: 20 | I10: 0 | J10: 1 | K10: 0 | L10: 0 | M10: 820 | N10: Bob | O10: None,None,None | P10: 7 | Q10: 1149.69697 | R10: McCoy Helland | S10: 1149.69697
A11: Rick Whitsell | B11: Jamaica | C11: No Flag | D11: 2 | E11: 2.5 | F11: 7 | G11: 0 | H11: 2 | I11: 0 | J11: 1 | K11: 0 | L11: 0 | M11: 130 | N11: Rick | O11: None,None,None | P11: 6 | Q11: 1737.391304 | R11: Rick Whitsell | S11: 1737.391304

Sheet MD Sept Sun 1
I1: Winner: | J1: =IF(K2>K3, B2, IF(K3>K2, B3, "Tie")) -> Axis | L1: Battle Type | M1: Battle Location and Month (i.e. MD May) | N1: MD Sept | S1: Fleet
A2: Fleet 1 : | B2: Allied | D2: Fleet Units: | E2: 15.5 | F2: Fleet Weight: | G2: 25.5 | H2: Fleet Battle Damage: | I2: 5850 | J2: Fleet Score: | K2: 4400 | M2: Battle Day | N2: Sun | S2: Mini-Fleet
A3: Fleet 2 : | B3: Axis | D3: Fleet Units: | E3: 12.5 | F3: Fleet Weight: | G3: 23 | H3: Fleet Battle Damage: | I3: 5100 | J3: Fleet Score: | K3: 5650 | M3: Battle Number | N3: 1 | S3: Individual
A4: Captian | B4: Ship | C4: Fleet | D4: Class | E4: Units | F4: Above | G4: On | H4: Below | I4: Sinks | J4: Participate all Sorties | K4: Penalties Points | L4: 2nd Sortie Sink | M4: Damage Points | N4: Scored By | O4: Notes | P4: Weight Factor | Q4: Weight Points | R4: Captian | S4: Captain Points | T4: Indiv Points
A5: Ginger Andrews | B5: Des Moines | C5: Allied | D5: 3 | E5: 3.5 | F5: 1 | G5: 0 | H5: 0 | I5: 0 | J5: 0 | K5: 700 | L5: 0 | M5: 10 | N5: Ginger | O5: Withdraw,None,None | P5: 3.5 | Q5: 1.136868377e-13 | R5: Ginger Andrews | S5: 1.136868377e-13
A6: Tom Tanner | B6: Ostfriesland | C6: Axis | D6: 4 | E6: 4.5 | F6: 57 | G6: 13 | H6: 28 | I6: 1 | J6: 1 | K6: 0 | L6: 1 | M6: 2470 | N6: Tom | O6: None,None,None | P6: 8 | Q6: 2034.782609 | R6: Tom Tanner | S6: 1834.782609
A7: Steve Andrews | B7: Courbet | C7: Axis | D7: 4 | E7: 4.5 | F7: 34 | G7: 23 | H7: 29 | I7: 1 | J7: 1 | K7: 200 | L7: 1 | M7: 2470 | N7: Steve | O7: Ram Below Kevin,None,None | P7: 8 | Q7: 1834.782609 | R7: Steve Andrews | S7: 1634.782609
A8: Nate Graham | B8: Gearing | C8: Allied | D8: 1 | E8: 1.5 | F8: 2 | G8: 0 | H8: 0 | I8: 0 | J8: 1 | K8: 0 | L8: 0 | M8: 20 | N8: Nate | O8: None,None,None | P8: 4 | Q8: 800 | R8: Nate Graham | S8: 800
A9: Matt Andrews | B9: Iron Duke | C9: Allied | D9: 5 | E9: 5 | F9: 104 | G9: 9 | H9: 31 | I9: 0 | J9: 1 | K9: 0 | L9: 0 | M9: 2150 | N9: Matt | O9: None,None,None | P9: 9 | Q9: 1800 | R9: Matt Andrews | S9: 1800
A10: Kevin Plumer | B10: Agincourt | C10: Allied | D10: 5 | E10: 5.5 | F10: 94 | G10: 18 | H10: 49 | I10: 1 | J10: 1 | K10: 0 | L10: 1 | M10: 3670 | N10: Kevin | O10: None,None,None | P10: 9 | Q10: 1800 | R10: Kevin Plumer | S10: 1600
A11: Marty Hayes | B11: Des Moines | C11: Axis | D11: 3 | E11: 3.5 | F11: 10 | G11: 0 | H11: 2 | I11: 0 | J11: 1 | K11: 0 | L11: 0 | M11: 160 | N11: Kevin | O11: None,None,None | P11: 7 | Q11: 1780.434783 | R11: Marty Hayes | S11: 1780.434783

Sheet MD Sept Sat 2
I1: Winner: | J1: =IF(K2>K3, B2, IF(K3>K2, B3, "Tie")) -> No Flag | L1: Battle Type | M1: Battle Location and Month (i.e. MD May) | N1: MD Sept | S1: Fleet
A2: Fleet 1 : | B2: Flag | D2: Fleet Units: | E2: 14 | F2: Fleet Weight: | G2: 25 | H2: Fleet Battle Damage: | I2: 4720 | J2: Fleet Score: | K2: 3880 | M2: Battle Day | N2: Sat | S2: Mini-Fleet
A3: Fleet 2 : | B3: No Flag | D3: Fleet Units: | E3: 16 | F3: Fleet Weight: | G3: 28 | H3: Fleet Battle Damage: | I3: 4680 | J3: Fleet Score: | K3: 4520 | M3: Battle Number | N3: 2 | S3: Individual
A4: Captian | B4: Ship | C4: Fleet | D4: Class | E4: Units | F4: Above | G4: On | H4: Below | I4: Sinks | J4: Participate all Sorties | K4: Penalties Points | L4: 2nd Sortie Sink | M4: Damage Points | N4: Scored By | O4: Notes | P4: Weight Factor | Q4: Weight Points | R4: Captian | S4: Captain Points | T4: Indiv Points
A5: Ginger Andrews | B5: Des Moines | C5: Flag | D5: 3 | E5: 3.5 | F5: 4 | G5: 0 | H5: 2 | I5: 0 | J5: 1 | K5: 0 | L5: 0 | M5: 100 | N5: Ginger | O5: None,None,None | P5: 7 | Q5: 1310.4 | R5: Ginger Andrews | S5: 1310.4
A6: Matt Andrews | B6: Iron Duke | C6: Flag | D6: 5 | E6: 5 | F6: 47 | G6: 5 | H6: 19 | I6: 0 | J6: 1 | K6: 800 | L6: 0 | M6: 1140 | N6: Matt | O6: Ram Sink Steve,None,None | P6: 9 | Q6: 884.8 | R6: Matt Andrews | S6: 884.8
A7: Steve Andrews | B7: Courbet | C7: No Flag | D7: 4 | E7: 4.5 | F7: 36 | G7: 7 | H7: 19 | I7: 0 | J7: 1 | K7: 0 | L7: 0 | M7: 1070 | N7: Kevin | O7: None,None,None | P7: 8 | Q7: 1348.571429 | R7: Steve Andrews | S7: 1348.571429
A8: Marty Hayes | B8: South Carolina | C8: No Flag | D8: 4 | E8: 4 | F8: 23 | G8: 5 | H8: 12 | I8: 0 | J8: 1 | K8: 0 | L8: 0 | M8: 690 | N8: Marty | O8: None,None,None | P8: 8 | Q8: 1348.571429 | R8: Marty Hayes | S8: 1348.571429
A9: Nate Graham | B9: Gearing | C9: No Flag | D9: 1 | E9: 1.5 | F9: 0 | G9: 0 | H9: 0 | I9: 1 | J9: 0 | K9: 200 | L9: 0 | M9: 400 | N9: Nate | O9: Unseaworthy,None,None | P9: 2 | Q9: 137.1428571 | R9: Nate Graham | S9: 137.1428571
A10: Nate Graham | B10: Gearing | C10: No Flag | D10: 1 | E10: 1.5 | F10: 0 | G10: 0 | H10: 0 | I10: 0 | J10: 0 | K10: 0 | L10: 0 | M10: 0 | N10: Nate | O10: None,None,None | P10: 2 | Q10: 337.1428571 | R10: Nate Graham | S10: 337.1428571
A11: Kevin Plumer | B11: Agincourt | C11: Flag | D11: 5 | E11: 5.5 | F11: 99 | G11: 27 | H11: 65 | I11: 0 | J11: 1 | K11: 0 | L11: 0 | M11: 3480 | N11: Kevin | O11: None,None,None | P11: 9 | Q11: 1684.8 | R11: Kevin Plumer | S11: 1684.8
A12: Tom Tanner | B12: Ostfriesland | C12: No Flag | D12: 4 | E12: 4.5 | F12: 58 | G12: 9 | H12: 32 | I12: 1 | J12: 1 | K12: 0 | L12: 1 | M12: 2520 | N12: Tom | O12: None,None,None | P12: 8 | Q12: 1348.571429 | R12: Tom Tanner | S12: 1148.571429

Sheet MD Sept Sat 1
I1: Winner: | J1: =IF(K2>K3, B2, IF(K3>K2, B3, "Tie")) -> Flag | L1: Battle Type | M1: Battle Location and Month (i.e. MD May) | N1: MD Sept | S1: Fleet
A2: Fleet 1 : | B2: Flag | D2: Fleet Units: | E2: 14 | F2: Fleet Weight: | G2: 28 | H2: Fleet Battle Damage: | I2: 3650 | J2: Fleet Score: | K2: 5480 | M2: Battle Day | N2: Sat | S2: Mini-Fleet
A3: Fleet 2 : | B3: No Flag | D3: Fleet Units: | E3: 15.5 | F3: Fleet Weight: | G3: 19 | H3: Fleet Battle Damage: | I3: 5480 | J3: Fleet Score: | K3: 3250 | M3: Battle Number | N3: 1 | S3: Individual
A4: Captian | B4: Ship | C4: Fleet | D4: Class | E4: Units | F4: Above | G4: On | H4: Below | I4: Sinks | J4: Participate all Sorties | K4: Penalties Points | L4: 2nd Sortie Sink | M4: Damage Points | N4: Scored By | O4: Notes | P4: Weight Factor | Q4: Weight Points | R4: Captian | S4: Captain Points | T4: Indiv Points
A5: Steve Andrews | B5: Courbet | C5: No Flag | D5: 4 | E5: 4.5 | F5: 30 | G5: 7 | H5: 28 | I5: 1 | J5: 1 | K5: 200 | L5: 1 | M5: 2080 | N5: Matt | O5: Ram Below Kevin,None,None | P5: 8 | Q5: 1336.842105 | R5: Steve Andrews | S5: 1136.842105
A6: Nate Graham | B6: Gearing | C6: Flag | D6: 1 | E6: 1.5 | F6: 0 | G6: 0 | H6: 1 | I6: 0 | J6: 1 | K6: 0 | L6: 0 | M6: 30 | N6: Ginger | O6: None,None,None | P6: 4 | Q6: 782.8571429 | R6: Nate Graham | S6: 782.8571429
A7: Tom Tanner | B7: Ostfriesland | C7: No Flag | D7: 4 | E7: 4.5 | F7: 36 | G7: 10 | H7: 17 | I7: 1 | J7: 0 | K7: 200 | L7: 0 | M7: 1870 | N7: Nate | O7: Ram Below,None,None | P7: 4 | Q7: 568.4210526 | R7: Tom Tanner | S7: 568.4210526
A8: Tom Tanner | B8: Scharnhorst | C8: No Flag | D8: 3 | E8: 3 | F8: 11 | G8: 3 | H8: 13 | I8: 1 | J8: 0 | K8: 0 | L8: 0 | M8: 1260 | N8: Nate | O8: None,None,None | P8: 3.5 | Q8: 672.3684211 | R8: Tom Tanner | S8: 672.3684211
A9: Ginger Andrews | B9: Des Moines | C9: No Flag | D9: 3 | E9: 3.5 | F9: 6 | G9: 3 | H9: 5 | I9: 0 | J9: 0 | K9: 0 | L9: 0 | M9: 270 | N9: Kevin | O9: None,None,None | P9: 3.5 | Q9: 672.3684211 | R9: Ginger Andrews | S9: 672.3684211
A10: Kevin Plumer | B10: Agincourt | C10: Flag | D10: 5 | E10: 5.5 | F10: 70 | G10: 20 | H10: 36 | I10: 0 | J10: 1 | K10: 0 | L10: 0 | M10: 2180 | N10: Kevin | O10: None,None,None | P10: 9 | Q10: 1761.428571 | R10: Kevin Plumer | S10: 1761.428571
A11: Holly Moore | B11: Astoria | C11: Flag | D11: 3 | E11: 3 | F11: 1 | G11: 0 | H11: 0 | I11: 0 | J11: 1 | K11: 0 | L11: 0 | M11: 10 | N11: Matt | O11: None,None,None | P11: 7 | Q11: 1370 | R11: Holly Moore | S11: 1370
A12: Marty Hayes | B12: South Carolina | C12: Flag | D12: 4 | E12: 4 | F12: 28 | G12: 7 | H12: 7 | I12: 1 | J12: 1 | K12: 0 | L12: 1 | M12: 1430 | N12: Steve | O12: None,None,None | P12: 8 | Q12: 1565.714286 | R12: Marty Hayes | S12: 1365.714286

Sheet NY Oct Sun 1
I1: Winner: | J1: =IF(K2>K3, B2, IF(K3>K2, B3, "Tie")) -> Flag | L1: Battle Type | M1: Battle Location and Month (i.e. MD May) | N1: NY Oct | S1: Fleet
A2: Fleet 1 : | B2: Flag | D2: Fleet Units: | E2: 10 | F2: Fleet Weight: | G2: 17 | H2: Fleet Battle Damage: | I2: 760 | J2: Fleet Score: | K2: 4230 | M2: Battle Day | N2: Sun | S2: Mini-Fleet
A3: Fleet 2 : | B3: No Flag | D3: Fleet Units: | E3: 12 | F3: Fleet Weight: | G3: 18 | H3: Fleet Battle Damage: | I3: 4230 | J3: Fleet Score: | K3: 760 | M3: Battle Number | N3: 1 | S3: Individual
A4: Captian | B4: Ship | C4: Fleet | D4: Class | E4: Units | F4: Above | G4: On | H4: Below | I4: Sinks | J4: Participate all Sorties | K4: Penalties Points | L4: 2nd Sortie Sink | M4: Damage Points | N4: Scored By | O4: Notes | P4: Weight Factor | Q4: Weight Points | R4: Captian | S4: Captain Points | T4: Indiv Points
A5: David Simmons | B5: Espana | C5: No Flag | D5: 4 | E5: 4 | F5: 36 | G5: 6 | H5: 8 | I5: 1 | J5: 1 | K5: 0 | L5: 1 | M5: 1520 | N5: Rob | O5: None,None,None | P5: 8 | Q5: 337.7777778 | R5: David Simmons | S5: 137.7777778
A6: Rob Arena | B6: Arizona | C6: Flag | D6: 5 | E6: 5.5 | F6: 20 | G6: 1 | H6: 6 | I6: 0 | J6: 1 | K6: 0 | L6: 0 | M6: 400 | N6: Dave | O6: None,None,None | P6: 9 | Q6: 2239.411765 | R6: Rob Arena | S6: 2239.411765
A7: Steve Andrews | B7: Courbet | C7: Flag | D7: 4 | E7: 4.5 | F7: 10 | G7: 1 | H7: 8 | I7: 0 | J7: 1 | K7: 0 | L7: 0 | M7: 360 | N7: Carl | O7: None,None,None | P7: 8 | Q7: 1990.588235 | R7: Steve Andrews | S7: 1990.588235
A8: Carl Camurati | B8: Musashi | C8: No Flag | D8: 7 | E8: 8 | F8: 103 | G8: 30 | H8: 36 | I8: 0 | J8: 1 | K8: 0 | L8: 0 | M8: 2710 | N8: Steve | O8: None,None,None | P8: 10 | Q8: 422.2222222 | R8: Carl Camurati | S8: 422.2222222

Sheet NY Oct Sat 2
I1: Winner: | J1: =IF(K2>K3, B2, IF(K3>K2, B3, "Tie")) -> Allied | L1: Battle Type | M1: Battle Location and Month (i.e. MD May) | N1: NY Oct | S1: Fleet
A2: Fleet 1 : | B2: Allied | D2: Fleet Units: | E2: 10 | F2: Fleet Weight: | G2: 17 | H2: Fleet Battle Damage: | I2: 2400 | J2: Fleet Score: | K2: 3910 | M2: Battle Day | N2: Sat | S2: Mini-Fleet
A3: Fleet 2 : | B3: Axis | D3: Fleet Units: | E3: 8 | F3: Fleet Weight: | G3: 16 | H3: Fleet Battle Damage: | I3: 4110 | J3: Fleet Score: | K3: 2400 | M3: Battle Number | N3: 2 | S3: Individual
A4: Captian | B4: Ship | C4: Fleet | D4: Class | E4: Units | F4: Above | G4: On | H4: Below | I4: Sinks | J4: Participate all Sorties | K4: Penalties Points | L4: 2nd Sortie Sink | M4: Damage Points | N4: Scored By | O4: Notes | P4: Weight Factor | Q4: Weight Points | R4: Captian | S4: Captain Points | T4: Indiv Points
A5: David Simmons | B5: Espana | C5: Axis | D5: 4 | E5: 4 | F5: 51 | G5: 7 | H5: 27 | I5: 2 | J5: 1 | K5: 0 | L5: 1 | M5: 3060 | N5: Steve | O5: None,None,None | P5: 8 | Q5: 1200 | R5: David Simmons | S5: 1000
A6: Carl Camurati | B6: Nassau | C6: Axis | D6: 4 | E6: 4 | F6: 29 | G6: 8 | H6: 20 | I6: 0 | J6: 1 | K6: 0 | L6: 0 | M6: 1050 | N6: Steve | O6: None,None,None | P6: 8 | Q6: 1200 | R6: Carl Camurati | S6: 1200
A7: Steve Andrews | B7: Courbet | C7: Allied | D7: 4 | E7: 4.5 | F7: 23 | G7: 7 | H7: 14 | I7: 0 | J7: 1 | K7: 0 | L7: 0 | M7: 790 | N7: Dave | O7: None,None,None | P7: 8 | Q7: 1934.117647 | R7: Steve Andrews | S7: 1934.117647
A8: Rob Arena | B8: Arizona | C8: Allied | D8: 5 | E8: 5.5 | F8: 32 | G8: 0 | H8: 13 | I8: 1 | J8: 1 | K8: 200 | L8: 1 | M8: 1610 | N8: Dave | O8: Ram Below Carl,None,None | P8: 9 | Q8: 1975.882353 | R8: Rob Arena | S8: 1775.882353

Sheet NY Oct Sat 1
I1: Winner: | J1: =IF(K2>K3, B2, IF(K3>K2, B3, "Tie")) -> No Flag | L1: Battle Type | M1: Battle Location and Month (i.e. MD May) | N1: NY Oct | S1: Fleet
A2: Fleet 1 : | B2: Flag | D2: Fleet Units: | E2: 10 | F2: Fleet Weight: | G2: 17 | H2: Fleet Battle Damage: | I2: 3440 | J2: Fleet Score: | K2: 2110 | M2: Battle Day | N2: Sat | S2: Mini-Fleet
A3: Fleet 2 : | B3: No Flag | D3: Fleet Units: | E3: 8 | F3: Fleet Weight: | G3: 16 | H3: Fleet Battle Damage: | I3: 2110 | J3: Fleet Score: | K3: 3440 | M3: Battle Number | N3: 1 | S3: Individual
A4: Captian | B4: Ship | C4: Fleet | D4: Class | E4: Units | F4: Above | G4: On | H4: Below | I4: Sinks | J4: Participate all Sorties | K4: Penalties Points | L4: 2nd Sortie Sink | M4: Damage Points | N4: Scored By | O4: Notes | P4: Weight Factor | Q4: Weight Points | R4: Captian | S4: Captain Points | T4: Indiv Points
A5: Steve Andrews | B5: Courbet | C5: Flag | D5: 4 | E5: 4.5 | F5: 18 | G5: 7 | H5: 15 | I5: 1 | J5: 1 | K5: 0 | L5: 1 | M5: 1570 | N5: Steve | O5: None,None,None | P5: 8 | Q5: 992.9411765 | R5: Steve Andrews | S5: 792.9411765
A6: David Simmons | B6: Espana | C6: No Flag | D6: 4 | E6: 4 | F6: 36 | G6: 10 | H6: 13 | I6: 0 | J6: 1 | K6: 0 | L6: 0 | M6: 950 | N6: Steve | O6: None,None,None | P6: 8 | Q6: 1720 | R6: David Simmons | S6: 1720
A7: Rob Arena | B7: Arizona | C7: Flag | D7: 5 | E7: 5.5 | F7: 42 | G7: 5 | H7: 15 | I7: 1 | J7: 1 | K7: 0 | L7: 1 | M7: 1870 | N7: carl | O7: None,None,None | P7: 9 | Q7: 1117.058824 | R7: Rob Arena | S7: 917.0588235
A8: Carl Camurati | B8: Nassau | C8: No Flag | D8: 4 | E8: 4 | F8: 26 | G8: 3 | H8: 28 | I8: 0 | J8: 1 | K8: 0 | L8: 0 | M8: 1160 | N8: Rob | O8: None,None,None | P8: 8 | Q8: 1720 | R8: Carl Camurati | S8: 1720

Sheet TX Nov Sat 2
I1: Winner: | J1: =IF(K2>K3, B2, IF(K3>K2, B3, "Tie")) -> Tie | L1: Battle Type | M1: Battle Location and Month (i.e. MD May) | N1: TX Nov | S1: Fleet
A2: Fleet 1 : | B2: Allied | D2: Fleet Units: | E2: 0 | F2: Fleet Weight: | G2: 0 | H2: Fleet Battle Damage: | I2: 0 | J2: Fleet Score: | K2: 0 | M2: Battle Day | N2: Sat | S2: Mini-Fleet
A3: Fleet 2 : | B3: Axis | D3: Fleet Units: | E3: 6 | F3: Fleet Weight: | G3: 13 | H3: Fleet Battle Damage: | I3: 630 | J3: Fleet Score: | K3: 0 | M3: Battle Number | N3: 2 | S3: Individual
A4: Captian | B4: Ship | C4: Fleet | D4: Class | E4: Units | F4: Above | G4: On | H4: Below | I4: Sinks | J4: Participate all Sorties | K4: Penalties Points | L4: 2nd Sortie Sink | M4: Damage Points | N4: Scored By | O4: Notes | P4: Weight Factor | Q4: Weight Points | R4: Captian | S4: Captain Points | T4: Indiv Points
A5: Ted Buehring | B5: Lutzow | C5: Axis | D5: 3 | E5: 3.5 | F5: 35 | G5: 1 | H5: 7 | I5: 0 | J5: 1 | K5: 0 | L5: 0 | M5: 580 | N5: John | O5: None,None,None | P5: 7 | Q5: 0 | R5: Ted Buehring | S5: 0
A6: John Zaruba | B6: Duca | C6: Axis | D6: 2 | E6: 2.5 | F6: 5 | G6: 0 | H6: 0 | I6: 0 | J6: 1 | K6: 0 | L6: 0 | M6: 50 | N6: Ted | O6: None,None,None | P6: 6 | Q6: 0 | R6: John Zaruba | S6: 0

Sheet TX Nov Sat 1
I1: Winner: | J1: =IF(K2>K3, B2, IF(K3>K2, B3, "Tie")) -> Allied | L1: Battle Type | M1: Battle Location and Month (i.e. MD May) | N1: TX Nov | S1: Fleet
A2: Fleet 1 : | B2: Allied | D2: Fleet Units: | E2: 2.5 | F2: Fleet Weight: | G2: 6 | H2: Fleet Battle Damage: | I2: 70 | J2: Fleet Score: | K2: 290 | M2: Battle Day | N2: Sat | S2: Mini-Fleet
A3: Fleet 2 : | B3: Axis | D3: Fleet Units: | E3: 3.5 | F3: Fleet Weight: | G3: 7 | H3: Fleet Battle Damage: | I3: 290 | J3: Fleet Score: | K3: 70 | M3: Battle Number | N3: 1 | S3: Individual
A4: Captian | B4: Ship | C4: Fleet | D4: Class | E4: Units | F4: Above | G4: On | H4: Below | I4: Sinks | J4: Participate all Sorties | K4: Penalties Points | L4: 2nd Sortie Sink | M4: Damage Points | N4: Scored By | O4: Notes | P4: Weight Factor | Q4: Weight Points | R4: Captian | S4: Captain Points | T4: Indiv Points
A5: Ted Buehring | B5: Lutzow | C5: Axis | D5: 3 | E5: 3.5 | F5: 26 | G5: 0 | H5: 1 | I5: 0 | J5: 1 | K5: 0 | L5: 0 | M5: 290 | N5: John | O5: None,None,None | P5: 7 | Q5: 70 | R5: Ted Buehring | S5: 70
A6: John Zaruba | B6: Duca | C6: Allied | D6: 2 | E6: 2.5 | F6: 7 | G6: 0 | H6: 0 | I6: 0 | J6: 1 | K6: 0 | L6: 0 | M6: 70 | N6: Ted | O6: None,None,None | P6: 6 | Q6: 290 | R6: John Zaruba | S6: 290

Sheet MI Oct Sat 2
I1: Winner: | J1: =IF(K2>K3, B2, IF(K3>K2, B3, "Tie")) -> Allied | L1: Battle Type | M1: Battle Location and Month (i.e. MD May) | N1: MI Oct | S1: Fleet
A2: Fleet 1 : | B2: Allied | D2: Fleet Units: | E2: 5.5 | F2: Fleet Weight: | G2: 13 | H2: Fleet Battle Damage: | I2: 90 | J2: Fleet Score: | K2: 190 | M2: Battle Day | N2: Sat | S2: Mini-Fleet
A3: Fleet 2 : | B3: Axis | D3: Fleet Units: | E3: 4 | F3: Fleet Weight: | G3: 8 | H3: Fleet Battle Damage: | I3: 190 | J3: Fleet Score: | K3: 90 | M3: Battle Number | N3: 2 | S3: Individual
A4: Captian | B4: Ship | C4: Fleet | D4: Class | E4: Units | F4: Above | G4: On | H4: Below | I4: Sinks | J4: Participate all Sorties | K4: Penalties Points | L4: 2nd Sortie Sink | M4: Damage Points | N4: Scored By | O4: Notes | P4: Weight Factor | Q4: Weight Points | R4: Captian | S4: Captain Points | T4: Indiv Points
A5: Andrew Le | B5: Brooklyn | C5: Allied | D5: 3 | E5: 3 | F5: 1 | G5: 0 | H5: 0 | I5: 0 | J5: 1 | K5: 0 | L5: 0 | M5: 10 | N5: Kas | O5: None,None,None | P5: 7 | Q5: 102.3076923 | R5: Andrew Le | S5: 102.3076923
A6: Kas Gaigalas | B6: Glorie | C6: Allied | D6: 2 | E6: 2.5 | F6: 2 | G6: 0 | H6: 2 | I6: 0 | J6: 1 | K6: 0 | L6: 0 | M6: 80 | N6: Mark | O6: None,None,None | P6: 6 | Q6: 87.69230769 | R6: Kas Gaigalas | S6: 87.69230769
A7: Mark Roe | B7: VDT | C7: Axis | D7: 4 | E7: 4 | F7: 19 | G7: 0 | H7: 0 | I7: 0 | J7: 1 | K7: 0 | L7: 0 | M7: 190 | N7: Andrew | O7: None,None,None | P7: 8 | Q7: 90 | R7: Mark Roe | S7: 90

Sheet MI Oct Sat 1
I1: Winner: | J1: =IF(K2>K3, B2, IF(K3>K2, B3, "Tie")) -> Allied | L1: Battle Type | M1: Battle Location and Month (i.e. MD May) | N1: MI Oct | S1: Fleet
A2: Fleet 1 : | B2: Allied | D2: Fleet Units: | E2: 5.5 | F2: Fleet Weight: | G2: 13 | H2: Fleet Battle Damage: | I2: 90 | J2: Fleet Score: | K2: 230 | M2: Battle Day | N2: Sat | S2: Mini-Fleet
A3: Fleet 2 : | B3: Axis | D3: Fleet Units: | E3: 4 | F3: Fleet Weight: | G3: 8 | H3: Fleet Battle Damage: | I3: 230 | J3: Fleet Score: | K3: 90 | M3: Battle Number | N3: 1 | S3: Individual
A4: Captian | B4: Ship | C4: Fleet | D4: Class | E4: Units | F4: Above | G4: On | H4: Below | I4: Sinks | J4: Participate all Sorties | K4: Penalties Points | L4: 2nd Sortie Sink | M4: Damage Points | N4: Scored By | O4: Notes | P4: Weight Factor | Q4: Weight Points | R4: Captian | S4: Captain Points | T4: Indiv Points
A5: Kas Gaigalas | B5: Glorie | C5: Allied | D5: 2 | E5: 2.5 | F5: 2 | G5: 0 | H5: 0 | I5: 0 | J5: 1 | K5: 0 | L5: 0 | M5: 20 | N5: Andrew | O5: None,None,None | P5: 6 | Q5: 106.1538462 | R5: Kas Gaigalas | S5: 106.1538462
A6: Andrew Le | B6: Brooklyn | C6: Allied | D6: 3 | E6: 3 | F6: 4 | G6: 0 | H6: 1 | I6: 0 | J6: 1 | K6: 0 | L6: 0 | M6: 70 | N6: Mark | O6: None,None,None | P6: 7 | Q6: 123.8461538 | R6: Andrew Le | S6: 123.8461538
A7: Mark Roe | B7: VDT | C7: Axis | D7: 4 | E7: 4 | F7: 13 | G7: 5 | H7: 0 | I7: 0 | J7: 1 | K7: 0 | L7: 0 | M7: 230 | N7: Kas | O7: None,None,None | P7: 8 | Q7: 90 | R7: Mark Roe | S7: 90

Sheet MI Sept2 Sat 1
I1: Winner: | J1: =IF(K2>K3, B2, IF(K3>K2, B3, "Tie")) -> Allied | L1: Battle Type | M1: Battle Location and Month (i.e. MD May) | N1: MI Sept2 | S1: Fleet
A2: Fleet 1 : | B2: Allied | D2: Fleet Units: | E2: 6 | F2: Fleet Weight: | G2: 10 | H2: Fleet Battle Damage: | I2: 670 | J2: Fleet Score: | K2: 1570 | M2: Battle Day | N2: Sat | S2: Mini-Fleet
A3: Fleet 2 : | B3: Axis | D3: Fleet Units: | E3: 11.5 | F3: Fleet Weight: | G3: 19 | H3: Fleet Battle Damage: | I3: 1570 | J3: Fleet Score: | K3: 670 | M3: Battle Number | N3: 1 | S3: Individual
A4: Captian | B4: Ship | C4: Fleet | D4: Class | E4: Units | F4: Above | G4: On | H4: Below | I4: Sinks | J4: Participate all Sorties | K4: Penalties Points | L4: 2nd Sortie Sink | M4: Damage Points | N4: Scored By | O4: Notes | P4: Weight Factor | Q4: Weight Points | R4: Captian | S4: Captain Points | T4: Indiv Points
A5: Kas Gaigalas | B5: Washington | C5: Allied | D5: 6 | E5: 6 | F5: 35 | G5: 4 | H5: 8 | I5: 0 | J5: 1 | K5: 0 | L5: 0 | M5: 670 | N5: Craig | O5: None,None,None | P5: 10 | Q5: 1570 | R5: Kas Gaigalas | S5: 1570
A6: Craig Singer | B6: Nagato | C6: Axis | D6: 6 | E6: 6 | F6: 19 | G6: 4 | H6: 12 | I6: 0 | J6: 1 | K6: 0 | L6: 0 | M6: 630 | N6: Kas | O6: None,None,None | P6: 10 | Q6: 352.6315789 | R6: Craig Singer | S6: 352.6315789
A7: Mark Roe | B7: Baden | C7: Axis | D7: 5 | E7: 5.5 | F7: 62 | G7: 1 | H7: 10 | I7: 0 | J7: 1 | K7: 0 | L7: 0 | M7: 940 | N7: Kas | O7: None,None,None | P7: 9 | Q7: 317.3684211 | R7: Mark Roe | S7: 317.3684211

Sheet MI Sept Sat 3
I1: Winner: | J1: =IF(K2>K3, B2, IF(K3>K2, B3, "Tie")) -> Allied | L1: Battle Type | M1: Battle Location and Month (i.e. MD May) | N1: MI Sept | S1: Fleet
A2: Fleet 1 : | B2: Allied | D2: Fleet Units: | E2: 10.5 | F2: Fleet Weight: | G2: 18 | H2: Fleet Battle Damage: | I2: 1250 | J2: Fleet Score: | K2: 3610 | M2: Battle Day | N2: Sat | S2: Mini-Fleet
A3: Fleet 2 : | B3: Axis | D3: Fleet Units: | E3: 10 | F3: Fleet Weight: | G3: 18 | H3: Fleet Battle Damage: | I3: 3610 | J3: Fleet Score: | K3: 1250 | M3: Battle Number | N3: 3 | S3: Individual
A4: Captian | B4: Ship | C4: Fleet | D4: Class | E4: Units | F4: Above | G4: On | H4: Below | I4: Sinks | J4: Participate all Sorties | K4: Penalties Points | L4: 2nd Sortie Sink | M4: Damage Points | N4: Scored By | O4: Notes | P4: Weight Factor | Q4: Weight Points | R4: Captian | S4: Captain Points | T4: Indiv Points
A5: Craig Singer | B5: Nagato | C5: Axis | D5: 6 | E5: 6 | F5: 100 | G5: 13 | H5: 36 | I5: 1 | J5: 1 | K5: 0 | L5: 1 | M5: 3340 | N5: Kas | O5: None,None,None | P5: 10 | Q5: 694.4444444 | R5: Craig Singer | S5: 494.4444444
A6: Mark Roe | B6: VDT | C6: Axis | D6: 4 | E6: 4 | F6: 9 | G6: 3 | H6: 4 | I6: 0 | J6: 1 | K6: 0 | L6: 0 | M6: 270 | N6: Kas | O6: None,None,None | P6: 8 | Q6: 555.5555556 | R6: Mark Roe | S6: 555.5555556
A7: Kas Gaigalas | B7: Washington | C7: Allied | D7: 6 | E7: 6 | F7: 22 | G7: 0 | H7: 4 | I7: 0 | J7: 1 | K7: 0 | L7: 0 | M7: 340 | N7: Craig | O7: None,None,None | P7: 10 | Q7: 2005.555556 | R7: Kas Gaigalas | S7: 2005.555556
A8: Will Cover | B8: Derflinger | C8: Allied | D8: 4 | E8: 4.5 | F8: 35 | G8: 1 | H8: 18 | I8: 0 | J8: 1 | K8: 0 | L8: 0 | M8: 910 | N8: Craig | O8: None,None,None | P8: 8 | Q8: 1604.444444 | R8: Will Cover | S8: 1604.444444

Sheet MI Sept Sat 2
I1: Winner: | J1: =IF(K2>K3, B2, IF(K3>K2, B3, "Tie")) -> Allied | L1: Battle Type | M1: Battle Location and Month (i.e. MD May) | N1: MI Sept | S1: Fleet
A2: Fleet 1 : | B2: Allied | D2: Fleet Units: | E2: 10 | F2: Fleet Weight: | G2: 18 | H2: Fleet Battle Damage: | I2: 1400 | J2: Fleet Score: | K2: 3190 | M2: Battle Day | N2: Sat | S2: Mini-Fleet
A3: Fleet 2 : | B3: Axis | D3: Fleet Units: | E3: 12 | F3: Fleet Weight: | G3: 20 | H3: Fleet Battle Damage: | I3: 3190 | J3: Fleet Score: | K3: 1400 | M3: Battle Number | N3: 2 | S3: Individual
A4: Captian | B4: Ship | C4: Fleet | D4: Class | E4: Units | F4: Above | G4: On | H4: Below | I4: Sinks | J4: Participate all Sorties | K4: Penalties Points | L4: 2nd Sortie Sink | M4: Damage Points | N4: Scored By | O4: Notes | P4: Weight Factor | Q4: Weight Points | R4: Captian | S4: Captain Points | T4: Indiv Points
A5: Will Cover | B5: South Dakota | C5: Axis | D5: 6 | E5: 6 | F5: 78 | G5: 5 | H5: 9 | I5: 1 | J5: 1 | K5: 0 | L5: 1 | M5: 2150 | N5: Mark | O5: None,None,None | P5: 10 | Q5: 700 | R5: Will Cover | S5: 500
A6: Craig Singer | B6: Nagato | C6: Axis | D6: 6 | E6: 6 | F6: 57 | G6: 4 | H6: 13 | I6: 0 | J6: 1 | K6: 0 | L6: 0 | M6: 1040 | N6: Mark | O6: None,None,None | P6: 10 | Q6: 700 | R6: Craig Singer | S6: 700
A7: Kas Gaigalas | B7: Washington | C7: Allied | D7: 6 | E7: 6 | F7: 40 | G7: 3 | H7: 6 | I7: 0 | J7: 1 | K7: 0 | L7: 0 | M7: 640 | N7: Craig | O7: None,None,None | P7: 10 | Q7: 1772.222222 | R7: Kas Gaigalas | S7: 1772.222222
A8: Mark Roe | B8: VDT | C8: Allied | D8: 4 | E8: 4 | F8: 24 | G8: 2 | H8: 16 | I8: 0 | J8: 1 | K8: 0 | L8: 0 | M8: 760 | N8: Craig | O8: None,None,None | P8: 8 | Q8: 1417.777778 | R8: Mark Roe | S8: 1417.777778

Sheet MI Sept Sat 1
I1: Winner: | J1: =IF(K2>K3, B2, IF(K3>K2, B3, "Tie")) -> Allied | L1: Battle Type | M1: Battle Location and Month (i.e. MD May) | N1: MI Sept | S1: Fleet
A2: Fleet 1 : | B2: Allied | D2: Fleet Units: | E2: 10 | F2: Fleet Weight: | G2: 18 | H2: Fleet Battle Damage: | I2: 1420 | J2: Fleet Score: | K2: 3590 | M2: Battle Day | N2: Sat | S2: Mini-Fleet
A3: Fleet 2 : | B3: Axis | D3: Fleet Units: | E3: 12 | F3: Fleet Weight: | G3: 20 | H3: Fleet Battle Damage: | I3: 3590 | J3: Fleet Score: | K3: 1420 | M3: Battle Number | N3: 1 | S3: Individual
A4: Captian | B4: Ship | C4: Fleet | D4: Class | E4: Units | F4: Above | G4: On | H4: Below | I4: Sinks | J4: Participate all Sorties | K4: Penalties Points | L4: 2nd Sortie Sink | M4: Damage Points | N4: Scored By | O4: Notes | P4: Weight Factor | Q4: Weight Points | R4: Captian | S4: Captain Points | T4: Indiv Points
A5: Kas Gaigalas | B5: Washington | C5: Allied | D5: 6 | E5: 6 | F5: 16 | G5: 2 | H5: 8 | I5: 0 | J5: 1 | K5: 0 | L5: 0 | M5: 440 | N5: Will | O5: None,None,None | P5: 10 | Q5: 1994.444444 | R5: Kas Gaigalas | S5: 1994.444444
A6: Mark Roe | B6: VDT | C6: Allied | D6: 4 | E6: 4 | F6: 38 | G6: 6 | H6: 16 | I6: 0 | J6: 1 | K6: 0 | L6: 0 | M6: 980 | N6: Will | O6: None,None,None | P6: 8 | Q6: 1595.555556 | R6: Mark Roe | S6: 1595.555556
A7: Craig Singer | B7: Nagato | C7: Axis | D7: 6 | E7: 6 | F7: 76 | G7: 9 | H7: 14 | I7: 0 | J7: 1 | K7: 0 | L7: 0 | M7: 1360 | N7: Kas | O7: None,None,None | P7: 10 | Q7: 710 | R7: Craig Singer | S7: 710
A8: Will Cover | B8: South Dakota | C8: Axis | D8: 6 | E8: 6 | F8: 51 | G8: 6 | H8: 20 | I8: 1 | J8: 1 | K8: 0 | L8: 1 | M8: 2230 | N8: Mark | O8: None,None,None | P8: 10 | Q8: 710 | R8: Will Cover | S8: 510

Sheet MI Aug Sat 3
I1: Winner: | J1: =IF(K2>K3, B2, IF(K3>K2, B3, "Tie")) -> Axis | L1: Battle Type | M1: Battle Location and Month (i.e. MD May) | N1: MI Aug | S1: Fleet
A2: Fleet 1 : | B2: Allied | D2: Fleet Units: | E2: 10.5 | F2: Fleet Weight: | G2: 18 | H2: Fleet Battle Damage: | I2: 1440 | J2: Fleet Score: | K2: 790 | M2: Battle Day | N2: Sat | S2: Mini-Fleet
A3: Fleet 2 : | B3: Axis | D3: Fleet Units: | E3: 10 | F3: Fleet Weight: | G3: 18 | H3: Fleet Battle Damage: | I3: 790 | J3: Fleet Score: | K3: 1440 | M3: Battle Number | N3: 3 | S3: Individual
A4: Captian | B4: Ship | C4: Fleet | D4: Class | E4: Units | F4: Above | G4: On | H4: Below | I4: Sinks | J4: Participate all Sorties | K4: Penalties Points | L4: 2nd Sortie Sink | M4: Damage Points | N4: Scored By | O4: Notes | P4: Weight Factor | Q4: Weight Points | R4: Captian | S4: Captain Points | T4: Indiv Points
A5: Craig Singer | B5: Nagato | C5: Allied | D5: 6 | E5: 6 | F5: 55 | G5: 9 | H5: 4 | I5: 0 | J5: 1 | K5: 0 | L5: 0 | M5: 850 | N5: Will | O5: None,None,None | P5: 10 | Q5: 438.8888889 | R5: Craig Singer | S5: 438.8888889
A6: Will Cover | B6: Derflinger | C6: Allied | D6: 4 | E6: 4.5 | F6: 45 | G6: 1 | H6: 4 | I6: 0 | J6: 1 | K6: 0 | L6: 0 | M6: 590 | N6: Kas | O6: None,None,None | P6: 8 | Q6: 351.1111111 | R6: Will Cover | S6: 351.1111111
A7: Mark Roe | B7: VDT | C7: Axis | D7: 4 | E7: 4 | F7: 7 | G7: 2 | H7: 5 | I7: 0 | J7: 1 | K7: 0 | L7: 0 | M7: 260 | N7: Will | O7: None,None,None | P7: 8 | Q7: 640 | R7: Mark Roe | S7: 640
A8: Kas Gaigalas | B8: Washington | C8: Axis | D8: 6 | E8: 6 | F8: 36 | G8: 1 | H8: 5 | I8: 0 | J8: 1 | K8: 0 | L8: 0 | M8: 530 | N8: Craig | O8: None,None,None | P8: 10 | Q8: 800 | R8: Kas Gaigalas | S8: 800

Sheet MI Aug Sat 2
I1: Winner: | J1: =IF(K2>K3, B2, IF(K3>K2, B3, "Tie")) -> Axis | L1: Battle Type | M1: Battle Location and Month (i.e. MD May) | N1: MI Aug | S1: Fleet
A2: Fleet 1 : | B2: Allied | D2: Fleet Units: | E2: 10.5 | F2: Fleet Weight: | G2: 18 | H2: Fleet Battle Damage: | I2: 1580 | J2: Fleet Score: | K2: 1130 | M2: Battle Day | N2: Sat | S2: Mini-Fleet
A3: Fleet 2 : | B3: Axis | D3: Fleet Units: | E3: 10 | F3: Fleet Weight: | G3: 18 | H3: Fleet Battle Damage: | I3: 1430 | J3: Fleet Score: | K3: 1580 | M3: Battle Number | N3: 2 | S3: Individual
A4: Captian | B4: Ship | C4: Fleet | D4: Class | E4: Units | F4: Above | G4: On | H4: Below | I4: Sinks | J4: Participate all Sorties | K4: Penalties Points | L4: 2nd Sortie Sink | M4: Damage Points | N4: Scored By | O4: Notes | P4: Weight Factor | Q4: Weight Points | R4: Captian | S4: Captain Points | T4: Indiv Points
A5: Mark Roe | B5: VDT | C5: Axis | D5: 4 | E5: 4 | F5: 44 | G5: 5 | H5: 9 | I5: 0 | J5: 1 | K5: 0 | L5: 0 | M5: 810 | N5: Kas | O5: None,None,None | P5: 8 | Q5: 702.2222222 | R5: Mark Roe | S5: 702.2222222
A6: Craig Singer | B6: Nagato | C6: Axis | D6: 6 | E6: 6 | F6: 34 | G6: 5 | H6: 6 | I6: 0 | J6: 1 | K6: 0 | L6: 0 | M6: 620 | N6: Will | O6: None,None,None | P6: 10 | Q6: 877.7777778 | R6: Craig Singer | S6: 877.7777778
A7: Will Cover | B7: Derflinger | C7: Allied | D7: 4 | E7: 4.5 | F7: 68 | G7: 2 | H7: 10 | I7: 0 | J7: 1 | K7: 300 | L7: 0 | M7: 1020 | N7: Craig | O7: Ram Below,Ram Above,None | P7: 8 | Q7: 335.5555556 | R7: Will Cover | S7: 335.5555556
A8: Kas Gaigalas | B8: Washington | C8: Allied | D8: 6 | E8: 6 | F8: 31 | G8: 5 | H8: 5 | I8: 0 | J8: 1 | K8: 0 | L8: 0 | M8: 560 | N8: Mark | O8: None,None,None | P8: 10 | Q8: 794.4444444 | R8: Kas Gaigalas | S8: 794.4444444

Sheet MI Aug Sat 1
I1: Winner: | J1: =IF(K2>K3, B2, IF(K3>K2, B3, "Tie")) -> Allied | L1: Battle Type | M1: Battle Location and Month (i.e. MD May) | N1: MI Aug | S1: Fleet
A2: Fleet 1 : | B2: Allied | D2: Fleet Units: | E2: 10 | F2: Fleet Weight: | G2: 18 | H2: Fleet Battle Damage: | I2: 680 | J2: Fleet Score: | K2: 1440 | M2: Battle Day | N2: Sat | S2: Mini-Fleet
A3: Fleet 2 : | B3: Axis | D3: Fleet Units: | E3: 10.5 | F3: Fleet Weight: | G3: 18 | H3: Fleet Battle Damage: | I3: 1440 | J3: Fleet Score: | K3: 680 | M3: Battle Number | N3: 1 | S3: Individual
A4: Captian | B4: Ship | C4: Fleet | D4: Class | E4: Units | F4: Above | G4: On | H4: Below | I4: Sinks | J4: Participate all Sorties | K4: Penalties Points | L4: 2nd Sortie Sink | M4: Damage Points | N4: Scored By | O4: Notes | P4: Weight Factor | Q4: Weight Points | R4: Captian | S4: Captain Points | T4: Indiv Points
A5: Craig Singer | B5: Nagato | C5: Axis | D5: 6 | E5: 6 | F5: 46 | G5: 4 | H5: 6 | I5: 0 | J5: 1 | K5: 0 | L5: 0 | M5: 720 | N5: Kas | O5: None,None,None | P5: 10 | Q5: 377.7777778 | R5: Craig Singer | S5: 377.7777778
A6: Mark Roe | B6: VDT | C6: Allied | D6: 4 | E6: 4 | F6: 10 | G6: 1 | H6: 6 | I6: 0 | J6: 1 | K6: 0 | L6: 0 | M6: 300 | N6: Will | O6: None,None,None | P6: 8 | Q6: 640 | R6: Mark Roe | S6: 640
A7: Will Cover | B7: Derflinger | C7: Axis | D7: 4 | E7: 4.5 | F7: 54 | G7: 3 | H7: 4 | I7: 0 | J7: 1 | K7: 0 | L7: 0 | M7: 720 | N7: Kas | O7: None,None,None | P7: 8 | Q7: 302.2222222 | R7: Will Cover | S7: 302.2222222
A8: Kas Gaigalas | B8: Washington | C8: Allied | D8: 6 | E8: 6 | F8: 20 | G8: 3 | H8: 4 | I8: 0 | J8: 1 | K8: 0 | L8: 0 | M8: 380 | N8: Craig | O8: None,None,None | P8: 10 | Q8: 800 | R8: Kas Gaigalas | S8: 800

Sheet MI July Sat 2
I1: Winner: | J1: =IF(K2>K3, B2, IF(K3>K2, B3, "Tie")) -> Allied | L1: Battle Type | M1: Battle Location and Month (i.e. MD May) | N1: MI July | S1: Fleet
A2: Fleet 1 : | B2: Allied | D2: Fleet Units: | E2: 10 | F2: Fleet Weight: | G2: 18 | H2: Fleet Battle Damage: | I2: 1520 | J2: Fleet Score: | K2: 4610 | M2: Battle Day | N2: Sat | S2: Mini-Fleet
A3: Fleet 2 : | B3: Axis | D3: Fleet Units: | E3: 14.5 | F3: Fleet Weight: | G3: 26 | H3: Fleet Battle Damage: | I3: 4610 | J3: Fleet Score: | K3: 1320 | M3: Battle Number | N3: 2 | S3: Individual
A4: Captian | B4: Ship | C4: Fleet | D4: Class | E4: Units | F4: Above | G4: On | H4: Below | I4: Sinks | J4: Participate all Sorties | K4: Penalties Points | L4: 2nd Sortie Sink | M4: Damage Points | N4: Scored By | O4: Notes | P4: Weight Factor | Q4: Weight Points | R4: Captian | S4: Captain Points | T4: Indiv Points
A5: Kas Gaigalas | B5: Washington | C5: Allied | D5: 6 | E5: 6 | F5: 33 | G5: 2 | H5: 12 | I5: 0 | J5: 1 | K5: 0 | L5: 0 | M5: 730 | N5: Will | O5: None,None,None | P5: 10 | Q5: 2561.111111 | R5: Kas Gaigalas | S5: 2561.111111
A6: Weston Dodge | B6: Australia | C6: Allied | D6: 4 | E6: 4 | F6: 32 | G6: 1 | H6: 15 | I6: 0 | J6: 1 | K6: 0 | L6: 0 | M6: 790 | N6: Will | O6: None,None,None | P6: 8 | Q6: 2048.888889 | R6: Weston Dodge | S6: 2048.888889
A7: Will Cover | B7: Derflinger | C7: Axis | D7: 4 | E7: 4.5 | F7: 48 | G7: 4 | H7: 22 | I7: 0 | J7: 1 | K7: 0 | L7: 0 | M7: 1220 | N7: Kas | O7: None,None,None | P7: 8 | Q7: 467.6923077 | R7: Will Cover | S7: 467.6923077
A8: Mark Roe | B8: VDT | C8: Axis | D8: 4 | E8: 4 | F8: 34 | G8: 2 | H8: 4 | I8: 0 | J8: 1 | K8: 0 | L8: 0 | M8: 500 | N8: Kas | O8: None,None,None | P8: 8 | Q8: 467.6923077 | R8: Mark Roe | S8: 467.6923077
A9: Craig Singer | B9: Nagato | C9: Axis | D9: 6 | E9: 6 | F9: 80 | G9: 11 | H9: 29 | I9: 1 | J9: 1 | K9: 200 | L9: 1 | M9: 2890 | N9: Kas | O9: Ram Below,None,None | P9: 10 | Q9: 384.6153846 | R9: Craig Singer | S9: 184.6153846

Sheet MI July Sat 1
I1: Winner: | J1: =IF(K2>K3, B2, IF(K3>K2, B3, "Tie")) -> Allied | L1: Battle Type | M1: Battle Location and Month (i.e. MD May) | N1: MI July | S1: Fleet
A2: Fleet 1 : | B2: Allied | D2: Fleet Units: | E2: 10 | F2: Fleet Weight: | G2: 14 | H2: Fleet Battle Damage: | I2: 2160 | J2: Fleet Score: | K2: 2380 | M2: Battle Day | N2: Sat | S2: Mini-Fleet
A3: Fleet 2 : | B3: Axis | D3: Fleet Units: | E3: 14 | F3: Fleet Weight: | G3: 25 | H3: Fleet Battle Damage: | I3: 2380 | J3: Fleet Score: | K3: 2160 | M3: Battle Number | N3: 1 | S3: Individual
A4: Captian | B4: Ship | C4: Fleet | D4: Class | E4: Units | F4: Above | G4: On | H4: Below | I4: Sinks | J4: Participate all Sorties | K4: Penalties Points | L4: 2nd Sortie Sink | M4: Damage Points | N4: Scored By | O4: Notes | P4: Weight Factor | Q4: Weight Points | R4: Captian | S4: Captain Points | T4: Indiv Points
A5: Kas Gaigalas | B5: Washington | C5: Allied | D5: 6 | E5: 6 | F5: 40 | G5: 6 | H5: 10 | I5: 0 | J5: 1 | K5: 0 | L5: 0 | M5: 820 | N5: Craig | O5: None,None,None | P5: 10 | Q5: 1700 | R5: Kas Gaigalas | S5: 1700
A6: Weston Dodge | B6: Australia | C6: Allied | D6: 4 | E6: 4 | F6: 26 | G6: 2 | H6: 8 | I6: 1 | J6: 0 | K6: 0 | L6: 0 | M6: 1340 | N6: Craig | O6: None,None,None | P6: 4 | Q6: 680 | R6: Weston Dodge | S6: 680
A7: Craig Singer | B7: Nagato | C7: Axis | D7: 5 | E7: 5.5 | F7: 36 | G7: 4 | H7: 7 | I7: 0 | J7: 1 | K7: 0 | L7: 0 | M7: 650 | N7: Weston | O7: None,None,None | P7: 9 | Q7: 777.6 | R7: Craig Singer | S7: 777.6
A8: Will Cover | B8: Derflinger | C8: Axis | D8: 4 | E8: 4.5 | F8: 43 | G8: 6 | H8: 10 | I8: 0 | J8: 1 | K8: 0 | L8: 0 | M8: 850 | N8: Kas | O8: None,None,None | P8: 8 | Q8: 691.2 | R8: Will Cover | S8: 691.2
A9: Mark Roe | B9: VDT | C9: Axis | D9: 4 | E9: 4 | F9: 35 | G9: 4 | H9: 15 | I9: 0 | J9: 1 | K9: 0 | L9: 0 | M9: 880 | N9: Craig | O9: None,None,None | P9: 8 | Q9: 691.2 | R9: Mark Roe | S9: 691.2
